Workbook

Sheet 1. Instructions
G1: Instructions
C3: One Health Monitoring Tool
C4: The One Health Monitoring Tool (OHMT) is a self-assessment of One Health implementation at national level across all four sectors - human health, animal health, wildlife, and the environment. The results of the assessment are used to identify gaps and develop a set of actions to address priority areas in need of strengthening. The results can serve as a benchmark for future assessments and highlight progress made against the set of actions.
C6: One Health Monitoring Tool Process and Completion Options
C7: The OHMT is completed as a three step process. The OHMT can be completed using the following below options. Option A: An in-person or virtual workshop with four breakout rooms that can be conducted and led by FAO. Option B: Each sector complete the worksheets in the OHMT independent of FAO and submits results to an FAO Point of Contact (POC). FAO resource capacity can be available for the process to complete the OHMT for clarification, if needed.
C9: Step 1: (Prior to consensus-based workshop)
C10: Sector-Specific Workshop: Sector-specific workshops apply a whole-of-society approach. These workshops include representatives from national government, sub-national government, local government, academia, non-governmental organizations (NGOs), civil society, private sector, and international organizations from each sector (human health, animal health, wildlife (inclusive of both the wildlife disease and wildlife management & conservation sub-sectors), and environment). The sector-specific workshops are run in advance of a consensus-building workshop where representatives complete the following OHMT worksheets before attending the consensus building workshop: - Worksheet 3. One Health Indicators by Sector - Worksheet 4. Indicator and JPA Crosswalk (relavent sector specific worksheet only) - Worksheet 5. Indicator and Priority Area Crosswalk (relavent sector specific worksheets only) REMINDERS FOR STEP 1: 1. The intended goal of the OHMT is for each sector to provide a "true picture" of OHMT within their sector. 2. Providing a complete and up to date response for each sector will allow the application for future country investments in OH. 3. A workplan will be further developed from sector-specific and consensus reults to go with the country-level JPA. 4. The definitions page and the OHMT Instructions document describes each sector (and sub-sectors) and should be applied to ensure that participants represent the appropriate sector when completing the tool.
C26: Step 2: Day 1 of Conensus-Based Workshop
C27: Combined Sector Government Workshop: The combined sector workshop includes representatives from the relevant ministries and departments from each of the four sectors. The combined sector workshop follows on from the sector specific workshops. During the combined sector workshop, the results from the sector specific workshops are presented and reviewed. Scoring is reviewed and an agreed upon consensus score is determined that will provide input into the results dashboard. The following worksheets will be completed prior to moving toward step 3. - Worksheet 6. One Health Indicator by Consensus - Worksheet 7. Indicator X JPA Crosswalk - Worksheet 8. Indicator X Priority Area Crosswalk REMINDERS FOR STEP 2: 1. Each sector will need to bring and provide proof in showcasing written documentation for why they scored a "yes" on a sector-specific One Health Indicator, JPA Action Track or Priority Area worksheets for their specific sector (i.e., Step 1 results from each sector- worksheets 3, 4, and 5 of OHMT). 2. The three sectors will evaluate the answers of the other sector to agree or disagree with the sector-specific scores and provide an agreed upon consensus score. 3. Both the consensus-based national score and sector specific score will be evaluated in Step 3 to prioritize areas for further implementation and allocation of resources. For example, even if a consensus score is "high", it may have a sector-specific score that is rated the "lowest" amongst everything and thus, future focus for further implementation and allocation of resources may could potentially be focused on for that specific-sector based on a country-level implementation plan.
C47: Step 3: Days 2 and 3 of Conensus-Based Workshop
C48: Combined Sector Government Workshop: Following the review from Day 1 of the Consensus-based activities, the representatives will review dashboard results for the (i) One Health indicators, (ii) JPA Action Tracks, and (iii) Priority Areas. Participants will complete the following worksheets on day 3, which can be utilized for further input into the workplan JRA for a country: - Worksheet 9: Results Dashboard - Worksheet 10: Actions and Tools REMINDERS FOR STEP 3: 1. Review the results from the dashboard. 2. Develop to actions for each indicator, action track and priority area and fill in the actions and tools worksheet. 3. Compare the sector-specific results to the consensus results to determine which areas should be of highest priority for future implementation actions.
C63: Tool Components
C64: 1. Instructions 2. Participant Lists 3. One Health Indicators by Sector 4. Indicator and JPA Crosswalk (sector specific) HH- Indicator and JPA Crosswalk (Human Health Sector Only) AH - Indicator and JPA Crosswalk (Animal Health Sector Only) W - Indicator and JPA Crosswalk (Wildlife Sector Only) E - Indicator and JPA Crosswalk (Environment Sector Only) 5. Indicator and Priority Areas Crosswalk (sector specific) HH - Indicator and Priority Areas Crosswalk (Human Health Sector Only) AH - Indicator and Priority Areas Crosswalk (Animal Health Sector Only) W - Indicator and Priority Areas Crosswalk (Wildlife Sector Only) E - Indicator and Priority Areas Crosswalk (Environment Sector Only) 6. One Health Indicators by Consensus 7. Indicator and JPA Crosswalk (Combined) 8. Indicator and Prioriy Area Cross walk (Combined) 9. Results Dashboard 10. Actions and Tools 11. Definitions 12. Acknowledgements
C66: How to Use the OHMT
C67: Instruction Page: This worksheet provides a guide to complete the OHMT. For detailed instructions, refer to the OHMT Instructions document.
C68: Participant Lists: Indicate the country for the assessment, assessment dates, and the names and affiliation of the workshop facilitators. Provide details on the sector specific and combined sector workshop participants.
C69: One Health Indicators by Sector: Use the drop-down menu to select a Yes or No for each indicator element question. A total score (maximum of 10) will be automatically calculated for each indicator. Discussion associated with each indicator should be captured in the notes column. One Health Indicators by Consensus: Review the sector specific scores for each indicator. Use the drop-down menue to select Yes or No for each indicator element column based from consensus by all sectors. A total consensus score (maximum of 10) will be automatically calculated for each indicator. Consensus discusstion associated with each indicator should be captured in the notes column. Results from the consensus scores will be displayed on the results dashboard. (Be more specific here - Three other sectors will evaluate the score of one given sector. Each sector will need to provide the evidence and justification of their score which will be reviewed by other sectors during the consensus workshop).
C70: Indicator and JPA Crosswalk (All Sectors): For each indicator/ JPA Action Track linkage question, use the drop-down menu to select a Yes or No response. This sheet is the combined responses from all four sectors. Indicator and JPA Crosswalk (Sector Specific): For each indicator/ JPA Action Track linkage question, use the drop-down menu to select a Yes or No response. Each sector completes only thier sector specific worksheet as follows: - The human health sector should fill in worksheet 4HH. - The animal health sector should fill in worksheet 4AH. - The wildlife sector (both sub-sectors) should fill in worksheet 4W. - The environment sector should fill in worksheet 4E. The discussion points can be captured under the comments section at the bottom of the worksheet.
C71: Indicator and Priority Area Crosswalk (All Sectors): For each indicator/ priority area linkage question, use the drop-down menu to select a Yes or No response. This sheet is the combined responses for all four sectors. Indicator and Priority Area Linkages Crosswalk (Sector-specific) - For each indicator/ priority area linkage question, use the drop-down menu to select a Yes or No response. Each sector completes only thier sector specific worksheet as follows: - The human health sector should fill in worksheet 5HH. - The animal health sector should fill in worksheet 5AH. - The wildlife sector (both sub-sectors) should fill in worksheet 5W. - The environment sector should fill in worksheet 5E. The discussion points can be captured under the comments section at the bottom of the worksheet.
C72: Results Dashboard: This worksheet provides a graphical display of the indicator scores and the results from the two crosswalks. Refer to OHMT Instructions document for a description of the results.
C73: Actions and Tools: In the combined sector workshop, government respresentatives from each of the four sectors, are asked to list a maximum of two actions to improve the score from the sector specific workshop results for each of the indicators, JPA Action Tracks, and the priority areas. For each action, the responsible ministry or department, supporting ministries/departments, and Quadripartite support are identified, including focal points. The timeline is indicated for each action. To improve the overall country score and results from the assessment, the participants select the relevent tools and resources that will be completed as part of the action. Refer to the OHMT Instructions document for further detail.
C74: Definitions: Refer to the list of OHMT definitions for the decriptions of the terms used in the tool and also the OHMT Instructions document.
C77: 2024-01-09

Sheet 2. Participant Lists
G1: Participants Lists
C3: Country | O3: Revised to include the three step appraoch
C4: Sector Specific Workshops | D4: Human Health | E4: Animal Health | F4: Wildlife | G4: Environment
C5: Assessment Date (DD/MM/YYYY)
C6: Name(s) of Workshop Facilitator and Affiliation
C8: Sector Specific Workshop Participant Lists (Step 1)
C10: Human Health Workshop Participant List
C11: First Name | D11: Last Name | E11: Type of Organization | F11: Name of Organization | G11: Department/Unit (as relevent) | H11: Email | I11: Whats App/Line Number
N12: Drop down Organization
N13: National Government
N14: Sub-National Government
N15: Local Government
N16: Academia
N17: NGO
N18: Civil Society
N19: Private Sector
N20: International Organization
N21: Other
N22: Drop down Organization
N23: National Government
N24: Sub-national Government
N25: Local Government
N27: Sector
N28: Human Health
N29: Animal Health
N30: Wildlife
N31: Environment
C33: Animal Health Workshop Participant List | N33: Wildlife focus area
C34: First Name | D34: Last Name | E34: Type of Organization | F34: Name of Organization | G34: Department/Unit (as relevent) | H34: Email | I34: Whats App/Line Number | N34: Wildlife Disease
N35: Wildlife Mangement & Conservation
C56: Wildlife Workshop Participant List
C57: First Name | D57: Last Name | E57: Type of Organization | F57: Name of Organization | G57: Department/Unit (as relevent) | H57: Wildlife Sub-Sector | I57: Email | J57: Whats App/Line Number
C79: Environment Workshop Participant List
C80: First Name | D80: Last Name | E80: Type of Organization | F80: Name of Organization | G80: Department/Unit (as relevent) | H80: Email | I80: Whats App/Line Number
C102: Country
C103: Combined Sector Workshop (Step 2)
C104: Assessment Date (DD/MM/YYYY)
C105: Name(s) of Workshop Facilitator and Affiliation
C109: Combined Sector Workshop for Government Participant List (Step 2)
C111: First Name | D111: Last Name | E111: Sector | F111: Level of Government | G111: Ministry/Department Name | H111: Department/Unit (as relevent) | I111: Email | J111: Whats App/Line Number
C154: Country
C155: Combined Sector Workshop (Step 3)
C156: Assessment Date (DD/MM/YYYY)
C157: Name(s) of Workshop Facilitator and Affiliation
C161: Combined Sector Workshop for Government Participant List (Step 3)
C163: First Name | D163: Last Name | E163: Sector | F163: Level of Government | G163: Ministry/Department Name | H163: Department/Unit (as relevent) | I163: Email | J163: Whats App/Line Number

Sheet 3. OH Indicators By Sector
C1: One Health Indicators by Sector [click icon to filter by sector]
A2: Indicator Number | B2: Indicator Name | C2: Description | D2: Element | E2: Sector | F2: Yes or No (select from dropdown) | H2: Score | I2: Comments | J2: Sector Score by Indicator
A3: 1 | B3: National One Health Coordination Mechanism | C3: A government endorsed One Health Coordination Mechanism (or similar structure) exists, is led by a high level government official (such as a Prime Minister or Deputy Prime Minister), includes representatives from each of the Ministries/Departments responsible for human health, animal health, widlife, and the environment, and includes techincal areas relevent to all sectors (not limited to specific technical areas such as zoonotic disease, antimicrobial resistance, or food safety). | D3: Is there an government endorsed One Health Coordination Mechanism that officially acknowledges the human health Ministry/Department as a partner in One Health implementation? | E3: H | F3: Yes | G3: =IF(F3="Yes",1,0) -> 1 | H3: =SUM(G3:G12)/10*10 -> 4 | I3: who is the high level government official leading OH Coordination mechanism? | J3: =SUM(G3:G3)/2*10 -> 5
D4: Do government regulations, directives, legislation or policy ensure that the human health Ministry/Department participates in the national One Health Coordination Mechanism? | E4: H | F4: Yes | G4: 1
D5: Is there a government endorsed One Health Coordination Mechanism that officially acknowledges the animal health Ministry/Department as a partner in One Health implementation? | E5: A | F5: Yes | G5: 1 | J5: =SUM(G5:G5)/2*10 -> 5
D6: Do government regulations, directives, legislation or policy ensure that the animal health Ministry/Department participates in the national One Health Coordination Mechanism? | E6: A | F6: No | G6: =IF(F6="Yes",1,0) -> 0
D7: Is there a government endorsed One Health Coordination Mechanism that officially acknowledges the Ministry/Department with responsibilities for wildlife disease as a partner in One Health implementation? | E7: WD | F7: Yes | G7: 1 | J7: =SUM(G7:G7)/2*10 -> 5
D8: Do government regulations, directives, legislation or policy ensure that the Ministry/Department with responsibilities for wildlife disease participates in the national One Health Coordination Mechanism? | E8: WD | F8: No | G8: =IF(F8="Yes",1,0) -> 0
D9: Is there an officially recognized One Health Coordination Mechanism that officially acknowledges the Ministry/Department with responsibilities for wildlife management & conservation as a partner in One Health implementation? | E9: WMC | F9: No | G9: =IF(F9="Yes",1,0) -> 0
D10: Do government regulations, directives, legislation or policy ensure that the Ministry/Department with responsibilities for wildlife management & conservation participates in the national One Health Coordination Mechanism? | E10: WMC | F10: No | G10: =IF(F10="Yes",1,0) -> 0
D11: Is there a government endorsed One Health Coordination Mechanism that officially acknowledges the environment sector as a partner in One Health implementation? | E11: E | F11: No | G11: 0 | J11: =SUM(G11:G11)/2*10 -> 0
D12: Do government regulations, directives, legislation or policy ensure that the Ministry/Department with responsibilities for the environment to participate in the national One Health Coordination Mechanism? | E12: E | F12: No | G12: 0
A13: 2 | B13: Government Commitment of Human Resources to Support One Health | C13: The Ministries/Departments with responsibilities for human health, animal health, wildlife, and the environment commit the human resources needed for the One Health Coordination Mechanism and the One Health technical working groups, and to support One Health implementation at the sub-national and local levels. | D13: Does the human health Ministry/Department commit dedicated human resource person(s) to represent the Ministry/Department in the One Health Coordination Mechanism? | E13: H | F13: Yes | G13: 1 | H13: =SUM(G13:G32)/20*10 -> 3 | J13: =SUM(G13:G15)/3*10 -> 10
D14: Does the human health Ministry/Department commit technical human resource person(s) to support One Health technical working groups & the national One Health Action Plan? | E14: H | F14: Yes | G14: 1
D15: Does the human health Ministry/Department commit human resources person(s) at the sub-national or provincial level to support One Health implementation? | E15: H | F15: Yes | G15: 1
D16: Does the human health Ministry/Department commit human resources person(s) at the local, district, or community level to support One Health implementation? | E16: H | F16: No | G16: 0
D17: Does the animal health Ministry/Department commit dedicated human resource person(s) to represent the Ministry/Department in the One Health Coordination Mechanism? | E17: A | F17: Yes | G17: 1 | J17: =SUM(G17:G19)/3*10 -> 6.666666667
D18: Does the animal health Ministry/Department commit technical human resource person(s) to support One Health technical working groups & the national One Health Action Plan?? | E18: A | F18: No | G18: 0
D19: Does the animal health Ministry/Department commit human resources person(s) at the sub-national or provincial level to support One Health implementation? | E19: A | F19: Yes | G19: 1
D20: Does the animal health Ministry/Department commit human resources person(s) at the local, district, or community level to support One Health implementation? | E20: A | F20: No | G20: 0
D21: Does the Ministry/Department with responsibilities for wildlife disease commit dedicated human resource person(s) to represent the Ministry/Department in the One Health Coordination Mechanism? | E21: WD | F21: Yes | G21: 1 | J21: =SUM(G21:G23)/3*10 -> 3.333333333
D22: Does the Ministry/Department with responsibilities for wildlife disease commit technical human resource person(s) to support One Health technical working groups & the national One Health Action Plan? | E22: WD | F22: No | G22: 0
D23: Does the Ministry/Department with responsibilities for wildlife disease commit human resources person(s) at the sub-national or provincial level to support One Health implementation? | E23: WD | F23: No | G23: 0
D24: Does the Ministry/Department with responsibilities for wildlife disease commit human resources person(s) at the local, district, or community level to support One Health implementation? | E24: WD | F24: No | G24: 0
D25: Does the Ministry/Department with responsibilities for wildlife management & conservation commit dedicated human resource person(s) to represent the Ministry/Department in the One Health Coordination Mechanism? | E25: WMC | F25: No | G25: 0
D26: Does the Ministry/Department with responsibilities for wildlife management & conservation committechnical human resource person(s) to support One Health technical working groups & the national One Health Action Plan? | E26: WMC | F26: No | G26: 0
D27: Does the Ministry/Department with responsibilities for wildlife management & conservation commit human resources person(s) at the sub-national or provincial level to support One Health implementation? | E27: WMC | F27: No | G27: 0
D28: Does the Ministry/Department with responsibilities for wildlife management & conservation commit human resources person(s) at the local, district, or community level to support One Health implementation? | E28: WMC | F28: No | G28: 0
D29: Does the Ministry/Department with responsibilities for the environment commit dedicated human resource person(s) to represent the Ministry/Department in the One Health Coordination Mechanism? | E29: E | F29: No | G29: 0 | J29: =SUM(G29:G31)/3*10 -> 0
D30: Does the Ministry/Department with responsibilities for the environment commit technical human resource person(s) to support One Health technical working groups & the national One Health Action Plan? | E30: E | F30: No | G30: 0
D31: Does the Ministry/Department with responsibilities for the environment commit human resources person(s) at the sub-national or provincial level to support One Health implementation? | E31: E | F31: No | G31: 0
D32: Does the Ministry/Department with responsibilities for the environment commit human resources person(s) at the local, district, or community level to support One Health implementation? | E32: E | F32: No | G32: 0
A33: 3 | B33: Government Support for One Health Field Activity Implementation | C33: The Ministries/Departments with responsibilities for human health, animal health, wildlife, and the environment commit the finanical resources needed to support implementation of One Health technical activitites & field implementation. | D33: Are there dedicated finanical resources to support the human health sector to particiapte in One Health technical activitites & field implementation at the sub-national or provincial level ? | E33: H | F33: Yes | G33: 1 | H33: =SUM(G33:G42)/10*10 -> 3
D34: Are there dedicated finanical resources to support the human health sector to particiapte in One Health technical activitites & field implementation at local, district, or community level? | E34: H | F34: No | G34: 0
D35: Are there dedicated finanical resources to support the animal health sector to particiapte in One Health technical activitites & field implementation at the sub-national or provincial level? | E35: A | F35: Yes | G35: 1
D36: Are there dedicated finanical resources to support the animal health sector to particiapte in One Health technical activitites & field implementation at the local, district, or community level? | E36: A | F36: No | G36: 0
D37: Are there dedicated finanical resources to support the Ministry/Department with responsibilities for wildlife disease to particiapte in One Health technical activitites & field implementation atthe sub-national or provinical level? | E37: WD | F37: No | G37: 0
D38: Are there dedicated finanical resources to support the Ministry/Department with responsibilities for wildlife disease to particiapte in One Health technical activitites & field implementation at the local, district, or community level? | E38: WD | F38: No | G38: 0
D39: Are there dedicated finanical resources to support the Ministry/Department with responsibilities for wildlife management & conservation sector to particiapte in One Health technical activitites & field implementation at the sub-national or provinical level? | E39: WMC | F39: No | G39: 0
D40: Are there dedicated finanical resources to support the Ministry/Department with responsibilities for wildlife management & conservation sector to particiapte in One Health technical activitites & field implementation at the local, district, or community level? | E40: WMC | F40: No | G40: 0
D41: Are there dedicated finanical resources to support the Ministry/Department with responsibilities for the environment in their participation in One Health implemention at the sub-national or provinical level? | E41: E | F41: Yes | G41: 1
D42: Are there dedicated finanical resources to support the Ministry/Department with responsibilities for the environment in their participation in One Health implemention at the local, district, or community level? | E42: E | F42: No | G42: 0
A43: 4 | B43: National One Health Strategy | C43: There is a national One Health Strategy that has been endorsed by the Ministries/Departments with responsibilities for human health, animal health, wildlife, and the environment. The OH Strategy includes technical priorities relevent to the human health, animal health, wildlife, and environment sectors. | D43: Is there a national One Health Strategy that has been endorsed by the human health Ministry/Department? | E43: H | F43: Yes | G43: 1 | H43: =SUM(G43:G52)/10*10 -> 8 | J43: =G43/1*10 -> 10
D44: Does the national One Health Strategy contains techncial priorities of the human health sector? | E44: H | F44: Yes | G44: 1
D45: Is there a national One Health Strategy that has been endorsed by the animal health Ministry/Department? | E45: A | F45: Yes | G45: 1 | J45: =G45/1*10 -> 10
D46: Does the national One Health Strategy contains techncial priorities of the animal health sector? | E46: A | F46: Yes | G46: 1
D47: Is there a national One Health Strategy that has been endorsed by the Ministry/Department with responsibilities for wildlife disease? | E47: WD | F47: Yes | G47: 1 | J47: 10
D48: Does the national One Health Strategy contains techncial priorities of the wildlife disease sub-sector? | E48: WD | F48: Yes | G48: 1
D49: Is there a national One Health Strategy that has been endorsed by the Ministry/Department with responsibilities for wildlife management & conservation? | E49: WMC | F49: No | G49: 0
D50: Does the national One Health Strategy contains techncial priorities of the wildlife management & conservation sub-sector? | E50: WMC | F50: Yes | G50: 1
D51: Is there a national One Health Strategy that has been endorsed by the Ministry/Department with responsibilities for the environment? | E51: E | F51: No | G51: 0 | J51: 0
D52: Does the national One Health Strategy contains techncial priorities of the environment sector? | E52: E | F52: Yes | G52: 1
A53: 5 | B53: National One Health Action Plan | C53: There is a national One Health Action Plan that has been endorsed by the Ministries/Departments with responsibilities for human health, animal health, wildlife, and the environment. The OH Action Plan includes technical activities relevent to the human health, animal health, wildlife, and environment sectors. | D53: Is there a national One Health Action Plan that has been endorsed by the human health Ministry/Department? | E53: H | F53: Yes | G53: 1 | H53: =SUM(G53:G62)/10*10 -> 8
D54: Does the national One Health Action Plan contain activities relevent to the human health sector? | E54: H | F54: Yes | G54: 1
D55: Is there a national One Health Action Plan that has been endorsed by the animal health Ministry/Department? | E55: A | F55: Yes | G55: 1
D56: Does the national One Health Action Plan contain activities relevent to the animal health sector? | E56: A | F56: Yes | G56: 1
D57: Is there a national One Health Action Plan that has been endorsed by the Ministry/Department with responsibilities for wildlife disease? | E57: WD | F57: Yes | G57: 1
D58: Does the national One Health Action Plan contain activities relevent to the wildlife disease sub-sector? | E58: WD | F58: Yes | G58: 1
D59: Is there a national One Health Action Plan that has been endorsed by the Ministry/Department with responsibilities for wildlife management & conservation? | E59: WMC | F59: No | G59: 0
D60: Does the national One Health Action Plan contain activities relevent to the wildlife management & conservation sub-sector? | E60: WMC | F60: Yes | G60: 1
D61: Is there a national One Health Action Plan that has been endorsed by the Ministry/Department with responsibilities for the environment? | E61: E | F61: No | G61: 0
D62: Does the national One Health Action Plan contain activities relevent to the environment sector? | E62: E | F62: Yes | G62: 1
A63: 6 | B63: One Health Information Sharing | C63: The Ministries/Departments with responsibilities for human health, animal health, wildlife, and the environment have mechanisms in place to share relevant One Health information and data amongst the Ministries/Departments and that this information and data are shared in a consistent and timely manner at national, sub-national and local levels. | D63: Does the human health Ministry/Department have an unofficial or official mechanism, policy or agreement in place to ensure One Health information and data sharing with the Ministries/Departments responsible for animal health, wildlife, and the environment in a consistent and timely manner at the central government level? | E63: H | F63: Yes | G63: 1 | H63: =SUM(G63:G77)/15*10 -> 6
D64: Does the human health Ministry/Department have an unofficial or official mechanism, policy or agreement in place to ensure One Health information and data sharing with the Ministries/Departments responsible for animal health, wildlife, and the environment in a consistent and timely manner at the Provincial or sub-national government level? | E64: H | F64: Yes | G64: 1
D65: Does the human health Ministry/Department have an unofficial or official mechanism, policy or agreement in place to ensure One Health information and data sharing with the Ministries/Departments responsible for animal health, wildlife, and the environment in a consistent and timely manner at the District or local government level? | E65: H | F65: No | G65: 0
D66: Does the animal health Ministry/Department have an unofficial or official mechanism, policy or agreement in place to ensure One Health information and data sharing with the Ministries/Departments responsible for human health, wildlife, and the environment in a consistent and timely manner at the central government level? | E66: A | F66: Yes | G66: 1
D67: Does the animal health Ministry/Department have an unofficial or official mechanism, policy or agreement in place to ensure One Health information and data sharing with the Ministries/Departments responsible for human health, wildlife, and the environment in a consistent and timely manner at the Provincial or sub-national government level? | E67: A | F67: Yes | G67: 1
D68: Does the animal health Ministry/Department have an unofficial or official mechanism, policy or agreement in place to ensure One Health information and data sharing with the Ministries/Departments responsible for animal health, wildlife, and the environment in a consistent and timely manner at the District or local government level? | E68: A | F68: Yes | G68: 1
D69: Does the Ministry/Department with responsibilities for wildlife disease have an unofficial or official mechanism, policy or agreement in place to ensure One Health information and data sharing with the Ministries/Departments responsible for human health, animal health, and the environment in a consistent and timely manner at the central government level? | E69: WD | F69: Yes | G69: 1
D70: Does the Ministry/Department with responsibilities for wildlife disease have an unofficial or official mechanism, policy or agreement in place to ensure One Health information and data sharing with the Ministries/Departments responsible for human health, animal health, and the environment in a consistent and timely manner at the Provincial or sub-national government level? | E70: WD | F70: Yes | G70: 1
D71: Does the Ministry/Department with responsibilities for wildlife disease have an unofficial or official mechanism, policy or agreement in place to ensure One Health information and data sharing with the Ministries/Departments responsible for human health, animal health, and the environment in a consistent and timely manner at the District or local government level? | E71: WD | F71: No | G71: 0
D72: Does the Ministry/Department with responsibilities for wildlife management & conservation have an unofficial or official mechanism, policy or agreement in place to ensure One Health information and data sharing with the Ministries/Departments responsible for human health, animal health, and the environment in a consistent and timely manner at the central government level? | E72: WMC | F72: No | G72: 0
D73: Does the Ministry/Department with responsibilities for wildlife management & conservation have an unofficial or official mechanism, policy or agreement in place to ensure One Health information and data sharing with the Ministries/Departments responsible for human health, animal health, and the environment in a consistent and timely manner at the Provincial or sub-national government level? | E73: WMC | F73: No | G73: 0
D74: Does the Ministry/Department with responsibilities for wildlife management & conservation have an unofficial or official mechanism, policy or agreement in place to ensure One Health information and data sharing with the Ministries/Departments responsible for human health, animal health, and the environment in a consistent and timely manner at the District or local government level? | E74: WMC | F74: No | G74: 0
D75: Does the Ministry/Department with responsibilities for the environment have an unofficial or official mechanism, policy or agreement in place to ensure One Health information and data sharing with the Ministries/Departments responsible for human health, animal health, and the environment in a consistent and timely manner at the central government level? | E75: E | F75: Yes | G75: 1
D76: Does the Ministry/Department with responsibilities for the environment have an unofficial or official mechanism, policy or agreement in place to ensure One Health information and data sharing with the Ministries/Departments responsible for human health, animal health, and the environment in a consistent and timely manner at the Provincial or sub-national government level? | E76: E | F76: Yes | G76: 1
D77: Does the Ministry/Department with responsibilities for the environment have an unofficial or official mechanism, policy or agreement in place to ensure One Health information and data sharing with the Ministries/Departments responsible for human health, animal health, and the environment in a consistent and timely manner at the District or local government level? | E77: E | F77: No | G77: 0
A78: 7 | B78: One Health Policy | C78: The Ministries/Departments with responsibilities for human health, animal health, wildlife, and the environment have policies in place that require collaboration for areas of work at the human-animal-wildlife-environment interface that are not limited to specific technical areas of work or in an emergency response. | D78: Does the human health Ministry/Department have policies in place that mandate collaboration for areas of work at the human-animal-wildlife-environment interface? If yes, please specify which technical areas of work and which other sectors (animal health, wildlife, and the environment) are involved in the comments column. | E78: H | F78: Yes | G78: 1 | H78: =SUM(G78:G82)/5*10 -> 6 | J78: 10
D79: Does the animal health Ministry/Department have policies in place that mandate collaboration for areas of work at the human-animal-wildlife-environment interface? If yes, please specify which technical areas of work and which other sectors (animal health, wildlife, and the environment) are involved in the comments column. | E79: A | F79: Yes | G79: 1 | J79: 10
D80: Does the Ministry/Department with responsibilities for wildlife disease have policies in place that mandate collaboration for areas of work at the human-animal-wildlife-environment interface? If yes, please specify which technical areas of work and which other sectors (animal health, wildlife, and the environment) are involved in the comments column. | E80: WD | F80: No | G80: 0 | J80: 0
D81: Does the Ministry/Department with responsibilities for wildlife management & conservation have policies in place that mandate collaboration for areas of work at the human-animal-wildlife-environment interface? If yes, please specify which technical areas of work and which other sectors (animal health, wildlife, and the environment) are involved in the comments column. | E81: WMC | F81: No | G81: 0
D82: Does the Ministry/Department with responsibilities for environment have policies in place that mandate collaboration for areas of work at the human-animal-wildlife-environment interface? If yes, please specify which technical areas of work and which other sectors (animal health, wildlife, and the environment) are involved in the comments column. | E82: E | F82: Yes | G82: 1 | J82: 10
A83: 8 | B83: National One Health Risk Communication Strategy | C83: There is a national One Health Risk Communication Strategy that has been endorsed by the Ministries/Departments and includes priorities of the human health, animal health, wildlife, and the environment sectors. | D83: Is there is a national One Health Risk Communication Strategy that has been endorsed by the human health Ministry/Department? | E83: H | F83: Yes | G83: 1 | H83: =SUM(G83:G95)/15*10 -> 4 | J83: 10
D84: The national One Health Risk Communication Strategy includes risks and threats relevent to the human health sector? | E84: H | F84: Yes | G84: 1 | J84: 10
D85: The human health Ministry/Department has assigned a communication officer to support the OH communication strategy and coordinate with the other Ministries/Departments responsibile for animal health, wildlife, and the environment? | E85: H | F85: No | G85: 0 | J85: 0
D86: Is there a national One Health Risk Communication Strategy that has been endorsed by the animal health Ministry/Department? | E86: A | F86: Yes | G86: 1
D87: The national One Health Risk Communication Strategy includes risks and threats relevent to the animal health sector? | E87: A | F87: Yes | G87: 1
D88: Does the animal health Ministry/Department has assigned a communication officer to support the OH communication strategy and coordinate with the other Ministries/Departments responsibile for human health, wildlife and the environment? | E88: A | F88: No | G88: 0
D89: Is there a national One Health Risk Communication Strategy that has been endorsed by the Ministry/Department with responsibilities for wildlife disease? | E89: WD | F89: No | G89: 0 | J89: 0
D90: The national One Health Risk Communication Strategy includes risks and threats relevent to the wildlife disease sub-sector? | E90: WD | F90: Yes | G90: 1
D91: The Ministry/Department with responsibilities for wildlife disease has assigned a communication officer to support the OH communication strategy and coordinate with the other Ministries/Departments with responsibilities for human health, animal health, and the environment? | E91: WD | F91: No | G91: 0
D92: Is there a national One Health Risk Communication Strategy that has been endorsed by the Ministry/Department with responsibilities for wildlife management & conservation? | E92: WMC | F92: No | G92: 0
D93: The national One Health Risk Communication Strategy includes risks and threats relevent to the wildlife management & conservation sub-sector? | E93: WMC | F93: No | G93: 0
D94: The Ministry/Department with responsibilities for wildlife management & conservation has assigned a communication officer to support the OH communication strategy and coordinate with the other Ministries/Departments with responsibilities for human health, animal health, and the environment? | E94: WMC | F94: No | G94: 0
D95: Is there a national One Health Risk Communication Strategy that has been endorsed by the Ministry/Department with responsibilities for the environment? | E95: E | F95: Yes | G95: 1
D96: The national One Health Risk Communication Strategy includes risks and threats relevent to the environment sector? | E96: E | F96: Yes | G96: 1
D97: The Ministry/Department with responsibilities for the environment has assigned a communication officer to support the OH communication strategy and coordinate with the other Ministries/Departments with responsibilities for human health, animal health, and wildlife? | E97: E | F97: No | G97: 0
A98: 9 | B98: Whole of Society Approach to One Health | C98: There is an established network of representatives from academia, NGO's, civil society, and the private sector from across the human health, animal health, wildlife, and environment sectors who are partners in national One Health implementation. | D98: Has the government established a human health sector network of partners that includes academia, NGO's, civil society, & private sector for One Health collaborations? | E98: H | F98: No | G98: =IF(F98="Yes",1,0) -> 0 | H98: =SUM(G98:G112)/15*10 -> 5.333333333 | J98: =SUM(G98:G100)/4*10 -> 5
D99: Did the human health Ministry/Department consult with the relevent academia, NGO's, civil society, private sector partners on the development of the national One Health Strategy? | E99: H | F99: Yes | G99: 1
D100: Does the human health Ministry/Department work with the partners from relevent academia, NGO's, civil society, private sector to implement the national One Health Action Plan? | E100: H | F100: Yes | G100: 1
D101: Has the government established an animal health sector network of partners that includes academia, NGO's, civil society, & private sector for One Health collaborations? | E101: A | F101: Yes | G101: 1 | J101: =SUM(G101:G103)/4*10 -> 7.5
D102: Did the animal health Ministry/Department consult with the relevent academia, NGO's, civil society, private sector partners on the development of the national One Health Strategy? | E102: A | F102: Yes | G102: 1
D103: Does the animal health Ministry/Department work with the partners from relevent academia, NGO's, civil society, private sector to implement the national One Health Action Plan? | E103: A | F103: Yes | G103: 1
D104: Has the government established a wildlife disease network of partners that includes academia, NGO's, civil society, & private sector for One Health collaborations? | E104: WD | F104: Yes | G104: 1 | J104: =SUM(G104:G106)/4*10 -> 7.5
D105: Did the Ministry/Department with responsibilities for wildlife disease consult with the relevent academia, NGO's, civil society, private sector partners on the development of the national One Health Strategy? | E105: WD | F105: Yes | G105: 1
D106: Does the Ministry/Department with responsibilities for wildlife disease work with the partners from relevent academia, NGO's, civil society, private sector to implement the national One Health Action Plan? | E106: WD | F106: Yes | G106: 1
D107: Has the government established a wildlife management & conservation sector network of partners that includes academia, NGO's, civil society, & private sector for One Health collaborations? | E107: WMC | F107: No | G107: 0
D108: Did the Ministry/Department with responsibilities for wildlife management & conservation consult with the relevent academia, NGO's, civil society, private sector partners on the development of the national One Health Strategy? | E108: WMC | F108: No | G108: 0
D109: Does the Ministry/Department with responsibilities for wildlife management & conservation work with the partners from relevent academia, NGO's, civil society, private sector to implement the national One Health Action Plan? | E109: WMC | F109: No | G109: 0
D110: Has the government established an environment network of partners that includes academia, NGO's, civil society, & private sector for One Health collaborations? | E110: E | F110: No | G110: 0 | J110: =SUM(G110:G112)/4*10 -> 0
D111: Did the Ministry/Department with responsibilities for the environment consult with the relevent academia, NGO's, civil society, private sector partners on the development of the national One Health Strategy? | E111: E | F111: No | G111: 0
D112: Does the Ministry/Department with responsibilities for the environment work with the partners from relevent academia, NGO's, civil society, private sector to implement the national One Health Action Plan? | E112: E | F112: No | G112: 0
A113: 10 | B113: Competent One Health Workforce | C113: There is a competent One Health workforce consisting of representatives from human health, animal health, wildlife and the environment with established in-service training programs and joint sector One Health training. | D113: Has the human health Ministry/Department completed a workforce needs assessment or gap analysis using the FAO/WHO/WOAH One Health Field Epidemiology Competency Framework the within the last 3 years? | E113: H | F113: Yes | G113: =IF(F113="Yes",1,0) -> 1 | H113: =SUM(G113:G132)/20*10 -> 4.5 | J113: =SUM(G113:G116)/7*10 -> 4.285714286
D114: Does the human health Ministry/Department have an in-service field training program? | E114: H | F114: Yes | G114: =IF(F114="Yes",1,0) -> 1
D115: Is the human health Ministry/Department's in-service field training program accredited by an academic institution or professional regulatory body? | E115: H | F115: Yes | G115: 1
D116: Does the human health Ministry/Department in-service field training program include concurrent training with participants from the other three sectors (animal health, wildlife, and the environment)? | E116: H | F116: No | G116: 0
D117: Has the animal health Ministry/Department completed a workforce needs assessment or gap analysis using the FAO/WHO/WOAH One Health Field Epidemiology Competency Framework within the last 3 years? | E117: A | F117: Yes | G117: =IF(F117="Yes",1,0) -> 1 | J117: =SUM(G117:G120)/7*10 -> 4.285714286
D118: Does the animal health Ministry/Department have an in-service field training program? | E118: A | F118: Yes | G118: =IF(F118="Yes",1,0) -> 1
D119: Is the animal health Ministry/Department's in-service field training program accredited by an academic institution or professional regulatory body? | E119: A | F119: Yes | G119: 1
D120: Does the animal health Ministry/Department in-service field training program include concurrent training with participants from the other three sectors (human health, wildlife, and the environment)? | E120: A | F120: No | G120: 0
D121: Has the Ministry/Department with responsibilities for wildlife disease completed a workforce needs assessment or gap analysis using the FAO/WHO/WOAH One Health Field Epidemiology Competency Framework within the last 3 years? | E121: WD | F121: Yes | G121: 1 | J121: =SUM(G121:G124)/7*10 -> 4.285714286
D122: Does the Ministry/Department with responsibilities for wildlife disease have an in-service field training program? | E122: WD | F122: Yes | G122: 1
D123: Is the Ministry/Department with responsibilities for wildlife disease's in-service field training program accredited by an academic institution or professional regulatory body? | E123: WD | F123: Yes | G123: 1
D124: Does the Ministry/Department with responsibilities for wildlife disease have concurrent in-service training with participants from the other three sectors (human health, animal health, and the environment)? | E124: WD | F124: No | G124: 0
D125: Has the Ministry/Department with responsibilities for wildlife mangement & conservation completed a workforce needs assessment or gap analysis using One Health field training competenices within the last 3 years? | E125: WMC | F125: No | G125: 0
D126: Does the Ministry/Department with responsibilities for wildlife management & conservation have an in-service field training program? | E126: WMC | F126: No | G126: 0
D127: Is the Ministry/Department with responsibilities for wildlife management & conservation's in-service field training program accredited by an academic institution or professional regulatory body? | E127: WMC | F127: No | G127: 0
D128: Does the Ministry/Department with responsibilities for wildlife management & conservation have concurrent in-service training with participants from the other three sectors (human health, animal health, and the environment)? | E128: WMC | F128: No | G128: 0
D129: Has the Ministry/Department with responsibilities for the environment completed a workforce needs assessment or gap analysis using One Health field training competenices within the last 3 years? | E129: E | F129: No | G129: 0 | J129: =SUM(G129:G132)/7*10 -> 0
D130: Does the Ministry/Department with responsibilities for the environment have an in-service field training program? | E130: E | F130: No | G130: 0
D131: Is the Ministry/Department with responsibilities for the environment's in-service field training program accredited by an academic institution or professional regulatory body? | E131: E | F131: No | G131: 0
D132: Does the Ministry/Department with responsibilities for the environment One Health have concurrent in-service training with participants from the other three sectors (human health, animal health, and wildlife)? | E132: E | F132: No | G132: 0
A133: Total Overall Score (All Sectors Combined) | H133: =SUM(G3:G132)/130*10 -> 5
E135: Overall Score by Sector
C136: Final score taken place during the consensus workshop. | E136: Human Health | G136: =SUM(G3,G4,G13,G14,G15,G16, G33, G34,G43,G44,G53,G54,G63,G64,G65,G78,G83,G84, G85,G98,G99,G100,G113,G114,G115, G116)/26*10 -> 7.692307692 | H136: =G136 -> 7.692307692
C137: Add a sheet to enter final scores to populate the dashboard | E137: Animal Health | G137: =SUM(G5,G6,G17,G18,G19,G20, G35, G36, G45,G46, G55, G56, G66, G67, G68, G79, G86, G87, G88, G101,G102, G103,G117,G118,G119,G120)/26*10 -> 7.692307692 | H137: 7.692307692
E138: Wildlife Disease | G138: =SUM(G7,G8,G21,G22,G23, G24,G37,G38,G47,G48,G57,G58,G69,G70,G71,G80,G81,G89,G90,G91,G104,G105,G106,G121,G122,G123)/26*10 -> 5.769230769 | H138: 5.769230769
E139: Wildlife Manangement & Conservation | G139: =SUM(G9:G10,G25:G28, G39:G40,G49:G50,G59:G60,G72:G74,G81,G92:G94,G107:G109,G125:G128)/26*10 -> 0.7692307692 | H139: 0.7692307692
E140: Widlife Combined | G140: =SUM(G7:G10,G21:G28,G37:G40,G47:G50+G57:G60,G69:G74,G80:G81,G89:G94,G104:G109,G121:G128)/52*10 -> 3.269230769 | H140: 3.269230769
E141: Environment | G141: =SUM(G11:G12,G29:G32,G41:G42,G51:G52,G61:G62,G75:G77,G82,G95:G97,G110:G112,G129:G132)/26*10 -> 3.076923077 | H141: 3.076923077

Sheet 4.HH Indicator x JPA Crosswalk
A3: OH INDICATORS | E3: ACTION TRACK SCORES
B4: INDICATOR DESCRIPTION | C4: ACTION TRACK LINKAGE QUESTION | E4: Action Track 1: Enhancing OH capacities to strengthen health systems | F4: Action Track 2: Reducing the risks from emerging and re-emerging zoonotic diseases | G4: Action Track 3: Controlling and eliminating endemic zoonotic, neglected tropical, and vector-borne diseases | H4: Action Track 4: Strengthening the assessment, management & communication of food safety risks | I4: Action Track 5: Curbing AMR | J4: Action Track 6: Integrating the environment into OH
D5: Total | E5: =COUNTIF(E6:E14, "Yes") -> 6 | F5: 5 | G5: 6 | H5: 7 | I5: 5 | J5: 5
A6: National One Health Coordination Mechanism | B6: A government endorsed One Health Coordination Mechanism (or similar structure) exists, is led by a high level government official (such as a Prime Minister or Deputy Prime Minister), includes representatives from each of the Ministries/Departments responsible for human health, animal health, widlife, and the environment, and includes techincal areas relevent to all sectors (not limited to specific technical areas such as zoonotic disease, antimicrobial resistance, or food safety). | C6: Does the National One Health Coordination Mechanism address or support each of the action tracks? | E6: Yes | F6: No | G6: No | H6: Yes | I6: Yes | J6: Yes
A7: Government Commitment of Human Resources to Support One Health | B7: The Ministries/Departments with responsibilities for human health, animal health, wildlife, and the environment commit the human resources needed for the One Health Coordination Mechanism and the One Health technical working groups, and to support One Health implementation at the sub-national and local levels. | C7: Does the Ministry/Department provide the human resources needed to support each of the action tracks? | E7: Yes | F7: No | G7: No | H7: Yes | I7: No | J7: Yes
A8: Government Support for One Health Field Activity Implementation | B8: The Ministries/Departments with responsibilities for human health, animal health, wildlife, and the environment commit the finanical resources needed to support implementation of One Health technical activitites & field implementation. | C8: Does the Ministry/Department provide the finanical resources needed to support each of the action tracks? | E8: Yes | F8: No | G8: Yes | H8: Yes | I8: Yes | J8: No
A9: National One Health Strategy | B9: There is a national One Health Strategy that has been endorsed by the Ministries/Departments with responsibilities for human health, animal health, wildlife, and the environment. The OH Strategy includes technical priorities relevent to the human health, animal health, wildlife, and environment sectors. | C9: Does the national One Health Strategy address each of the action tracks? | E9: Yes | F9: Yes | G9: Yes | H9: Yes | I9: Yes | J9: Yes
A10: National One Health Action Plan | B10: There is a national One Health Action Plan that has been endorsed by the Ministries/Departments with responsibilities for human health, animal health, wildlife, and the environment. The OH Action Plan includes technical activities relevent to the human health, animal health, wildlife, and environment sectors. | C10: Does the national One Health Action Plan address each of the action tracks? | E10: Yes | F10: Yes | G10: No | H10: Yes | I10: Yes | J10: No
A11: One Health Information Sharing | B11: The Ministries/Departments with responsibilities for human health, animal health, wildlife, and the environment have mechanisms in place to share relevant One Health information and data amongst the Ministries/Departments and that this information and data are shared in a consistent and timely manner at national, sub-national and local levels. | C11: Is information relating to each of the action tracks shared across the sectors? | E11: No | F11: No | G11: Yes | H11: Yes | I11: No | J11: No
A12: One Health Policy | B12: The Ministries/Departments with responsibilities for human health, animal health, wildlife, and the environment have policies in place that require collaboration for areas of work at the human-animal-wildlife-environment interface that are not limited to specific technical areas of work or in an emergency response. | C12: Is there policy to support each of the action tracks ? | E12: No | F12: Yes | G12: Yes | H12: No | I12: No | J12: No
A13: National One Health Risk Communication Strategy | B13: There is a national One Health Risk Communication Strategy that has been endorsed by the Ministries/Departments and includes priorities of the human health, animal health, wildlife, and the environment sectors. | C13: Does the joint One Health Risk Communication Strategy address each of the action tracks? | E13: Yes | F13: Yes | G13: Yes | H13: Yes | I13: Yes | J13: Yes | K13: Yes
A14: Whole of Society Approach to One Health | B14: There is an established network of representatives from academia, NGO's, civil society, and the private sector from across the human health, animal health, wildlife, and environment sectors who are partners in national One Health implementation. | C14: Are the relevant stakeholders included in efforts to address each of the actions tracks? | E14: No | F14: Yes | G14: Yes | H14: No | I14: No | J14: Yes
A15: Competent One Health Workforce | B15: There is a competent One Health workforce consisting of representatives from human health, animal health, wildlife and the environment with established in-service training programs and joint sector One Health training. | C15: Does the One Health workforce have the capacity to contribute to each of the action tracks? | E15: No | F15: Yes | G15: Yes | H15: Yes | I15: Yes | J15: Yes
A16: Comments
E22: Yes | F22: No
E23: =COUNTIF(E6:J15,"Yes") -> 39 | F23: =COUNTIF(E6:J15,"No") -> 21

Sheet 4.W Indicator x JPA Crosswalk
A3: OH INDICATORS | E3: ACTION TRACK SCORES
B4: INDICATOR DESCRIPTION | C4: ACTION TRACK LINKAGE QUESTION | E4: Action Track 1: Enhancing OH capacities to strengthen health systems | F4: Action Track 2: Reducing the risks from emerging and re-emerging zoonotic diseases | G4: Action Track 3: Controlling and eliminating endemic zoonotic, neglected tropical, and vector-borne diseases | H4: Action Track 4: Strengthening the assessment, management & communication of food safety risks | I4: Action Track 5: Curbing AMR | J4: Action Track 6: Integrating the environment into OH
D5: JPA Total | E5: =COUNTIF(E6:E15, "Yes") -> 5 | F5: 6 | G5: 5 | H5: 7 | I5: 5 | J5: 5
A6: National One Health Coordination Mechanism | B6: A government endorsed One Health Coordination Mechanism (or similar structure) exists, is led by a high level government official (such as a Prime Minister or Deputy Prime Minister), includes representatives from each of the Ministries/Departments responsible for human health, animal health, widlife, and the environment, and includes techincal areas relevent to all sectors (not limited to specific technical areas such as zoonotic disease, antimicrobial resistance, or food safety). | C6: Does the National One Health Coordination Mechanism address or support each of the action tracks? | E6: Yes | F6: No | G6: No | H6: Yes | I6: Yes | J6: Yes
A7: Government Commitment of Human Resources to Support One Health | B7: The Ministries/Departments with responsibilities for human health, animal health, wildlife, and the environment commit the human resources needed for the One Health Coordination Mechanism and the One Health technical working groups, and to support One Health implementation at the sub-national and local levels. | C7: Does the Ministry/Department provide the human resources needed to support each of the action tracks? | E7: Yes | F7: No | G7: No | H7: Yes | I7: No | J7: Yes
A8: Government Support for One Health Field Activity Implementation | B8: The Ministries/Departments with responsibilities for human health, animal health, wildlife, and the environment commit the finanical resources needed to support implementation of One Health technical activitites & field implementation. | C8: Does the Ministry/Department provide the finanical resources needed to support each of the action tracks? | E8: Yes | F8: No | G8: Yes | H8: Yes | I8: Yes | J8: No
A9: National One Health Strategy | B9: There is a national One Health Strategy that has been endorsed by the Ministries/Departments with responsibilities for human health, animal health, wildlife, and the environment. The OH Strategy includes technical priorities relevent to the human health, animal health, wildlife, and environment sectors. | C9: Does the national One Health Strategy address each of the action tracks? | E9: Yes | F9: Yes | G9: Yes | H9: Yes | I9: Yes | J9: Yes
A10: National One Health Action Plan | B10: There is a national One Health Action Plan that has been endorsed by the Ministries/Departments with responsibilities for human health, animal health, wildlife, and the environment. The OH Action Plan includes technical activities relevent to the human health, animal health, wildlife, and environment sectors. | C10: Does the national One Health Action Plan address each of the action tracks? | E10: Yes | F10: Yes | G10: No | H10: Yes | I10: Yes | J10: No
A11: One Health Information Sharing | B11: The Ministries/Departments with responsibilities for human health, animal health, wildlife, and the environment have mechanisms in place to share relevant One Health information and data amongst the Ministries/Departments and that this information and data are shared in a consistent and timely manner at national, sub-national and local levels. | C11: Is information relating to each of the action tracks shared across the sectors? | E11: No | F11: No | G11: Yes | H11: Yes | I11: No | J11: No
A12: One Health Policy | B12: The Ministries/Departments with responsibilities for human health, animal health, wildlife, and the environment have policies in place that require collaboration for areas of work at the human-animal-wildlife-environment interface that are not limited to specific technical areas of work or in an emergency response. | C12: Is there policy to support each of the action tracks ? | E12: No | F12: Yes | G12: Yes | H12: Yes | I12: Yes | J12: Yes
A13: National One Health Risk Communication Strategy | B13: There is a national One Health Risk Communication Strategy that has been endorsed by the Ministries/Departments and includes priorities of the human health, animal health, wildlife, and the environment sectors. | C13: Does the joint One Health Risk Communication Strategy address each of the action tracks? | E13: No | F13: Yes | G13: No | H13: No | I13: No | J13: No
A14: Whole of Society Approach to One Health | B14: There is an established network of representatives from academia, NGO's, civil society, and the private sector from across the human health, animal health, wildlife, and environment sectors who are partners in national One Health implementation. | C14: Are the relevant stakeholders included in efforts to address each of the actions tracks? | E14: No | F14: Yes | G14: No | H14: No | I14: No | J14: No
A15: Competent One Health Workforce | B15: There is a competent One Health workforce consisting of representatives from human health, animal health, wildlife and the environment with established in-service training programs and joint sector One Health training. | C15: Does the One Health workforce have the capacity to contribute to each of the action tracks? | E15: No | F15: Yes | G15: Yes | H15: No | I15: No | J15: Yes
A16: Comments
F20: Yes | G20: No
F21: =COUNTIF(E6:J15,"Yes") -> 33 | G21: =COUNTIF(E6:J15,"No") -> 27

Sheet 4. AH Indicator x JPA Crosswalk
A3: OH INDICATORS | E3: ACTION TRACK SCORES
B4: INDICATOR DESCRIPTION | C4: ACTION TRACK LINKAGE QUESTION | E4: Action Track 1: Enhancing OH capacities to strengthen health systems | F4: Action Track 2: Reducing the risks from emerging and re-emerging zoonotic diseases | G4: Action Track 3: Controlling and eliminating endemic zoonotic, neglected tropical, and vector-borne diseases | H4: Action Track 4: Strengthening the assessment, management & communication of food safety risks | I4: Action Track 5: Curbing AMR | J4: Action Track 6: Integrating the environment into OH
D5: Total | E5: =COUNTIF(E6:E15, "Yes") -> 5 | F5: 8 | G5: 7 | H5: 9 | I5: 4 | J5: 4
A6: National One Health Coordination Mechanism | B6: A government endorsed One Health Coordination Mechanism (or similar structure) exists, is led by a high level government official (such as a Prime Minister or Deputy Prime Minister), includes representatives from each of the Ministries/Departments responsible for human health, animal health, widlife, and the environment, and includes techincal areas relevent to all sectors (not limited to specific technical areas such as zoonotic disease, antimicrobial resistance, or food safety). | C6: Does the National One Health Coordination Mechanism address or support each of the action tracks? | E6: Yes | F6: No | G6: No | H6: Yes | I6: Yes | J6: Yes
A7: Government Commitment of Human Resources to Support One Health | B7: The Ministries/Departments with responsibilities for human health, animal health, wildlife, and the environment commit the human resources needed for the One Health Coordination Mechanism and the One Health technical working groups, and to support One Health implementation at the sub-national and local levels. | C7: Does the Ministry/Department provide the human resources needed to support each of the action tracks? | E7: Yes | F7: Yes | G7: No | H7: Yes | I7: No | J7: Yes
A8: Government Support for One Health Field Activity Implementation | B8: The Ministries/Departments with responsibilities for human health, animal health, wildlife, and the environment commit the finanical resources needed to support implementation of One Health technical activitites & field implementation. | C8: Does the Ministry/Department provide the finanical resources needed to support each of the action tracks? | E8: Yes | F8: Yes | G8: Yes | H8: Yes | I8: Yes | J8: No
A9: National One Health Strategy | B9: There is a national One Health Strategy that has been endorsed by the Ministries/Departments with responsibilities for human health, animal health, wildlife, and the environment. The OH Strategy includes technical priorities relevent to the human health, animal health, wildlife, and environment sectors. | C9: Does the national One Health Strategy address each of the action tracks? | E9: Yes | F9: Yes | G9: Yes | H9: Yes | I9: Yes | J9: Yes
A10: National One Health Action Plan | B10: There is a national One Health Action Plan that has been endorsed by the Ministries/Departments with responsibilities for human health, animal health, wildlife, and the environment. The OH Action Plan includes technical activities relevent to the human health, animal health, wildlife, and environment sectors. | C10: Does the national One Health Action Plan address each of the action tracks? | E10: Yes | F10: No | G10: No | H10: Yes | I10: Yes | J10: No
A11: One Health Information Sharing | B11: The Ministries/Departments with responsibilities for human health, animal health, wildlife, and the environment have mechanisms in place to share relevant One Health information and data amongst the Ministries/Departments and that this information and data are shared in a consistent and timely manner at national, sub-national and local levels. | C11: Is information relating to each of the action tracks shared across the sectors? | E11: No | F11: Yes | G11: Yes | H11: Yes | I11: No | J11: No
A12: One Health Policy | B12: The Ministries/Departments with responsibilities for human health, animal health, wildlife, and the environment have policies in place that require collaboration for areas of work at the human-animal-wildlife-environment interface that are not limited to specific technical areas of work or in an emergency response. | C12: Is there policy to support each of the action tracks ? | E12: No | F12: Yes | G12: Yes | H12: Yes | I12: No | J12: No
A13: National One Health Risk Communication Strategy | B13: There is a national One Health Risk Communication Strategy that has been endorsed by the Ministries/Departments and includes priorities of the human health, animal health, wildlife, and the environment sectors. | C13: Does the joint One Health Risk Communication Strategy address each of the action tracks? | E13: No | F13: Yes | G13: Yes | H13: Yes | I13: No | J13: No
A14: Whole of Society Approach to One Health | B14: There is an established network of representatives from academia, NGO's, civil society, and the private sector from across the human health, animal health, wildlife, and environment sectors who are partners in national One Health implementation. | C14: Are the relevant stakeholders included in efforts to address each of the actions tracks? | E14: No | F14: Yes | G14: Yes | H14: Yes | I14: No | J14: No
A15: Competent One Health Workforce | B15: There is a competent One Health workforce consisting of representatives from human health, animal health, wildlife and the environment with established in-service training programs and joint sector One Health training. | C15: Does the One Health workforce have the capacity to contribute to each of the action tracks? | E15: No | F15: Yes | G15: Yes | H15: No | I15: No | J15: Yes
A16: Comments
E23: Yes | F23: No
E24: =COUNTIF(E6:J15,"Yes") -> 37 | F24: =COUNTIF(E6:J15,"No") -> 23

Sheet 4. E Indicator x JPA Crosswalk
A3: OH INDICATORS | E3: ACTION TRACK SCORES
B4: INDICATOR DESCRIPTION | C4: ACTION TRACK LINKAGE QUESTION | E4: Action Track 1: Enhancing OH capacities to strengthen health systems | F4: Action Track 2: Reducing the risks from emerging and re-emerging zoonotic diseases | G4: Action Track 3: Controlling and eliminating endemic zoonotic, neglected tropical, and vector-borne diseases | H4: Action Track 4: Strengthening the assessment, management & communication of food safety risks | I4: Action Track 5: Curbing AMR | J4: Action Track 6: Integrating the environment into OH
D5: JPA Total | E5: =COUNTIF(E6:E15, "Yes") -> 5 | F5: 4 | G5: 5 | H5: 7 | I5: 6 | J5: 6
A6: National One Health Coordination Mechanism | B6: A government endorsed One Health Coordination Mechanism (or similar structure) exists, is led by a high level government official (such as a Prime Minister or Deputy Prime Minister), includes representatives from each of the Ministries/Departments responsible for human health, animal health, widlife, and the environment, and includes techincal areas relevent to all sectors (not limited to specific technical areas such as zoonotic disease, antimicrobial resistance, or food safety). | C6: Does the National One Health Coordination Mechanism address or support each of the action tracks? | E6: No | F6: No | G6: No | H6: Yes | I6: Yes | J6: Yes
A7: Government Commitment of Human Resources to Support One Health | B7: The Ministries/Departments with responsibilities for human health, animal health, wildlife, and the environment commit the human resources needed for the One Health Coordination Mechanism and the One Health technical working groups, and to support One Health implementation at the sub-national and local levels. | C7: Does the Ministry/Department provide the human resources needed to support each of the action tracks? | E7: Yes | F7: No | G7: No | H7: Yes | I7: No | J7: Yes
A8: Government Support for One Health Field Activity Implementation | B8: The Ministries/Departments with responsibilities for human health, animal health, wildlife, and the environment commit the finanical resources needed to support implementation of One Health technical activitites & field implementation. | C8: Does the Ministry/Department provide the finanical resources needed to support each of the action tracks? | E8: Yes | F8: No | G8: Yes | H8: Yes | I8: Yes | J8: No
A9: National One Health Strategy | B9: There is a national One Health Strategy that has been endorsed by the Ministries/Departments with responsibilities for human health, animal health, wildlife, and the environment. The OH Strategy includes technical priorities relevent to the human health, animal health, wildlife, and environment sectors. | C9: Does the national One Health Strategy address each of the action tracks? | E9: Yes | F9: Yes | G9: Yes | H9: Yes | I9: Yes | J9: Yes
A10: National One Health Action Plan | B10: There is a national One Health Action Plan that has been endorsed by the Ministries/Departments with responsibilities for human health, animal health, wildlife, and the environment. The OH Action Plan includes technical activities relevent to the human health, animal health, wildlife, and environment sectors. | C10: Does the national One Health Action Plan address each of the action tracks? | E10: Yes | F10: Yes | G10: Yes | H10: Yes | I10: Yes | J10: Yes
A11: One Health Information Sharing | B11: The Ministries/Departments with responsibilities for human health, animal health, wildlife, and the environment have mechanisms in place to share relevant One Health information and data amongst the Ministries/Departments and that this information and data are shared in a consistent and timely manner at national, sub-national and local levels. | C11: Is information relating to each of the action tracks shared across the sectors? | E11: No | F11: No | G11: Yes | H11: Yes | I11: Yes | J11: Yes
A12: One Health Policy | B12: The Ministries/Departments with responsibilities for human health, animal health, wildlife, and the environment have policies in place that require collaboration for areas of work at the human-animal-wildlife-environment interface that are not limited to specific technical areas of work or in an emergency response. | C12: Is there policy to support each of the action tracks ? | E12: Yes | F12: Yes | G12: No | H12: No | I12: No | J12: No
A13: National One Health Risk Communication Strategy | B13: There is a national One Health Risk Communication Strategy that has been endorsed by the Ministries/Departments and includes priorities of the human health, animal health, wildlife, and the environment sectors. | C13: Does the joint One Health Risk Communication Strategy address each of the action tracks? | E13: No | F13: No | G13: No | H13: No | I13: No | J13: No
A14: Whole of Society Approach to One Health | B14: There is an established network of representatives from academia, NGO's, civil society, and the private sector from across the human health, animal health, wildlife, and environment sectors who are partners in national One Health implementation. | C14: Are the relevant stakeholders included in efforts to address each of the actions tracks? | E14: No | F14: No | G14: No | H14: Yes | I14: Yes | J14: No
A15: Competent One Health Workforce | B15: There is a competent One Health workforce consisting of representatives from human health, animal health, wildlife and the environment with established in-service training programs and joint sector One Health training. | C15: Does the One Health workforce have the capacity to contribute to each of the action tracks? | E15: No | F15: Yes | G15: Yes | H15: No | I15: No | J15: Yes
A16: Comments
F20: Yes | G20: No
F21: =COUNTIF(E6:K15,"Yes") -> 33 | G21: =COUNTIF(E6:K15,"No") -> 27

Sheet 5.HH Indicator x Priority Area
A2: Linkages Between OH Indicator and JPA Action Track or Other Priority Technical Areas
A3: OH INDICATORS | E3: PRIORITY AREA SCORES
B4: INDICATOR DESCRIPTION | C4: ACTION TRACK/PRIORITY AREA LINKAGE QUESTION | E4: Priority Area 1 : Prevent environmental degredation, preserve & restore habitat, biodiversity & ecosystems | F4: Priority Area 2: Implement climate change adaptation & mitigation measures | G4: Priority Area 3: Improve waste, effluent, pollution management-ecotoxicology | H4: Priority Area 4: Prevent agriculture & urban encroachmnet through land-use planning | I4: Priority Area 5: Sustainable, climate smart agricultural production | J4: Priority Area 6: Improve wildlife farming & wildlife trade management, inlcuding wildlife sales | K4: Priority Area 7: Improve food safety at informal & formal markets that mix & sell domestic & wild animals | L4: Priority Area 8: Food Systems Transformation
D5: PA Total | E5: =COUNTIF(E6:E15, "Yes") -> 8 | F5: =COUNTIF(F6:F15, "Yes") -> 3 | G5: 3 | H5: 5 | I5: 5 | J5: 5 | K5: 8 | L5: 4
A6: National One Health Coordination Mechanism | B6: A government endorsed One Health Coordination Mechanism (or similar structure) exists, is led by a high level government official (such as a Prime Minister or Deputy Prime Minister), includes representatives from each of the Ministries/Departments responsible for human health, animal health, widlife, and the environment, and includes techincal areas relevent to all sectors (not limited to specific technical areas such as zoonotic disease, antimicrobial resistance, or food safety). | C6: Does the National One Health Coordination Mechanism address or support each of the priority areas? | E6: Yes | F6: No | G6: Yes | H6: No | I6: No | J6: No | K6: Yes | L6: No
A7: Government Commitment of Human Resources to Support One Health | B7: The Ministries/Departments with responsibilities for human health, animal health, wildlife, and the environment commit the human resources needed for the One Health Coordination Mechanism and the One Health technical working groups, and to support One Health implementation at the sub-national and local levels. | C7: Does the Ministry/Department provide the human resources needed to support each of the priority areas? | E7: Yes | F7: No | G7: No | H7: No | I7: No | J7: No | K7: No | L7: No
A8: Government Support for One Health Field Activity Implementation | B8: The Ministries/Departments with responsibilities for human health, animal health, wildlife, and the environment commit the finanical resources needed to support implementation of One Health technical activitites & field implementation. | C8: Does the Ministry/Department provide the finanical resources needed to support each of the priority areas? | E8: Yes | F8: No | G8: Yes | H8: Yes | I8: Yes | J8: Yes | K8: Yes | L8: Yes
A9: National One Health Strategy | B9: There is a national One Health Strategy that has been endorsed by the Ministries/Departments with responsibilities for human health, animal health, wildlife, and the environment. The OH Strategy includes technical priorities relevent to the human health, animal health, wildlife, and environment sectors. | C9: Does the national One Health Strategy address each of the priority areas? | E9: Yes | F9: Yes | G9: No | H9: No | I9: Yes | J9: No | K9: Yes | L9: Yes
A10: National One Health Action Plan | B10: There is a national One Health Action Plan that has been endorsed by the Ministries/Departments with responsibilities for human health, animal health, wildlife, and the environment. The OH Action Plan includes technical activities relevent to the human health, animal health, wildlife, and environment sectors. | C10: Does the national One Health Action Plan address each of the priority areas? | E10: Yes | F10: Yes | G10: No | H10: Yes | I10: Yes | J10: Yes | K10: Yes | L10: No
A11: One Health Information Sharing | B11: The Ministries/Departments with responsibilities for human health, animal health, wildlife, and the environment have mechanisms in place to share relevant One Health information and data amongst the Ministries/Departments and that this information and data are shared in a consistent and timely manner at national, sub-national and local levels. | C11: Is information relating to each of the priority areas shared across the sectors? | E11: Yes | F11: No | G11: No | H11: Yes | I11: Yes | J11: Yes | K11: Yes | L11: No
A12: One Health Policy | B12: The Ministries/Departments with responsibilities for human health, animal health, wildlife, and the environment have policies in place that require collaboration for areas of work at the human-animal-wildlife-environment interface that are not limited to specific technical areas of work or in an emergency response. | C12: Is there policy to support each of the priority areas? | E12: No | F12: No | G12: No | H12: No | I12: No | J12: No | K12: No | L12: No
A13: National One Health Risk Communication Strategy | B13: There is a national One Health Risk Communication Strategy that has been endorsed by the Ministries/Departments and includes priorities of the human health, animal health, wildlife, and the environment sectors. | C13: Does the joint One Health Risk Communication Strategy address each of the priority areas? | E13: Yes | F13: No | G13: No | H13: Yes | I13: Yes | J13: Yes | K13: Yes | L13: Yes
A14: Whole of Society Approach to One Health | B14: There is an established network of representatives from academia, NGO's, civil society, and the private sector from across the human health, animal health, wildlife, and environment sectors who are partners in national One Health implementation. | C14: Are the relevant stakeholders included in efforts to address each of the priority areas? | E14: Yes | F14: No | G14: No | H14: No | I14: No | J14: No | K14: Yes | L14: Yes
A15: Competent One Health Workforce | B15: There is a competent One Health workforce consisting of representatives from human health, animal health, wildlife and the environment with established in-service training programs and joint sector One Health training. | C15: Does the One Health workforce have the capacity to contribute to each of the priority areas? | E15: No | F15: Yes | G15: Yes | H15: Yes | I15: No | J15: Yes | K15: Yes | L15: No
A16: Comments
I20: Yes | J20: No
I21: =COUNTIF(E6:L15,"Yes") -> 41 | J21: =COUNTIF(E6:L15,"No") -> 39

Sheet 5. AH Indicator x Priority Area
A2: Linkages Between OH Indicator and JPA Action Track or Other Priority Technical Areas
A3: OH INDICATORS | E3: PRIORITY AREA SCORES
B4: INDICATOR DESCRIPTION | C4: ACTION TRACK/PRIORITY AREA LINKAGE QUESTION | E4: Priority Area 1 : Prevent environmental degredation, preserve & restore habitat, biodiversity & ecosystems | F4: Priority Area 2: Implement climate change adaptation & mitigation measures | G4: Priority Area 3: Improve waste, effluent, pollution management-ecotoxicology | H4: Priority Area 4: Prevent agriculture & urban encroachmnet through land-use planning | I4: Priority Area 5: Sustainable, climate smart agricultural production | J4: Priority Area 6: Improve wildlife farming & wildlife trade management, inlcuding wildlife sales | K4: Priority Area 7: Improve food safety at informal & formal markets that mix & sell domestic & wild animals | L4: Priority Area 8: Food Systems Transformation
D5: PA Total | E5: =COUNTIF(E6:E15, "Yes") -> 7 | F5: =COUNTIF(F6:F15, "Yes") -> 3 | G5: 3 | H5: 6 | I5: 4 | J5: 4 | K5: 7 | L5: 2
A6: National One Health Coordination Mechanism | B6: A government endorsed One Health Coordination Mechanism (or similar structure) exists, is led by a high level government official (such as a Prime Minister or Deputy Prime Minister), includes representatives from each of the Ministries/Departments responsible for human health, animal health, widlife, and the environment, and includes techincal areas relevent to all sectors (not limited to specific technical areas such as zoonotic disease, antimicrobial resistance, or food safety). | C6: Does the National One Health Coordination Mechanism address or support each of the priority areas? | E6: Yes | F6: No | G6: Yes | H6: No | I6: No | J6: No | K6: Yes | L6: No
A7: Government Commitment of Human Resources to Support One Health | B7: The Ministries/Departments with responsibilities for human health, animal health, wildlife, and the environment commit the human resources needed for the One Health Coordination Mechanism and the One Health technical working groups, and to support One Health implementation at the sub-national and local levels. | C7: Does the Ministry/Department provide the human resources needed to support each of the priority areas? | E7: Yes | F7: No | G7: No | H7: No | I7: No | J7: No | K7: No | L7: No
A8: Government Support for One Health Field Activity Implementation | B8: The Ministries/Departments with responsibilities for human health, animal health, wildlife, and the environment commit the finanical resources needed to support implementation of One Health technical activitites & field implementation. | C8: Does the Ministry/Department provide the finanical resources needed to support each of the priority areas? | E8: Yes | F8: No | G8: Yes | H8: Yes | I8: Yes | J8: No | K8: Yes | L8: No
A9: National One Health Strategy | B9: There is a national One Health Strategy that has been endorsed by the Ministries/Departments with responsibilities for human health, animal health, wildlife, and the environment. The OH Strategy includes technical priorities relevent to the human health, animal health, wildlife, and environment sectors. | C9: Does the national One Health Strategy address each of the priority areas? | E9: No | F9: Yes | G9: No | H9: No | I9: Yes | J9: No | K9: Yes | L9: Yes
A10: National One Health Action Plan | B10: There is a national One Health Action Plan that has been endorsed by the Ministries/Departments with responsibilities for human health, animal health, wildlife, and the environment. The OH Action Plan includes technical activities relevent to the human health, animal health, wildlife, and environment sectors. | C10: Does the national One Health Action Plan address each of the priority areas? | E10: Yes | F10: Yes | G10: No | H10: Yes | I10: Yes | J10: Yes | K10: Yes | L10: No
A11: One Health Information Sharing | B11: The Ministries/Departments with responsibilities for human health, animal health, wildlife, and the environment have mechanisms in place to share relevant One Health information and data amongst the Ministries/Departments and that this information and data are shared in a consistent and timely manner at national, sub-national and local levels. | C11: Is information relating to each of the priority areas shared across the sectors? | E11: No | F11: No | G11: No | H11: Yes | I11: Yes | J11: Yes | K11: Yes | L11: No
A12: One Health Policy | B12: The Ministries/Departments with responsibilities for human health, animal health, wildlife, and the environment have policies in place that require collaboration for areas of work at the human-animal-wildlife-environment interface that are not limited to specific technical areas of work or in an emergency response. | C12: Is there policy to support each of the priority areas? | E12: Yes | F12: No | G12: No | H12: No | I12: No | J12: No | K12: No | L12: No
A13: National One Health Risk Communication Strategy | B13: There is a national One Health Risk Communication Strategy that has been endorsed by the Ministries/Departments and includes priorities of the human health, animal health, wildlife, and the environment sectors. | C13: Does the joint One Health Risk Communication Strategy address each of the priority areas? | E13: Yes | F13: Yes | G13: No | H13: Yes | I13: No | J13: Yes | K13: Yes | L13: Yes
A14: Whole of Society Approach to One Health | B14: There is an established network of representatives from academia, NGO's, civil society, and the private sector from across the human health, animal health, wildlife, and environment sectors who are partners in national One Health implementation. | C14: Are the relevant stakeholders included in efforts to address each of the priority areas? | E14: Yes | F14: No | G14: No | H14: Yes | I14: No | J14: No | K14: No | L14: No
A15: Competent One Health Workforce | B15: There is a competent One Health workforce consisting of representatives from human health, animal health, wildlife and the environment with established in-service training programs and joint sector One Health training. | C15: Does the One Health workforce have the capacity to contribute to each of the priority areas? | E15: No | F15: No | G15: Yes | H15: Yes | I15: No | J15: Yes | K15: Yes | L15: No
A16: Comments
H20: Yes | I20: No
H21: =COUNTIF(E6:L15,"Yes") -> 36 | I21: =COUNTIF(E6:L15,"No") -> 44

Sheet 5. W Indicator x Priority Area
A2: Linkages Between OH Indicator and JPA Action Track or Other Priority Technical Areas
A3: OH INDICATORS | E3: PRIORITY AREA SCORES
B4: INDICATOR DESCRIPTION | C4: ACTION TRACK/PRIORITY AREA LINKAGE QUESTION | E4: Priority Area 1 : Prevent environmental degredation, preserve & restore habitat, biodiversity & ecosystems | F4: Priority Area 2: Implement climate change adaptation & mitigation measures | G4: Priority Area 3: Improve waste, effluent, pollution management-ecotoxicology | H4: Priority Area 4: Prevent agriculture & urban encroachmnet through land-use planning | I4: Priority Area 5: Sustainable, climate smart agricultural production | J4: Priority Area 6: Improve wildlife farming & wildlife trade management, inlcuding wildlife sales | K4: Priority Area 7: Improve food safety at informal & formal markets that mix & sell domestic & wild animals | L4: Priority Area 8: Food Systems Transformation
D5: PA Total | E5: =COUNTIF(E6:E15, "Yes") -> 5 | F5: =COUNTIF(F6:F15, "Yes") -> 4 | G5: 4 | H5: 5 | I5: 7 | J5: 4 | K5: 9 | L5: 1
A6: National One Health Coordination Mechanism | B6: A government endorsed One Health Coordination Mechanism (or similar structure) exists, is led by a high level government official (such as a Prime Minister or Deputy Prime Minister), includes representatives from each of the Ministries/Departments responsible for human health, animal health, widlife, and the environment, and includes techincal areas relevent to all sectors (not limited to specific technical areas such as zoonotic disease, antimicrobial resistance, or food safety). | C6: Does the National One Health Coordination Mechanism address or support each of the priority areas? | E6: Yes | F6: No | G6: Yes | H6: No | I6: No | J6: No | K6: Yes | L6: No
A7: Government Commitment of Human Resources to Support One Health | B7: The Ministries/Departments with responsibilities for human health, animal health, wildlife, and the environment commit the human resources needed for the One Health Coordination Mechanism and the One Health technical working groups, and to support One Health implementation at the sub-national and local levels. | C7: Does the Ministry/Department provide the human resources needed to support each of the priority areas? | E7: Yes | F7: No | G7: No | H7: No | I7: No | J7: No | K7: No | L7: No
A8: Government Support for One Health Field Activity Implementation | B8: The Ministries/Departments with responsibilities for human health, animal health, wildlife, and the environment commit the finanical resources needed to support implementation of One Health technical activitites & field implementation. | C8: Does the Ministry/Department provide the finanical resources needed to support each of the priority areas? | E8: Yes | F8: No | G8: Yes | H8: Yes | I8: Yes | J8: No | K8: Yes | L8: No
A9: National One Health Strategy | B9: There is a national One Health Strategy that has been endorsed by the Ministries/Departments with responsibilities for human health, animal health, wildlife, and the environment. The OH Strategy includes technical priorities relevent to the human health, animal health, wildlife, and environment sectors. | C9: Does the national One Health Strategy address each of the priority areas? | E9: Yes | F9: Yes | G9: No | H9: No | I9: Yes | J9: No | K9: Yes | L9: Yes
A10: National One Health Action Plan | B10: There is a national One Health Action Plan that has been endorsed by the Ministries/Departments with responsibilities for human health, animal health, wildlife, and the environment. The OH Action Plan includes technical activities relevent to the human health, animal health, wildlife, and environment sectors. | C10: Does the national One Health Action Plan address each of the priority areas? | E10: Yes | F10: Yes | G10: No | H10: Yes | I10: Yes | J10: Yes | K10: Yes | L10: No
A11: One Health Information Sharing | B11: The Ministries/Departments with responsibilities for human health, animal health, wildlife, and the environment have mechanisms in place to share relevant One Health information and data amongst the Ministries/Departments and that this information and data are shared in a consistent and timely manner at national, sub-national and local levels. | C11: Is information relating to each of the priority areas shared across the sectors? | E11: No | F11: No | G11: No | H11: Yes | I11: Yes | J11: Yes | K11: Yes | L11: No
A12: One Health Policy | B12: The Ministries/Departments with responsibilities for human health, animal health, wildlife, and the environment have policies in place that require collaboration for areas of work at the human-animal-wildlife-environment interface that are not limited to specific technical areas of work or in an emergency response. | C12: Is there policy to support each of the priority areas? | E12: No | F12: No | G12: No | H12: No | I12: Yes | J12: Yes | K12: Yes | L12: No
A13: National One Health Risk Communication Strategy | B13: There is a national One Health Risk Communication Strategy that has been endorsed by the Ministries/Departments and includes priorities of the human health, animal health, wildlife, and the environment sectors. | C13: Does the joint One Health Risk Communication Strategy address each of the priority areas? | E13: No | F13: No | G13: No | H13: No | I13: No | J13: No | K13: Yes | L13: No
A14: Whole of Society Approach to One Health | B14: There is an established network of representatives from academia, NGO's, civil society, and the private sector from across the human health, animal health, wildlife, and environment sectors who are partners in national One Health implementation. | C14: Are the relevant stakeholders included in efforts to address each of the priority areas? | E14: No | F14: Yes | G14: Yes | H14: Yes | I14: Yes | J14: No | K14: Yes | L14: No
A15: Competent One Health Workforce | B15: There is a competent One Health workforce consisting of representatives from human health, animal health, wildlife and the environment with established in-service training programs and joint sector One Health training. | C15: Does the One Health workforce have the capacity to contribute to each of the priority areas? | E15: No | F15: Yes | G15: Yes | H15: Yes | I15: Yes | J15: Yes | K15: Yes | L15: No
A16: Comments
H20: Yes | I20: No
H21: =COUNTIF(E6:L15,"Yes") -> 39 | I21: =COUNTIF(E6:L15,"No") -> 41

Sheet 5. E Indicator x Priority Area
A2: Linkages Between OH Indicator and JPA Action Track or Other Priority Technical Areas
A3: OH INDICATORS | E3: PRIORITY AREA SCORES
B4: INDICATOR DESCRIPTION | C4: ACTION TRACK/PRIORITY AREA LINKAGE QUESTION | E4: Priority Area 1 : Prevent environmental degredation, preserve & restore habitat, biodiversity & ecosystems | F4: Priority Area 2: Implement climate change adaptation & mitigation measures | G4: Priority Area 3: Improve waste, effluent, pollution management-ecotoxicology | H4: Priority Area 4: Prevent agriculture & urban encroachmnet through land-use planning | I4: Priority Area 5: Sustainable, climate smart agricultural production | J4: Priority Area 6: Improve wildlife farming & wildlife trade management, inlcuding wildlife sales | K4: Priority Area 7: Improve food safety at informal & formal markets that mix & sell domestic & wild animals | L4: Priority Area 8: Food Systems Transformation
D5: PA Total | E5: =COUNTIF(E6:E15, "Yes") -> 8 | F5: =COUNTIF(F6:F15, "Yes") -> 3 | G5: 4 | H5: 5 | I5: 6 | J5: 4 | K5: 7 | L5: 5
A6: National One Health Coordination Mechanism | B6: A government endorsed One Health Coordination Mechanism (or similar structure) exists, is led by a high level government official (such as a Prime Minister or Deputy Prime Minister), includes representatives from each of the Ministries/Departments responsible for human health, animal health, widlife, and the environment, and includes techincal areas relevent to all sectors (not limited to specific technical areas such as zoonotic disease, antimicrobial resistance, or food safety). | C6: Does the National One Health Coordination Mechanism address or support each of the priority areas? | E6: Yes | F6: No | G6: Yes | H6: No | I6: No | J6: No | K6: Yes | L6: No
A7: Government Commitment of Human Resources to Support One Health | B7: The Ministries/Departments with responsibilities for human health, animal health, wildlife, and the environment commit the human resources needed for the One Health Coordination Mechanism and the One Health technical working groups, and to support One Health implementation at the sub-national and local levels. | C7: Does the Ministry/Department provide the human resources needed to support each of the priority areas? | E7: Yes | F7: No | G7: No | H7: No | I7: No | J7: No | K7: No | L7: No
A8: Government Support for One Health Field Activity Implementation | B8: The Ministries/Departments with responsibilities for human health, animal health, wildlife, and the environment commit the finanical resources needed to support implementation of One Health technical activitites & field implementation. | C8: Does the Ministry/Department provide the finanical resources needed to support each of the priority areas? | E8: Yes | F8: No | G8: Yes | H8: Yes | I8: Yes | J8: No | K8: Yes | L8: No
A9: National One Health Strategy | B9: There is a national One Health Strategy that has been endorsed by the Ministries/Departments with responsibilities for human health, animal health, wildlife, and the environment. The OH Strategy includes technical priorities relevent to the human health, animal health, wildlife, and environment sectors. | C9: Does the national One Health Strategy address each of the priority areas? | E9: Yes | F9: Yes | G9: No | H9: No | I9: Yes | J9: No | K9: Yes | L9: Yes
A10: National One Health Action Plan | B10: There is a national One Health Action Plan that has been endorsed by the Ministries/Departments with responsibilities for human health, animal health, wildlife, and the environment. The OH Action Plan includes technical activities relevent to the human health, animal health, wildlife, and environment sectors. | C10: Does the national One Health Action Plan address each of the priority areas? | E10: Yes | F10: Yes | G10: No | H10: Yes | I10: Yes | J10: Yes | K10: Yes | L10: Yes
A11: One Health Information Sharing | B11: The Ministries/Departments with responsibilities for human health, animal health, wildlife, and the environment have mechanisms in place to share relevant One Health information and data amongst the Ministries/Departments and that this information and data are shared in a consistent and timely manner at national, sub-national and local levels. | C11: Is information relating to each of the priority areas shared across the sectors? | E11: No | F11: No | G11: No | H11: Yes | I11: Yes | J11: Yes | K11: Yes | L11: Yes
A12: One Health Policy | B12: The Ministries/Departments with responsibilities for human health, animal health, wildlife, and the environment have policies in place that require collaboration for areas of work at the human-animal-wildlife-environment interface that are not limited to specific technical areas of work or in an emergency response. | C12: Is there policy to support each of the priority areas? | E12: Yes | F12: No | G12: No | H12: No | I12: No | J12: No | K12: No | L12: No
A13: National One Health Risk Communication Strategy | B13: There is a national One Health Risk Communication Strategy that has been endorsed by the Ministries/Departments and includes priorities of the human health, animal health, wildlife, and the environment sectors. | C13: Does the joint One Health Risk Communication Strategy address each of the priority areas? | E13: Yes | F13: No | G13: Yes | H13: Yes | I13: Yes | J13: Yes | K13: Yes | L13: Yes
A14: Whole of Society Approach to One Health | B14: There is an established network of representatives from academia, NGO's, civil society, and the private sector from across the human health, animal health, wildlife, and environment sectors who are partners in national One Health implementation. | C14: Are the relevant stakeholders included in efforts to address each of the priority areas? | E14: Yes | F14: No | G14: No | H14: No | I14: No | J14: No | K14: No | L14: No
A15: Competent One Health Workforce | B15: There is a competent One Health workforce consisting of representatives from human health, animal health, wildlife and the environment with established in-service training programs and joint sector One Health training. | C15: Does the One Health workforce have the capacity to contribute to each of the priority areas? | E15: No | F15: Yes | G15: Yes | H15: Yes | I15: Yes | J15: Yes | K15: Yes | L15: Yes
A16: Comments
H20: Yes | I20: No
H21: =COUNTIF(E6:L15,"Yes") -> 42 | I21: =COUNTIF(E6:L15,"No") -> 38

Sheet 6. OH Indicators By Consensus
C1: One Health Indicators by Sector [click icon to filter by sector]
A2: Indicator Number | B2: Indicator Name | C2: Description | D2: Element | E2: Sector | F2: Yes or No (sector) | H2: Sector Score | I2: Yes or No (select from dropdown) | K2: Consensus Score | L2: Comments | M2: Sector Score by Indicator
A3: 1 | B3: National One Health Coordination Mechanism | C3: A government endorsed One Health Coordination Mechanism (or similar structure) exists, is led by a high level government official (such as a Prime Minister or Deputy Prime Minister), includes representatives from each of the Ministries/Departments responsible for human health, animal health, widlife, and the environment, and includes techincal areas relevent to all sectors (not limited to specific technical areas such as zoonotic disease, antimicrobial resistance, or food safety). | D3: Is there an government endorsed One Health Coordination Mechanism that officially acknowledges the human health Ministry/Department as a partner in One Health implementation? | E3: H | F3: ='3. OH Indicators By Sector'!F3 -> Yes | G3: =IF(F3="Yes",1,0) -> 1 | H3: =SUM(G3:G12)/10*10 -> 4 | I3: Yes | J3: =IF(I3="Yes",1,0) -> 1 | K3: =SUM(J3:J12)/10*10 -> 7 | L3: who is the high level government official leading OH Coordination mechanism? | M3: =SUM(J3:J3)/2*10 -> 5
D4: Do government regulations, directives, legislation or policy ensure that the human health Ministry/Department participates in the national One Health Coordination Mechanism? | E4: H | F4: ='3. OH Indicators By Sector'!F4 -> Yes | G4: 1 | I4: Yes | J4: 1
D5: Is there a government endorsed One Health Coordination Mechanism that officially acknowledges the animal health Ministry/Department as a partner in One Health implementation? | E5: A | F5: ='3. OH Indicators By Sector'!F5 -> Yes | G5: 1 | I5: Yes | J5: 1 | M5: =SUM(J5:J5)/2*10 -> 5
D6: Do government regulations, directives, legislation or policy ensure that the animal health Ministry/Department participates in the national One Health Coordination Mechanism? | E6: A | F6: ='3. OH Indicators By Sector'!F6 -> No | G6: =IF(F6="Yes",1,0) -> 0 | I6: No | J6: =IF(I6="Yes",1,0) -> 0
D7: Is there a government endorsed One Health Coordination Mechanism that officially acknowledges the Ministry/Department with responsibilities for wildlife disease as a partner in One Health implementation? | E7: WD | F7: ='3. OH Indicators By Sector'!F7 -> Yes | G7: 1 | I7: Yes | J7: 1 | M7: =SUM(J7:J7)/2*10 -> 5
D8: Do government regulations, directives, legislation or policy ensure that the Ministry/Department with responsibilities for wildlife disease participates in the national One Health Coordination Mechanism? | E8: WD | F8: ='3. OH Indicators By Sector'!F8 -> No | G8: =IF(F8="Yes",1,0) -> 0 | I8: Yes | J8: =IF(I8="Yes",1,0) -> 1
D9: Is there an officially recognized One Health Coordination Mechanism that officially acknowledges the Ministry/Department with responsibilities for wildlife management & conservation as a partner in One Health implementation? | E9: WMC | F9: ='3. OH Indicators By Sector'!F9 -> No | G9: =IF(F9="Yes",1,0) -> 0 | I9: Yes | J9: =IF(I9="Yes",1,0) -> 1
D10: Do government regulations, directives, legislation or policy ensure that the Ministry/Department with responsibilities for wildlife management & conservation participates in the national One Health Coordination Mechanism? | E10: WMC | F10: ='3. OH Indicators By Sector'!F10 -> No | G10: =IF(F10="Yes",1,0) -> 0 | I10: Yes | J10: =IF(I10="Yes",1,0) -> 1
D11: Is there a government endorsed One Health Coordination Mechanism that officially acknowledges the environment sector as a partner in One Health implementation? | E11: E | F11: ='3. OH Indicators By Sector'!F11 -> No | G11: 0 | I11: No | J11: 0 | M11: =SUM(J11:J11)/2*10 -> 0
D12: Do government regulations, directives, legislation or policy ensure that the Ministry/Department with responsibilities for the environment to participate in the national One Health Coordination Mechanism? | E12: E | F12: ='3. OH Indicators By Sector'!F12 -> No | G12: 0 | I12: No | J12: 0
A13: 2 | B13: Government Commitment of Human Resources to Support One Health | C13: The Ministries/Departments with responsibilities for human health, animal health, wildlife, and the environment commit the human resources needed for the One Health Coordination Mechanism and the One Health technical working groups, and to support One Health implementation at the sub-national and local levels. | D13: Does the human health Ministry/Department commit dedicated human resource person(s) to represent the Ministry/Department in the One Health Coordination Mechanism? | E13: H | F13: ='3. OH Indicators By Sector'!F13 -> Yes | G13: 1 | H13: =SUM(G13:G32)/20*10 -> 3 | I13: Yes | J13: 1 | K13: =SUM(J13:J32)/20*10 -> 4 | M13: =SUM(J13:J15)/3*10 -> 10
D14: Does the human health Ministry/Department commit technical human resource person(s) to support One Health technical working groups & the national One Health Action Plan? | E14: H | F14: ='3. OH Indicators By Sector'!F14 -> Yes | G14: 1 | I14: Yes | J14: 1
D15: Does the human health Ministry/Department commit human resources person(s) at the sub-national or provincial level to support One Health implementation? | E15: H | F15: ='3. OH Indicators By Sector'!F15 -> Yes | G15: 1 | I15: Yes | J15: 1
D16: Does the human health Ministry/Department commit human resources person(s) at the local, district, or community level to support One Health implementation? | E16: H | F16: ='3. OH Indicators By Sector'!F16 -> No | G16: 0 | I16: No | J16: 0
D17: Does the animal health Ministry/Department commit dedicated human resource person(s) to represent the Ministry/Department in the One Health Coordination Mechanism? | E17: A | F17: ='3. OH Indicators By Sector'!F17 -> Yes | G17: 1 | I17: Yes | J17: 1 | M17: =SUM(J17:J19)/3*10 -> 10
D18: Does the animal health Ministry/Department commit technical human resource person(s) to support One Health technical working groups & the national One Health Action Plan?? | E18: A | F18: ='3. OH Indicators By Sector'!F18 -> No | G18: 0 | I18: Yes | J18: 1
D19: Does the animal health Ministry/Department commit human resources person(s) at the sub-national or provincial level to support One Health implementation? | E19: A | F19: ='3. OH Indicators By Sector'!F19 -> Yes | G19: 1 | I19: Yes | J19: 1
D20: Does the animal health Ministry/Department commit human resources person(s) at the local, district, or community level to support One Health implementation? | E20: A | F20: ='3. OH Indicators By Sector'!F20 -> No | G20: 0 | I20: Yes | J20: 1
D21: Does the Ministry/Department with responsibilities for wildlife disease commit dedicated human resource person(s) to represent the Ministry/Department in the One Health Coordination Mechanism? | E21: WD | F21: ='3. OH Indicators By Sector'!F21 -> Yes | G21: 1 | I21: Yes | J21: 1 | M21: =SUM(J21:J23)/3*10 -> 3.333333333
D22: Does the Ministry/Department with responsibilities for wildlife disease commit technical human resource person(s) to support One Health technical working groups & the national One Health Action Plan? | E22: WD | F22: ='3. OH Indicators By Sector'!F22 -> No | G22: 0 | I22: No | J22: 0
D23: Does the Ministry/Department with responsibilities for wildlife disease commit human resources person(s) at the sub-national or provincial level to support One Health implementation? | E23: WD | F23: ='3. OH Indicators By Sector'!F23 -> No | G23: 0 | I23: No | J23: 0
D24: Does the Ministry/Department with responsibilities for wildlife disease commit human resources person(s) at the local, district, or community level to support One Health implementation? | E24: WD | F24: ='3. OH Indicators By Sector'!F24 -> No | G24: 0 | I24: No | J24: 0
D25: Does the Ministry/Department with responsibilities for wildlife management & conservation commit dedicated human resource person(s) to represent the Ministry/Department in the One Health Coordination Mechanism? | E25: WMC | F25: ='3. OH Indicators By Sector'!F25 -> No | G25: 0 | I25: No | J25: 0
D26: Does the Ministry/Department with responsibilities for wildlife management & conservation committechnical human resource person(s) to support One Health technical working groups & the national One Health Action Plan? | E26: WMC | F26: ='3. OH Indicators By Sector'!F26 -> No | G26: 0 | I26: No | J26: 0
D27: Does the Ministry/Department with responsibilities for wildlife management & conservation commit human resources person(s) at the sub-national or provincial level to support One Health implementation? | E27: WMC | F27: ='3. OH Indicators By Sector'!F27 -> No | G27: 0 | I27: No | J27: 0
D28: Does the Ministry/Department with responsibilities for wildlife management & conservation commit human resources person(s) at the local, district, or community level to support One Health implementation? | E28: WMC | F28: ='3. OH Indicators By Sector'!F28 -> No | G28: 0 | I28: No | J28: 0
D29: Does the Ministry/Department with responsibilities for the environment commit dedicated human resource person(s) to represent the Ministry/Department in the One Health Coordination Mechanism? | E29: E | F29: ='3. OH Indicators By Sector'!F29 -> No | G29: 0 | I29: No | J29: 0 | M29: =SUM(J29:J31)/3*10 -> 0
D30: Does the Ministry/Department with responsibilities for the environment commit technical human resource person(s) to support One Health technical working groups & the national One Health Action Plan? | E30: E | F30: ='3. OH Indicators By Sector'!F30 -> No | G30: 0 | I30: No | J30: 0
D31: Does the Ministry/Department with responsibilities for the environment commit human resources person(s) at the sub-national or provincial level to support One Health implementation? | E31: E | F31: ='3. OH Indicators By Sector'!F31 -> No | G31: 0 | I31: No | J31: 0
D32: Does the Ministry/Department with responsibilities for the environment commit human resources person(s) at the local, district, or community level to support One Health implementation? | E32: E | F32: ='3. OH Indicators By Sector'!F32 -> No | G32: 0 | I32: No | J32: 0
A33: 3 | B33: Government Support for One Health Field Activity Implementation | C33: The Ministries/Departments with responsibilities for human health, animal health, wildlife, and the environment commit the finanical resources needed to support implementation of One Health technical activitites & field implementation. | D33: Are there dedicated finanical resources to support the human health sector to particiapte in One Health technical activitites & field implementation at the sub-national or provincial level ? | E33: H | F33: ='3. OH Indicators By Sector'!F33 -> Yes | G33: 1 | H33: =SUM(G33:G42)/10*10 -> 3 | I33: Yes | J33: =IF(I33="Yes",1,0) -> 1 | K33: =SUM(J33:J42)/10*10 -> 5
D34: Are there dedicated finanical resources to support the human health sector to particiapte in One Health technical activitites & field implementation at local, district, or community level? | E34: H | F34: ='3. OH Indicators By Sector'!F34 -> No | G34: 0 | I34: No | J34: 0
D35: Are there dedicated finanical resources to support the animal health sector to particiapte in One Health technical activitites & field implementation at the sub-national or provincial level? | E35: A | F35: ='3. OH Indicators By Sector'!F35 -> Yes | G35: 1 | I35: Yes | J35: 1
D36: Are there dedicated finanical resources to support the animal health sector to particiapte in One Health technical activitites & field implementation at the local, district, or community level? | E36: A | F36: ='3. OH Indicators By Sector'!F36 -> No | G36: 0 | I36: No | J36: 0
D37: Are there dedicated finanical resources to support the Ministry/Department with responsibilities for wildlife disease to particiapte in One Health technical activitites & field implementation atthe sub-national or provinical level? | E37: WD | F37: ='3. OH Indicators By Sector'!F37 -> No | G37: 0 | I37: No | J37: 0
D38: Are there dedicated finanical resources to support the Ministry/Department with responsibilities for wildlife disease to particiapte in One Health technical activitites & field implementation at the local, district, or community level? | E38: WD | F38: ='3. OH Indicators By Sector'!F38 -> No | G38: 0 | I38: No | J38: 0
D39: Are there dedicated finanical resources to support the Ministry/Department with responsibilities for wildlife management & conservation sector to particiapte in One Health technical activitites & field implementation at the sub-national or provinical level? | E39: WMC | F39: ='3. OH Indicators By Sector'!F39 -> No | G39: 0 | I39: Yes | J39: 1
D40: Are there dedicated finanical resources to support the Ministry/Department with responsibilities for wildlife management & conservation sector to particiapte in One Health technical activitites & field implementation at the local, district, or community level? | E40: WMC | F40: ='3. OH Indicators By Sector'!F40 -> No | G40: 0 | I40: Yes | J40: 1
D41: Are there dedicated finanical resources to support the Ministry/Department with responsibilities for the environment in their participation in One Health implemention at the sub-national or provinical level? | E41: E | F41: ='3. OH Indicators By Sector'!F41 -> Yes | G41: 1 | I41: Yes | J41: 1
D42: Are there dedicated finanical resources to support the Ministry/Department with responsibilities for the environment in their participation in One Health implemention at the local, district, or community level? | E42: E | F42: ='3. OH Indicators By Sector'!F42 -> No | G42: 0 | I42: No | J42: 0
A43: 4 | B43: National One Health Strategy | C43: There is a national One Health Strategy that has been endorsed by the Ministries/Departments with responsibilities for human health, animal health, wildlife, and the environment. The OH Strategy includes technical priorities relevent to the human health, animal health, wildlife, and environment sectors. | D43: Is there a national One Health Strategy that has been endorsed by the human health Ministry/Department? | E43: H | F43: ='3. OH Indicators By Sector'!F43 -> Yes | G43: 1 | H43: =SUM(G43:G52)/10*10 -> 8 | I43: Yes | J43: 1 | K43: =SUM(J43:J52)/10*10 -> 9 | M43: =J43/1*10 -> 10
D44: Does the national One Health Strategy contains techncial priorities of the human health sector? | E44: H | F44: ='3. OH Indicators By Sector'!F44 -> Yes | G44: 1 | I44: No | J44: 0
D45: Is there a national One Health Strategy that has been endorsed by the animal health Ministry/Department? | E45: A | F45: ='3. OH Indicators By Sector'!F45 -> Yes | G45: 1 | I45: Yes | J45: 1 | M45: =J45/1*10 -> 10
D46: Does the national One Health Strategy contains techncial priorities of the animal health sector? | E46: A | F46: ='3. OH Indicators By Sector'!F46 -> Yes | G46: 1 | I46: Yes | J46: 1
D47: Is there a national One Health Strategy that has been endorsed by the Ministry/Department with responsibilities for wildlife disease? | E47: WD | F47: ='3. OH Indicators By Sector'!F47 -> Yes | G47: 1 | I47: Yes | J47: 1 | M47: 10
D48: Does the national One Health Strategy contains techncial priorities of the wildlife disease sub-sector? | E48: WD | F48: ='3. OH Indicators By Sector'!F48 -> Yes | G48: 1 | I48: Yes | J48: 1
D49: Is there a national One Health Strategy that has been endorsed by the Ministry/Department with responsibilities for wildlife management & conservation? | E49: WMC | F49: ='3. OH Indicators By Sector'!F49 -> No | G49: 0 | I49: Yes | J49: 1
D50: Does the national One Health Strategy contains techncial priorities of the wildlife management & conservation sub-sector? | E50: WMC | F50: ='3. OH Indicators By Sector'!F50 -> Yes | G50: 1 | I50: Yes | J50: 1
D51: Is there a national One Health Strategy that has been endorsed by the Ministry/Department with responsibilities for the environment? | E51: E | F51: ='3. OH Indicators By Sector'!F51 -> No | G51: 0 | I51: Yes | J51: 1 | M51: 10
D52: Does the national One Health Strategy contains techncial priorities of the environment sector? | E52: E | F52: ='3. OH Indicators By Sector'!F52 -> Yes | G52: 1 | I52: Yes | J52: 1
A53: 5 | B53: National One Health Action Plan | C53: There is a national One Health Action Plan that has been endorsed by the Ministries/Departments with responsibilities for human health, animal health, wildlife, and the environment. The OH Action Plan includes technical activities relevent to the human health, animal health, wildlife, and environment sectors. | D53: Is there a national One Health Action Plan that has been endorsed by the human health Ministry/Department? | E53: H | F53: ='3. OH Indicators By Sector'!F53 -> Yes | G53: 1 | H53: =SUM(G53:G62)/10*10 -> 8 | I53: Yes | J53: 1 | K53: =SUM(J53:J62)/10*10 -> 6
D54: Does the national One Health Action Plan contain activities relevent to the human health sector? | E54: H | F54: ='3. OH Indicators By Sector'!F54 -> Yes | G54: 1 | I54: Yes | J54: 1
D55: Is there a national One Health Action Plan that has been endorsed by the animal health Ministry/Department? | E55: A | F55: ='3. OH Indicators By Sector'!F55 -> Yes | G55: 1 | I55: Yes | J55: 1
D56: Does the national One Health Action Plan contain activities relevent to the animal health sector? | E56: A | F56: ='3. OH Indicators By Sector'!F56 -> Yes | G56: 1 | I56: Yes | J56: 1
D57: Is there a national One Health Action Plan that has been endorsed by the Ministry/Department with responsibilities for wildlife disease? | E57: WD | F57: ='3. OH Indicators By Sector'!F57 -> Yes | G57: 1 | I57: No | J57: 0
D58: Does the national One Health Action Plan contain activities relevent to the wildlife disease sub-sector? | E58: WD | F58: ='3. OH Indicators By Sector'!F58 -> Yes | G58: 1 | I58: No | J58: 0
D59: Is there a national One Health Action Plan that has been endorsed by the Ministry/Department with responsibilities for wildlife management & conservation? | E59: WMC | F59: ='3. OH Indicators By Sector'!F59 -> No | G59: 0 | I59: No | J59: 0
D60: Does the national One Health Action Plan contain activities relevent to the wildlife management & conservation sub-sector? | E60: WMC | F60: ='3. OH Indicators By Sector'!F60 -> Yes | G60: 1 | I60: Yes | J60: 1
D61: Is there a national One Health Action Plan that has been endorsed by the Ministry/Department with responsibilities for the environment? | E61: E | F61: ='3. OH Indicators By Sector'!F61 -> No | G61: 0 | I61: No | J61: 0
D62: Does the national One Health Action Plan contain activities relevent to the environment sector? | E62: E | F62: ='3. OH Indicators By Sector'!F62 -> Yes | G62: 1 | I62: Yes | J62: 1
A63: 6 | C63: The Ministries/Departments with responsibilities for human health, animal health, wildlife, and the environment have mechanisms in place to share relevant One Health information and data amongst the Ministries/Departments and that this information and data are shared in a consistent and timely manner at national, sub-national and local levels. | D63: Does the human health Ministry/Department have an unofficial or official mechanism, policy or agreement in place to ensure One Health information and data sharing with the Ministries/Departments responsible for animal health, wildlife, and the environment in a consistent and timely manner at the central government level? | E63: H | F63: ='3. OH Indicators By Sector'!F63 -> Yes | G63: 1 | H63: =SUM(G63:G77)/15*10 -> 6 | I63: Yes | J63: =IF(I63="Yes",1,0) -> 1 | K63: =SUM(J63:J77)/15*10 -> 6
D64: Does the human health Ministry/Department have an unofficial or official mechanism, policy or agreement in place to ensure One Health information and data sharing with the Ministries/Departments responsible for animal health, wildlife, and the environment in a consistent and timely manner at the Provincial or sub-national government level? | E64: H | F64: ='3. OH Indicators By Sector'!F64 -> Yes | G64: 1 | I64: Yes | J64: 1
D65: Does the human health Ministry/Department have an unofficial or official mechanism, policy or agreement in place to ensure One Health information and data sharing with the Ministries/Departments responsible for animal health, wildlife, and the environment in a consistent and timely manner at the District or local government level? | E65: H | F65: ='3. OH Indicators By Sector'!F65 -> No | G65: 0 | I65: No | J65: 0
D66: Does the animal health Ministry/Department have an unofficial or official mechanism, policy or agreement in place to ensure One Health information and data sharing with the Ministries/Departments responsible for human health, wildlife, and the environment in a consistent and timely manner at the central government level? | E66: A | F66: ='3. OH Indicators By Sector'!F66 -> Yes | G66: 1 | I66: Yes | J66: =IF(I66="Yes",1,0) -> 1
D67: Does the animal health Ministry/Department have an unofficial or official mechanism, policy or agreement in place to ensure One Health information and data sharing with the Ministries/Departments responsible for human health, wildlife, and the environment in a consistent and timely manner at the Provincial or sub-national government level? | E67: A | F67: ='3. OH Indicators By Sector'!F67 -> Yes | G67: 1 | I67: Yes | J67: 1
D68: Does the animal health Ministry/Department have an unofficial or official mechanism, policy or agreement in place to ensure One Health information and data sharing with the Ministries/Departments responsible for animal health, wildlife, and the environment in a consistent and timely manner at the District or local government level? | E68: A | F68: ='3. OH Indicators By Sector'!F68 -> Yes | G68: 1 | I68: Yes | J68: 1
D69: Does the Ministry/Department with responsibilities for wildlife disease have an unofficial or official mechanism, policy or agreement in place to ensure One Health information and data sharing with the Ministries/Departments responsible for human health, animal health, and the environment in a consistent and timely manner at the central government level? | E69: WD | F69: ='3. OH Indicators By Sector'!F69 -> Yes | G69: 1 | I69: Yes | J69: =IF(I69="Yes",1,0) -> 1
D70: Does the Ministry/Department with responsibilities for wildlife disease have an unofficial or official mechanism, policy or agreement in place to ensure One Health information and data sharing with the Ministries/Departments responsible for human health, animal health, and the environment in a consistent and timely manner at the Provincial or sub-national government level? | E70: WD | F70: ='3. OH Indicators By Sector'!F70 -> Yes | G70: 1 | I70: Yes | J70: 1
D71: Does the Ministry/Department with responsibilities for wildlife disease have an unofficial or official mechanism, policy or agreement in place to ensure One Health information and data sharing with the Ministries/Departments responsible for human health, animal health, and the environment in a consistent and timely manner at the District or local government level? | E71: WD | F71: ='3. OH Indicators By Sector'!F71 -> No | G71: 0 | I71: No | J71: 0
D72: Does the Ministry/Department with responsibilities for wildlife management & conservation have an unofficial or official mechanism, policy or agreement in place to ensure One Health information and data sharing with the Ministries/Departments responsible for human health, animal health, and the environment in a consistent and timely manner at the central government level? | E72: WMC | F72: ='3. OH Indicators By Sector'!F72 -> No | G72: 0 | I72: No | J72: 0
D73: Does the Ministry/Department with responsibilities for wildlife management & conservation have an unofficial or official mechanism, policy or agreement in place to ensure One Health information and data sharing with the Ministries/Departments responsible for human health, animal health, and the environment in a consistent and timely manner at the Provincial or sub-national government level? | E73: WMC | F73: ='3. OH Indicators By Sector'!F73 -> No | G73: 0 | I73: No | J73: 0
D74: Does the Ministry/Department with responsibilities for wildlife management & conservation have an unofficial or official mechanism, policy or agreement in place to ensure One Health information and data sharing with the Ministries/Departments responsible for human health, animal health, and the environment in a consistent and timely manner at the District or local government level? | E74: WMC | F74: ='3. OH Indicators By Sector'!F74 -> No | G74: 0 | I74: No | J74: 0
D75: Does the Ministry/Department with responsibilities for the environment have an unofficial or official mechanism, policy or agreement in place to ensure One Health information and data sharing with the Ministries/Departments responsible for human health, animal health, and the environment in a consistent and timely manner at the central government level? | E75: E | F75: ='3. OH Indicators By Sector'!F75 -> Yes | G75: 1 | I75: Yes | J75: =IF(I75="Yes",1,0) -> 1
D76: Does the Ministry/Department with responsibilities for the environment have an unofficial or official mechanism, policy or agreement in place to ensure One Health information and data sharing with the Ministries/Departments responsible for human health, animal health, and the environment in a consistent and timely manner at the Provincial or sub-national government level? | E76: E | F76: ='3. OH Indicators By Sector'!F76 -> Yes | G76: 1 | I76: Yes | J76: 1
D77: Does the Ministry/Department with responsibilities for the environment have an unofficial or official mechanism, policy or agreement in place to ensure One Health information and data sharing with the Ministries/Departments responsible for human health, animal health, and the environment in a consistent and timely manner at the District or local government level? | E77: E | F77: ='3. OH Indicators By Sector'!F77 -> No | G77: 0 | I77: No | J77: 0
A78: 7 | B78: One Health Policy | C78: The Ministries/Departments with responsibilities for human health, animal health, wildlife, and the environment have policies in place that require collaboration for areas of work at the human-animal-wildlife-environment interface that are not limited to specific technical areas of work or in an emergency response. | D78: Does the human health Ministry/Department have policies in place that mandate collaboration for areas of work at the human-animal-wildlife-environment interface? If yes, please specify which technical areas of work and which other sectors (animal health, wildlife, and the environment) are involved in the comments column. | E78: H | F78: ='3. OH Indicators By Sector'!F78 -> Yes | G78: 1 | H78: =SUM(G78:G82)/5*10 -> 6 | I78: Yes | J78: 1 | K78: =SUM(J78:J82)/5*10 -> 6 | M78: 10
D79: Does the animal health Ministry/Department have policies in place that mandate collaboration for areas of work at the human-animal-wildlife-environment interface? If yes, please specify which technical areas of work and which other sectors (animal health, wildlife, and the environment) are involved in the comments column. | E79: A | F79: ='3. OH Indicators By Sector'!F79 -> Yes | G79: 1 | I79: Yes | J79: 1 | M79: 10
D80: Does the Ministry/Department with responsibilities for wildlife disease have policies in place that mandate collaboration for areas of work at the human-animal-wildlife-environment interface? If yes, please specify which technical areas of work and which other sectors (animal health, wildlife, and the environment) are involved in the comments column. | E80: WD | F80: ='3. OH Indicators By Sector'!F80 -> No | G80: 0 | I80: No | J80: 0 | M80: 0
D81: Does the Ministry/Department with responsibilities for wildlife management & conservation have policies in place that mandate collaboration for areas of work at the human-animal-wildlife-environment interface? If yes, please specify which technical areas of work and which other sectors (animal health, wildlife, and the environment) are involved in the comments column. | E81: WMC | F81: ='3. OH Indicators By Sector'!F81 -> No | G81: 0 | I81: No | J81: 0
D82: Does the Ministry/Department with responsibilities for environment have policies in place that mandate collaboration for areas of work at the human-animal-wildlife-environment interface? If yes, please specify which technical areas of work and which other sectors (animal health, wildlife, and the environment) are involved in the comments column. | E82: E | F82: ='3. OH Indicators By Sector'!F82 -> Yes | G82: 1 | I82: Yes | J82: 1 | M82: 10
A83: 8 | B83: National One Health Risk Communication Strategy | C83: There is a national One Health Risk Communication Strategy that has been endorsed by the Ministries/Departments and includes priorities of the human health, animal health, wildlife, and the environment sectors. | D83: Is there is a national One Health Risk Communication Strategy that has been endorsed by the human health Ministry/Department? | E83: H | F83: ='3. OH Indicators By Sector'!F83 -> Yes | G83: 1 | H83: =SUM(G83:G95)/15*10 -> 4 | I83: Yes | J83: 1 | K83: =SUM(J83:J95)/15*10 -> 6 | M83: 10
D84: The national One Health Risk Communication Strategy includes risks and threats relevent to the human health sector? | E84: H | F84: ='3. OH Indicators By Sector'!F84 -> Yes | G84: 1 | I84: Yes | J84: 1 | M84: 10
D85: The human health Ministry/Department has assigned a communication officer to support the OH communication strategy and coordinate with the other Ministries/Departments responsibile for animal health, wildlife, and the environment? | E85: H | F85: ='3. OH Indicators By Sector'!F85 -> No | G85: 0 | I85: No | J85: 0 | M85: 0
D86: Is there a national One Health Risk Communication Strategy that has been endorsed by the animal health Ministry/Department? | E86: A | F86: ='3. OH Indicators By Sector'!F86 -> Yes | G86: 1 | I86: Yes | J86: 1
D87: The national One Health Risk Communication Strategy includes risks and threats relevent to the animal health sector? | E87: A | F87: ='3. OH Indicators By Sector'!F87 -> Yes | G87: 1 | I87: Yes | J87: 1
D88: Does the animal health Ministry/Department has assigned a communication officer to support the OH communication strategy and coordinate with the other Ministries/Departments responsibile for human health, wildlife and the environment? | E88: A | F88: ='3. OH Indicators By Sector'!F88 -> No | G88: 0 | I88: Yes | J88: 1
D89: Is there a national One Health Risk Communication Strategy that has been endorsed by the Ministry/Department with responsibilities for wildlife disease? | E89: WD | F89: ='3. OH Indicators By Sector'!F89 -> No | G89: 0 | I89: Yes | J89: 1 | M89: 10
D90: The national One Health Risk Communication Strategy includes risks and threats relevent to the wildlife disease sub-sector? | E90: WD | F90: ='3. OH Indicators By Sector'!F90 -> Yes | G90: 1 | I90: Yes | J90: 1
D91: The Ministry/Department with responsibilities for wildlife disease has assigned a communication officer to support the OH communication strategy and coordinate with the other Ministries/Departments with responsibilities for human health, animal health, and the environment? | E91: WD | F91: ='3. OH Indicators By Sector'!F91 -> No | G91: 0 | I91: No | J91: 0
D92: Is there a national One Health Risk Communication Strategy that has been endorsed by the Ministry/Department with responsibilities for wildlife management & conservation? | E92: WMC | F92: ='3. OH Indicators By Sector'!F92 -> No | G92: 0 | I92: Yes | J92: 1
D93: The national One Health Risk Communication Strategy includes risks and threats relevent to the wildlife management & conservation sub-sector? | E93: WMC | F93: ='3. OH Indicators By Sector'!F93 -> No | G93: 0 | I93: No | J93: 0
D94: The Ministry/Department with responsibilities for wildlife management & conservation has assigned a communication officer to support the OH communication strategy and coordinate with the other Ministries/Departments with responsibilities for human health, animal health, and the environment? | E94: WMC | F94: ='3. OH Indicators By Sector'!F94 -> No | G94: 0 | I94: No | J94: 0
D95: Is there a national One Health Risk Communication Strategy that has been endorsed by the Ministry/Department with responsibilities for the environment? | E95: E | F95: ='3. OH Indicators By Sector'!F95 -> Yes | G95: 1 | I95: Yes | J95: 1
D96: The national One Health Risk Communication Strategy includes risks and threats relevent to the environment sector? | E96: E | F96: ='3. OH Indicators By Sector'!F96 -> Yes | G96: 1 | I96: Yes | J96: 1
D97: The Ministry/Department with responsibilities for the environment has assigned a communication officer to support the OH communication strategy and coordinate with the other Ministries/Departments with responsibilities for human health, animal health, and wildlife? | E97: E | F97: ='3. OH Indicators By Sector'!F97 -> No | G97: 0 | I97: No | J97: 0
A98: 9 | B98: Whole of Society Approach to One Health | C98: There is an established network of representatives from academia, NGO's, civil society, and the private sector from across the human health, animal health, wildlife, and environment sectors who are partners in national One Health implementation. | D98: Has the government established a human health sector network of partners that includes academia, NGO's, civil society, & private sector for One Health collaborations? | E98: H | F98: ='3. OH Indicators By Sector'!F98 -> No | G98: =IF(F98="Yes",1,0) -> 0 | H98: =SUM(G98:G112)/15*10 -> 5.333333333 | I98: No | J98: =IF(I98="Yes",1,0) -> 0 | K98: =SUM(J98:J112)/15*10 -> 7.333333333 | M98: =SUM(J98:J100)/4*10 -> 5
D99: Did the human health Ministry/Department consult with the relevent academia, NGO's, civil society, private sector partners on the development of the national One Health Strategy? | E99: H | F99: ='3. OH Indicators By Sector'!F99 -> Yes | G99: 1 | I99: Yes | J99: 1
D100: Does the human health Ministry/Department work with the partners from relevent academia, NGO's, civil society, private sector to implement the national One Health Action Plan? | E100: H | F100: ='3. OH Indicators By Sector'!F100 -> Yes | G100: 1 | I100: Yes | J100: 1
D101: Has the government established an animal health sector network of partners that includes academia, NGO's, civil society, & private sector for One Health collaborations? | E101: A | F101: ='3. OH Indicators By Sector'!F101 -> Yes | G101: 1 | I101: Yes | J101: 1 | M101: =SUM(J101:J103)/4*10 -> 7.5
D102: Did the animal health Ministry/Department consult with the relevent academia, NGO's, civil society, private sector partners on the development of the national One Health Strategy? | E102: A | F102: ='3. OH Indicators By Sector'!F102 -> Yes | G102: 1 | I102: Yes | J102: 1
D103: Does the animal health Ministry/Department work with the partners from relevent academia, NGO's, civil society, private sector to implement the national One Health Action Plan? | E103: A | F103: ='3. OH Indicators By Sector'!F103 -> Yes | G103: 1 | I103: Yes | J103: 1
D104: Has the government established a wildlife disease network of partners that includes academia, NGO's, civil society, & private sector for One Health collaborations? | E104: WD | F104: ='3. OH Indicators By Sector'!F104 -> Yes | G104: 1 | I104: Yes | J104: 1 | M104: =SUM(J104:J106)/4*10 -> 7.5
D105: Did the Ministry/Department with responsibilities for wildlife disease consult with the relevent academia, NGO's, civil society, private sector partners on the development of the national One Health Strategy? | E105: WD | F105: ='3. OH Indicators By Sector'!F105 -> Yes | G105: 1 | I105: Yes | J105: 1
D106: Does the Ministry/Department with responsibilities for wildlife disease work with the partners from relevent academia, NGO's, civil society, private sector to implement the national One Health Action Plan? | E106: WD | F106: ='3. OH Indicators By Sector'!F106 -> Yes | G106: 1 | I106: Yes | J106: 1
D107: Has the government established a wildlife management & conservation sector network of partners that includes academia, NGO's, civil society, & private sector for One Health collaborations? | E107: WMC | F107: ='3. OH Indicators By Sector'!F107 -> No | G107: 0 | I107: Yes | J107: 1
D108: Did the Ministry/Department with responsibilities for wildlife management & conservation consult with the relevent academia, NGO's, civil society, private sector partners on the development of the national One Health Strategy? | E108: WMC | F108: ='3. OH Indicators By Sector'!F108 -> No | G108: 0 | I108: Yes | J108: 1
D109: Does the Ministry/Department with responsibilities for wildlife management & conservation work with the partners from relevent academia, NGO's, civil society, private sector to implement the national One Health Action Plan? | E109: WMC | F109: ='3. OH Indicators By Sector'!F109 -> No | G109: 0 | I109: Yes | J109: 1
D110: Has the government established an environment network of partners that includes academia, NGO's, civil society, & private sector for One Health collaborations? | E110: E | F110: ='3. OH Indicators By Sector'!F110 -> No | G110: 0 | I110: No | J110: 0 | M110: =SUM(J110:J112)/4*10 -> 0
D111: Did the Ministry/Department with responsibilities for the environment consult with the relevent academia, NGO's, civil society, private sector partners on the development of the national One Health Strategy? | E111: E | F111: ='3. OH Indicators By Sector'!F111 -> No | G111: 0 | I111: No | J111: 0
D112: Does the Ministry/Department with responsibilities for the environment work with the partners from relevent academia, NGO's, civil society, private sector to implement the national One Health Action Plan? | E112: E | F112: ='3. OH Indicators By Sector'!F112 -> No | G112: 0 | I112: No | J112: 0
A113: 10 | B113: Competent One Health Workforce | C113: There is a competent One Health workforce consisting of representatives from human health, animal health, wildlife and the environment with established in-service training programs and joint sector One Health training. | D113: Has the human health Ministry/Department completed a workforce needs assessment or gap analysis using the FAO/WHO/WOAH One Health Field Epidemiology Competency Framework the within the last 3 years? | E113: H | F113: ='3. OH Indicators By Sector'!F113 -> Yes | G113: =IF(F113="Yes",1,0) -> 1 | H113: =SUM(G113:G132)/20*10 -> 4.5 | I113: Yes | J113: =IF(I113="Yes",1,0) -> 1 | K113: =SUM(J113:J132)/20*10 -> 4.5 | M113: =SUM(J113:J116)/7*10 -> 4.285714286
D114: Does the human health Ministry/Department have an in-service field training program? | E114: H | F114: ='3. OH Indicators By Sector'!F114 -> Yes | G114: =IF(F114="Yes",1,0) -> 1 | I114: Yes | J114: =IF(I114="Yes",1,0) -> 1
D115: Is the human health Ministry/Department's in-service field training program accredited by an academic institution or professional regulatory body? | E115: H | F115: ='3. OH Indicators By Sector'!F115 -> Yes | G115: 1 | I115: Yes | J115: 1
D116: Does the human health Ministry/Department in-service field training program include concurrent training with participants from the other three sectors (animal health, wildlife, and the environment)? | E116: H | F116: ='3. OH Indicators By Sector'!F116 -> No | G116: 0 | I116: No | J116: 0
D117: Has the animal health Ministry/Department completed a workforce needs assessment or gap analysis using the FAO/WHO/WOAH One Health Field Epidemiology Competency Framework within the last 3 years? | E117: A | F117: ='3. OH Indicators By Sector'!F117 -> Yes | G117: =IF(F117="Yes",1,0) -> 1 | I117: Yes | J117: =IF(I117="Yes",1,0) -> 1 | M117: =SUM(J117:J120)/7*10 -> 4.285714286
D118: Does the animal health Ministry/Department have an in-service field training program? | E118: A | F118: ='3. OH Indicators By Sector'!F118 -> Yes | G118: =IF(F118="Yes",1,0) -> 1 | I118: Yes | J118: =IF(I118="Yes",1,0) -> 1
D119: Is the animal health Ministry/Department's in-service field training program accredited by an academic institution or professional regulatory body? | E119: A | F119: ='3. OH Indicators By Sector'!F119 -> Yes | G119: 1 | I119: Yes | J119: 1
D120: Does the animal health Ministry/Department in-service field training program include concurrent training with participants from the other three sectors (human health, wildlife, and the environment)? | E120: A | F120: ='3. OH Indicators By Sector'!F120 -> No | G120: 0 | I120: No | J120: 0
D121: Has the Ministry/Department with responsibilities for wildlife disease completed a workforce needs assessment or gap analysis using the FAO/WHO/WOAH One Health Field Epidemiology Competency Framework within the last 3 years? | E121: WD | F121: ='3. OH Indicators By Sector'!F121 -> Yes | G121: 1 | I121: Yes | J121: =IF(I121="Yes",1,0) -> 1 | M121: =SUM(J121:J124)/7*10 -> 4.285714286
D122: Does the Ministry/Department with responsibilities for wildlife disease have an in-service field training program? | E122: WD | F122: ='3. OH Indicators By Sector'!F122 -> Yes | G122: 1 | I122: Yes | J122: 1
D123: Is the Ministry/Department with responsibilities for wildlife disease's in-service field training program accredited by an academic institution or professional regulatory body? | E123: WD | F123: ='3. OH Indicators By Sector'!F123 -> Yes | G123: 1 | I123: Yes | J123: 1
D124: Does the Ministry/Department with responsibilities for wildlife disease have concurrent in-service training with participants from the other three sectors (human health, animal health, and the environment)? | E124: WD | F124: ='3. OH Indicators By Sector'!F124 -> No | G124: 0 | I124: No | J124: 0
D125: Has the Ministry/Department with responsibilities for wildlife mangement & conservation completed a workforce needs assessment or gap analysis using One Health field training competenices within the last 3 years? | E125: WMC | F125: ='3. OH Indicators By Sector'!F125 -> No | G125: 0 | I125: No | J125: 0
D126: Does the Ministry/Department with responsibilities for wildlife management & conservation have an in-service field training program? | E126: WMC | F126: ='3. OH Indicators By Sector'!F126 -> No | G126: 0 | I126: No | J126: 0
D127: Is the Ministry/Department with responsibilities for wildlife management & conservation's in-service field training program accredited by an academic institution or professional regulatory body? | E127: WMC | F127: ='3. OH Indicators By Sector'!F127 -> No | G127: 0 | I127: No | J127: 0
D128: Does the Ministry/Department with responsibilities for wildlife management & conservation have concurrent in-service training with participants from the other three sectors (human health, animal health, and the environment)? | E128: WMC | F128: ='3. OH Indicators By Sector'!F128 -> No | G128: 0 | I128: No | J128: 0
D129: Has the Ministry/Department with responsibilities for the environment completed a workforce needs assessment or gap analysis using One Health field training competenices within the last 3 years? | E129: E | F129: ='3. OH Indicators By Sector'!F129 -> No | G129: 0 | I129: No | J129: =IF(I129="Yes",1,0) -> 0 | M129: =SUM(J129:J132)/7*10 -> 0
D130: Does the Ministry/Department with responsibilities for the environment have an in-service field training program? | E130: E | F130: ='3. OH Indicators By Sector'!F130 -> No | G130: 0 | I130: No | J130: 0
D131: Is the Ministry/Department with responsibilities for the environment's in-service field training program accredited by an academic institution or professional regulatory body? | E131: E | F131: ='3. OH Indicators By Sector'!F131 -> No | G131: 0 | I131: No | J131: 0
D132: Does the Ministry/Department with responsibilities for the environment One Health have concurrent in-service training with participants from the other three sectors (human health, animal health, and wildlife)? | E132: E | F132: ='3. OH Indicators By Sector'!F132 -> No | G132: 0 | I132: No | J132: 0
A133: Total Overall Consensus Score (All Sectors Combined) | K133: =SUM(J3:J132)/130*10 -> 5.923076923
E135: Overall Score by Consensus for each sector
C136: Final score taken place during the consensus workshop. | E136: Human Health | J136: =SUM(J3,J4,J13,J14,J15,J16, J33, J34,J43,J44,J53,J54,J63,J64,J65,J78,J83,J84, J85,J98,J99,J100,J113,J114,J115, J116)/26*10 -> 7.307692308 | K136: =J136 -> 7.307692308
C137: Add a sheet to enter final scores to populate the dashboard | E137: Animal Health | J137: =SUM(J5,J6,J17,J18,J19,J20, J35, J36, J45,J46, J55, J56, J66, J67, J68, J79, J86, J87, J88, J101,J102, J103,J117,J118,J119,J120)/26*10 -> 8.846153846 | K137: 8.846153846
E138: Wildlife Disease | J138: =SUM(J7,J8,J21,J22,J23, J24,J37,J38,J47,J48,J57,J58,J69,J70,J71,J80,J81,J89,J90,J91,J104,J105,J106,J121,J122,J123)/26*10 -> 5.769230769 | K138: 5.769230769
E139: Wildlife Manangement & Conservation | J139: =SUM(J9:J10,J25:J28, J39:J40,J49:J50,J59:J60,J72:J74,J81,J92:J94,J107:J109,J125:J128)/26*10 -> 4.230769231 | K139: 4.230769231
E140: Widlife Combined | J140: =SUM(J7:J10,J21:J28,J37:J40,J47:J50+J57:J60,J69:J74,J80:J81,J89:J94,J104:J109,J121:J128)/52*10 -> 5 | K140: 5
E141: Environment | J141: =SUM(J11:J12,J29:J32,J41:J42,J51:J52,J61:J62,J75:J77,J82,J95:J97,J110:J112,J129:J132)/26*10 -> 3.461538462 | K141: 3.461538462

Sheet Figure 3 dashboard (hidden)
A2: Indicator Number | B2: Indicator Name | C2: Element | D2: Sector | E2: Yes or No (select from dropdown) | G2: Sector Score by Indicator | H2: Sector Score by Stratified for Wildlife | J2: Indicator Number | K2: Indicator Name | L2: Sector | M2: Sector Score by Indicator | N2: Result
A3: 1 | B3: National One Health Coordination Mechansim | C3: Is there an government endorsed One Health Coordination Mechanism that officially acknowledges the human health Ministry/Department as a partner in One Health implementation? | D3: H | E3: ='6. OH Indicators By Consensus'!F3 -> Yes | F3: =IF(E3 = "Yes",1,0) -> 1 | G3: =(F3:F4)/2*10 -> 5 | J3: 1 | K3: I1. National One Health Coordination | L3: Human Health | M3: =(G3+G4) -> 10 | N3: =$M3-0.025 -> 9.975
A4: 1 | B4: National One Health Coordination Mechansim | C4: Do government regulations, directives, legislation or policy ensure that the human health Ministry/Department participates in the national One Health Coordination Mechanism? | D4: H | E4: ='6. OH Indicators By Consensus'!F4 -> Yes | F4: 1 | G4: 5 | J4: 1 | K4: I1. National One Health Coordination | L4: Animal Health | M4: =(G5+G6) -> 5 | N4: =$M4-0.025 -> 4.975
A5: 1 | B5: National One Health Coordination Mechansim | C5: Is there a government endorsed One Health Coordination Mechanism that officially acknowledges the animal health Ministry/Department as a partner in One Health implementation? | D5: A | E5: ='6. OH Indicators By Consensus'!F5 -> Yes | F5: 1 | G5: =(F5:F6)/2*10 -> 5 | J5: 1 | K5: I1. National One Health Coordination | L5: Wildlife | M5: =(G7+G8+G9+G10) -> 2.5 | N5: =$M5-0.025 -> 2.475
A6: 1 | B6: National One Health Coordination Mechansim | C6: Do government regulations, directives, legislation or policy ensure that the animal health Ministry/Department participates in the national One Health Coordination Mechanism? | D6: A | E6: ='6. OH Indicators By Consensus'!F6 -> No | F6: 0 | G6: 0 | J6: 1 | K6: I1. National One Health Coordination | L6: Environment | M6: =(G11+G12) -> 0 | N6: =$M6-0.025 -> -0.025
A7: 1 | B7: National One Health Coordination Mechansim | C7: Is there a government endorsed One Health Coordination Mechanism that officially acknowledges the Ministry/Department with responsibilities for wildlife disease as a partner in One Health implementation? | D7: WD | E7: ='6. OH Indicators By Consensus'!F7 -> Yes | F7: 1 | G7: =(F7:F10)/4*10 -> 2.5 | H7: =(F7:F8)/2*10 -> 5 | J7: 1 | K7: I1. National One Health Coordination | L7: Wildlife Disease | M7: =(H7+H8) -> 5 | N7: =$M7-0.025 -> 4.975
A8: 1 | B8: National One Health Coordination Mechansim | C8: Do government regulations, directives, legislation or policy ensure that the Ministry/Department with responsibilities for wildlife disease participates in the national One Health Coordination Mechanism? | D8: WD | E8: ='6. OH Indicators By Consensus'!F8 -> No | F8: 0 | G8: 0 | H8: 0 | J8: 1 | K8: I1. National One Health Coordination | L8: Wildlife Management and Conservation | M8: =(H9+H10) -> 0 | N8: -0.025
A9: 1 | B9: National One Health Coordination Mechansim | C9: Is there an officially recognized One Health Coordination Mechanism that officially acknowledges the Ministry/Department with responsibilities for wildlife management & conservation as a partner in One Health implementation? | D9: WMC | E9: ='6. OH Indicators By Consensus'!F9 -> No | F9: 0 | G9: 0 | H9: =(F9:F10)/2*10 -> 0 | J9: 2 | K9: I2. Government Commitment of Human Resources to Support One Health | L9: Human Health | M9: =(G13+G14+G15+G16) -> 7.5 | N9: 7.475
A10: 1 | B10: National One Health Coordination Mechansim | C10: Do government regulations, directives, legislation or policy ensure that the Ministry/Department with responsibilities for wildlife management & conservation participates in the national One Health Coordination Mechanism? | D10: WMC | E10: ='3. OH Indicators By Sector'!F10 -> No | F10: 0 | G10: 0 | H10: 0 | J10: 2 | K10: I2. Government Commitment of Human Resources to Support One Health | L10: Animal Health | M10: =(G17+G18+G19+G20) -> 5 | N10: 4.975
A11: 1 | B11: National One Health Coordination Mechansim | C11: Is there a government endorsed One Health Coordination Mechanism that officially acknowledges the environment sector as a partner in One Health implementation? | D11: E | E11: ='6. OH Indicators By Consensus'!F11 -> No | F11: 0 | G11: =(F11:F12)/2*10 -> 0 | J11: 2 | K11: I2. Government Commitment of Human Resources to Support One Health | L11: Wildlife | M11: =(G21+G22+G23+G24+G25+G26+G27+G27+G27+G27+G27+G28) -> 1.25 | N11: 1.225
A12: 1 | B12: National One Health Coordination Mechansim | C12: Do government regulations, directives, legislation or policy ensure that the Ministry/Department with responsibilities for the environment to participate in the national One Health Coordination Mechanism? | D12: E | E12: ='6. OH Indicators By Consensus'!F12 -> No | F12: 0 | G12: 0 | J12: 2 | K12: I2. Government Commitment of Human Resources to Support One Health | L12: Environment | M12: =(G29+G30+G31+G32) -> 0 | N12: -0.025
A13: 2 | B13: Government Commitment of Human Resources to Support One Health | C13: Does the human health Ministry/Department commit dedicated human resource person(s) to represent the Ministry/Department in the One Health Coordination Mechanism? | D13: H | E13: ='6. OH Indicators By Consensus'!F13 -> Yes | F13: 1 | G13: =(F13:F16)/4*10 -> 2.5 | J13: 2 | K13: I2. Government Commitment of Human Resources to Support One Health | L13: Wildlife Disease | M13: =(H21) -> 2.5 | N13: 2.475
A14: 2 | B14: Government Commitment of Human Resources to Support One Health | C14: Does the human health Ministry/Department commit technical human resource person(s) to support One Health technical working groups & the national One Health Action Plan? | D14: H | E14: ='6. OH Indicators By Consensus'!F14 -> Yes | F14: 1 | G14: 2.5 | J14: 2 | K14: I2. Government Commitment of Human Resources to Support One Health | L14: Wildlife Management and Conservation | M14: =(H25) -> 0 | N14: -0.025
A15: 2 | B15: Government Commitment of Human Resources to Support One Health | C15: Does the human health Ministry/Department commit human resources person(s) at the sub-national or provincial level to support One Health implementation? | D15: H | E15: ='6. OH Indicators By Consensus'!F15 -> Yes | F15: 1 | G15: 2.5 | J15: 3 | K15: I3. Government Support for One Health Implementation Activity | L15: Human Health | M15: =(G33+G34) -> 5 | N15: 4.975
A16: 2 | B16: Government Commitment of Human Resources to Support One Health | C16: Does the human health Ministry/Department commit human resources person(s) at the local, district, or community level to support One Health implementation? | D16: H | E16: ='6. OH Indicators By Consensus'!F16 -> No | F16: 0 | G16: 0 | J16: 3 | K16: I3. Government Support for One Health Implementation Activity | L16: Animal Health | M16: =(G35+G36) -> 5 | N16: 4.975
A17: 2 | B17: Government Commitment of Human Resources to Support One Health | C17: Does the animal health Ministry/Department commit dedicated human resource person(s) to represent the Ministry/Department in the One Health Coordination Mechanism? | D17: A | E17: ='6. OH Indicators By Consensus'!F17 -> Yes | F17: 1 | G17: =(F17:F20)/4*10 -> 2.5 | J17: 3 | K17: I3. Government Support for One Health Implementation Activity | L17: Wildlife | M17: =(G37+G38+G39+G40) -> 0 | N17: -0.025
A18: 2 | B18: Government Commitment of Human Resources to Support One Health | C18: Does the animal health Ministry/Department commit technical human resource person(s) to support One Health technical working groups & the national One Health Action Plan?? | D18: A | E18: ='6. OH Indicators By Consensus'!F18 -> No | F18: 0 | G18: 0 | J18: 3 | K18: I3. Government Support for One Health Implementation Activity | L18: Environment | M18: =(G41+G42) -> 5 | N18: 4.975
A19: 2 | B19: Government Commitment of Human Resources to Support One Health | C19: Does the animal health Ministry/Department commit human resources person(s) at the sub-national or provincial level to support One Health implementation? | D19: A | E19: ='6. OH Indicators By Consensus'!F19 -> Yes | F19: 1 | G19: 2.5 | J19: 3 | K19: I3. Government Support for One Health Implementation Activity | L19: Wildlife Disease | M19: =(H37+H38) -> 0 | N19: -0.025
A20: 2 | B20: Government Commitment of Human Resources to Support One Health | C20: Does the animal health Ministry/Department commit human resources person(s) at the local, district, or community level to support One Health implementation? | D20: A | E20: ='6. OH Indicators By Consensus'!F20 -> No | F20: 0 | G20: 0 | J20: 3 | K20: I3. Government Support for One Health Implementation Activity | L20: Wildlife Management and Conservation | M20: =(H39+H40) -> 0 | N20: -0.025
A21: 2 | B21: Government Commitment of Human Resources to Support One Health | C21: Does the Ministry/Department with responsibilities for wildlife disease commit dedicated human resource person(s) to represent the Ministry/Department in the One Health Coordination Mechanism? | D21: WD | E21: ='6. OH Indicators By Consensus'!F21 -> Yes | F21: 1 | G21: =(F21:F28)/8*10 -> 1.25 | H21: =(F21+F22+F23+F24)/4*10 -> 2.5 | J21: 4 | K21: I4. National One Health Strategy | L21: Human Health | M21: =(G43+G44) -> 10 | N21: 9.975
A22: 2 | B22: Government Commitment of Human Resources to Support One Health | C22: Does the Ministry/Department with responsibilities for wildlife disease commit technical human resource person(s) to support One Health technical working groups & the national One Health Action Plan? | D22: WD | E22: ='6. OH Indicators By Consensus'!F22 -> No | F22: 0 | G22: 0 | J22: 4 | K22: I4. National One Health Strategy | L22: Animal Health | M22: =(G45+G46) -> 10 | N22: 9.975
A23: 2 | B23: Government Commitment of Human Resources to Support One Health | C23: Does the Ministry/Department with responsibilities for wildlife disease commit human resources person(s) at the sub-national or provincial level to support One Health implementation? | D23: WD | E23: ='6. OH Indicators By Consensus'!F23 -> No | F23: 0 | G23: 0 | J23: 4 | K23: I4. National One Health Strategy | L23: Wildlife | M23: =(G47+G48+G49+G50) -> 7.5 | N23: 7.475
A24: 2 | B24: Government Commitment of Human Resources to Support One Health | C24: Does the Ministry/Department with responsibilities for wildlife disease commit human resources person(s) at the local, district, or community level to support One Health implementation? | D24: WD | E24: ='6. OH Indicators By Consensus'!F24 -> No | F24: 0 | G24: 0 | J24: 4 | K24: I4. National One Health Strategy | L24: Environment | M24: =(G51+G52) -> 5 | N24: 4.975
A25: 2 | B25: Government Commitment of Human Resources to Support One Health | C25: Does the Ministry/Department with responsibilities for wildlife management & conservation commit dedicated human resource person(s) to represent the Ministry/Department in the One Health Coordination Mechanism? | D25: WMC | E25: ='6. OH Indicators By Consensus'!F25 -> No | F25: 0 | G25: 0 | H25: =(G25+G26+G27+G28)*4/10 -> 0 | J25: 4 | K25: I4. National One Health Strategy | L25: Wildlife Disease | M25: =(H47+H48) -> 10 | N25: 9.975
A26: 2 | B26: Government Commitment of Human Resources to Support One Health | C26: Does the Ministry/Department with responsibilities for wildlife management & conservation committechnical human resource person(s) to support One Health technical working groups & the national One Health Action Plan? | D26: WMC | E26: ='6. OH Indicators By Consensus'!F26 -> No | F26: 0 | G26: 0 | J26: 4 | K26: I4. National One Health Strategy | L26: Wildlife Management and Conservation | M26: =(H59+H60) -> 5 | N26: 4.975
A27: 2 | B27: Government Commitment of Human Resources to Support One Health | C27: Does the Ministry/Department with responsibilities for wildlife management & conservation commit human resources person(s) at the sub-national or provincial level to support One Health implementation? | D27: WMC | E27: ='6. OH Indicators By Consensus'!F27 -> No | F27: 0 | G27: 0 | J27: 5 | K27: I5. National One Health Action Plan | L27: Human Health | M27: =(G63+G64+G65) -> 6.666666667 | N27: 6.641666667
A28: 2 | B28: Government Commitment of Human Resources to Support One Health | C28: Does the Ministry/Department with responsibilities for wildlife management & conservation commit human resources person(s) at the local, district, or community level to support One Health implementation? | D28: WMC | E28: ='6. OH Indicators By Consensus'!F28 -> No | F28: 0 | G28: 0 | J28: 5 | K28: I5. National One Health Action Plan | L28: Animal Health | M28: =(G66+G67+G68) -> 10 | N28: 9.975
A29: 2 | B29: Government Commitment of Human Resources to Support One Health | C29: Does the Ministry/Department with responsibilities for the environment commit dedicated human resource person(s) to represent the Ministry/Department in the One Health Coordination Mechanism? | D29: E | E29: ='6. OH Indicators By Consensus'!F29 -> No | F29: 0 | G29: =(F29:F32)/4*10 -> 0 | J29: 5 | K29: I5. National One Health Action Plan | L29: Wildlife | M29: =(G57+G58+G59+G60) -> 7.5 | N29: 7.475
A30: 2 | B30: Government Commitment of Human Resources to Support One Health | C30: Does the Ministry/Department with responsibilities for the environment commit technical human resource person(s) to support One Health technical working groups & the national One Health Action Plan? | D30: E | E30: ='6. OH Indicators By Consensus'!F30 -> No | F30: 0 | G30: 0 | J30: 5 | K30: I5. National One Health Action Plan | L30: Environment | M30: =(G61+G62) -> 5 | N30: 4.975
A31: 2 | B31: Government Commitment of Human Resources to Support One Health | C31: Does the Ministry/Department with responsibilities for the environment commit human resources person(s) at the sub-national or provincial level to support One Health implementation? | D31: E | E31: ='6. OH Indicators By Consensus'!F31 -> No | F31: 0 | G31: 0 | J31: 5 | K31: I5. National One Health Action Plan | L31: Wildlife Disease | M31: =(H57+H58) -> 10 | N31: 9.975
A32: 2 | B32: Government Commitment of Human Resources to Support One Health | C32: Does the Ministry/Department with responsibilities for the environment commit human resources person(s) at the local, district, or community level to support One Health implementation? | D32: E | E32: ='6. OH Indicators By Consensus'!F32 -> No | F32: 0 | G32: 0 | J32: 5 | K32: I5. National One Health Action Plan | L32: Wildlife Management and Conservation | M32: =(H59+H60) -> 5 | N32: 4.975
A33: 3 | B33: Government Support for One Helath Field Activity Implementation | C33: Are there dedicated finanical resources to support the human health sector to particiapte in One Health technical activitites & field implementation at the sub-national or provincial level ? | D33: H | E33: ='6. OH Indicators By Consensus'!F33 -> Yes | F33: 1 | G33: =(F33:F34)/2*10 -> 5 | J33: 6 | K33: I6. One Health Information Sharing | L33: Human Health | M33: =(G63+G64+G65) -> 6.666666667 | N33: 6.641666667
A34: 3 | B34: Government Support for One Helath Field Activity Implementation | C34: Are there dedicated finanical resources to support the human health sector to particiapte in One Health technical activitites & field implementation at local, district, or community level? | D34: H | E34: ='6. OH Indicators By Consensus'!F34 -> No | F34: 0 | G34: 0 | J34: 6 | K34: I6. One Health Information Sharing | L34: Animal Health | M34: =(G66+G67+G68) -> 10 | N34: 9.975
A35: 3 | B35: Government Support for One Helath Field Activity Implementation | C35: Are there dedicated finanical resources to support the animal health sector to particiapte in One Health technical activitites & field implementation at the sub-national or provincial level? | D35: A | E35: ='6. OH Indicators By Consensus'!F35 -> Yes | F35: =IF(E35 = "Yes",1,0) -> 1 | G35: =(F35:F36)/2*10 -> 5 | J35: 6 | K35: I6. One Health Information Sharing | L35: Wildlife | M35: =(G69+G70+G71+G72+G73+G74) -> 3.333333333 | N35: 3.308333333
A36: 3 | B36: Government Support for One Helath Field Activity Implementation | C36: Are there dedicated finanical resources to support the animal health sector to particiapte in One Health technical activitites & field implementation at the local, district, or community level? | D36: A | E36: ='6. OH Indicators By Consensus'!F36 -> No | F36: 0 | G36: 0 | J36: 6 | K36: I6. One Health Information Sharing | L36: Environment | M36: =(G75+G76+G77) -> 6.666666667 | N36: 6.641666667
A37: 3 | B37: Government Support for One Helath Field Activity Implementation | C37: Are there dedicated finanical resources to support the Ministry/Department with responsibilities for wildlife disease to particiapte in One Health technical activitites & field implementation atthe sub-national or provinical level? | D37: WD | E37: ='6. OH Indicators By Consensus'!F37 -> No | F37: 0 | G37: =(F37:F40)/4*10 -> 0 | H37: =(F37:F38)/2*10 -> 0 | J37: 6 | K37: I6. One Health Information Sharing | L37: Wildlife Disease | M37: =(H69+H70+H71) -> 6.666666667 | N37: 6.641666667
A38: 3 | B38: Government Support for One Helath Field Activity Implementation | C38: Are there dedicated finanical resources to support the Ministry/Department with responsibilities for wildlife disease to particiapte in One Health technical activitites & field implementation at the local, district, or community level? | D38: WD | E38: ='6. OH Indicators By Consensus'!F38 -> No | F38: 0 | G38: 0 | H38: 0 | J38: 6 | K38: I6. One Health Information Sharing | L38: Wildlife Management and Conservation | M38: =(H72+H73+H74) -> 0 | N38: -0.025
A39: 3 | B39: Government Support for One Helath Field Activity Implementation | C39: Are there dedicated finanical resources to support the Ministry/Department with responsibilities for wildlife management & conservation sector to particiapte in One Health technical activitites & field implementation at the sub-national or provinical level? | D39: WMC | E39: ='6. OH Indicators By Consensus'!F39 -> No | F39: 0 | G39: 0 | H39: =(F39:F40)*2/10 -> 0 | J39: 7 | K39: I7. One Health Policy | L39: Human Health | M39: =(G78) -> 10 | N39: 9.975
A40: 3 | B40: Government Support for One Helath Field Activity Implementation | C40: Are there dedicated finanical resources to support the Ministry/Department with responsibilities for wildlife management & conservation sector to particiapte in One Health technical activitites & field implementation at the local, district, or community level? | D40: WMC | E40: ='6. OH Indicators By Consensus'!F40 -> No | F40: 0 | G40: 0 | H40: 0 | J40: 7 | K40: I7. One Health Policy | L40: Animal Health | M40: =(G79) -> 10 | N40: 9.975
A41: 3 | B41: Government Support for One Helath Field Activity Implementation | C41: Are there dedicated finanical resources to support the Ministry/Department with responsibilities for the environment in their participation in One Health implemention at the sub-national or provinical level? | D41: E | E41: ='6. OH Indicators By Consensus'!F41 -> Yes | F41: 1 | G41: =(F41:F42)/2*10 -> 5 | J41: 7 | K41: I7. One Health Policy | L41: Wildlife | M41: =(G80+G81) -> 0 | N41: -0.025
A42: 3 | B42: Government Support for One Helath Field Activity Implementation | C42: Are there dedicated finanical resources to support the Ministry/Department with responsibilities for the environment in their participation in One Health implemention at the local, district, or community level? | D42: E | E42: ='6. OH Indicators By Consensus'!F42 -> No | F42: 0 | G42: 0 | J42: 7 | K42: I7. One Health Policy | L42: Environment | M42: =(G82) -> 10 | N42: 9.975
A43: 4 | B43: National One Health Strategy | C43: Is there a national One Health Strategy that has been endorsed by the human health Ministry/Department? | D43: H | E43: ='6. OH Indicators By Consensus'!F43 -> Yes | F43: 1 | G43: =(F43:F44)/2*10 -> 5 | J43: 7 | K43: I7. One Health Policy | L43: Wildlife Disease | M43: =(H80) -> 0 | N43: -0.025
A44: 4 | B44: National One Health Strategy | C44: Does the national One Health Strategy contains techncial priorities of the human health sector? | D44: H | E44: ='6. OH Indicators By Consensus'!F44 -> Yes | F44: 1 | G44: 5 | J44: 7 | K44: I7. One Health Policy | L44: Wildlife Management and Conservation | M44: =(H81) -> 0 | N44: -0.025
A45: 4 | B45: National One Health Strategy | C45: Is there a national One Health Strategy that has been endorsed by the animal health Ministry/Department? | D45: A | E45: ='6. OH Indicators By Consensus'!F45 -> Yes | F45: 1 | G45: =(F45:F46)/2*10 -> 5 | J45: 8 | K45: I8. National One Health Risk Communication Strategy | L45: Human Health | M45: =(G83+G84+G85) -> 6.666666667 | N45: 6.641666667
A46: 4 | B46: National One Health Strategy | C46: Does the national One Health Strategy contains techncial priorities of the animal health sector? | D46: A | E46: ='6. OH Indicators By Consensus'!F46 -> Yes | F46: 1 | G46: 5 | J46: 8 | K46: I8. National One Health Risk Communication Strategy | L46: Animal Health | M46: =(G86+G87+G88) -> 6.666666667 | N46: 6.641666667
A47: 4 | B47: National One Health Strategy | C47: Is there a national One Health Strategy that has been endorsed by the Ministry/Department with responsibilities for wildlife disease? | D47: WD | E47: ='6. OH Indicators By Consensus'!F47 -> Yes | F47: 1 | G47: =(F47:F50)/4*10 -> 2.5 | H47: =(F47:F48)/2*10 -> 5 | J47: 8 | K47: I8. National One Health Risk Communication Strategy | L47: Wildlife | M47: =(G89+G90+G91+G92+G93+G93+G93+G94) -> 1.666666667 | N47: 1.641666667
A48: 4 | B48: National One Health Strategy | C48: Does the national One Health Strategy contains techncial priorities of the wildlife disease sub-sector? | D48: WD | E48: ='6. OH Indicators By Consensus'!F48 -> Yes | F48: 1 | G48: 2.5 | H48: 5 | J48: 8 | K48: I8. National One Health Risk Communication Strategy | L48: Environment | M48: =(G95+G96+G97) -> 6.666666667 | N48: 6.641666667
A49: 4 | B49: National One Health Strategy | C49: Is there a national One Health Strategy that has been endorsed by the Ministry/Department with responsibilities for wildlife management & conservation? | D49: WMC | E49: ='6. OH Indicators By Consensus'!F49 -> No | F49: 0 | G49: 0 | H49: =(F49:F50)/2*10 -> 0 | J49: 8 | K49: I8. National One Health Risk Communication Strategy | L49: Wildlife Disease | M49: =(H104+H105+H106) -> 10 | N49: 9.975
A50: 4 | B50: National One Health Strategy | C50: Does the national One Health Strategy contains techncial priorities of the wildlife management & conservation sub-sector? | D50: WMC | E50: ='6. OH Indicators By Consensus'!F50 -> Yes | F50: 1 | G50: 2.5 | H50: 5 | J50: 8 | K50: I8. National One Health Risk Communication Strategy | L50: Wildlife Management and Conservation | M50: =(H107+H108+H109) -> 0 | N50: -0.025
A51: 4 | B51: National One Health Strategy | C51: Is there a national One Health Strategy that has been endorsed by the Ministry/Department with responsibilities for the environment? | D51: E | E51: ='6. OH Indicators By Consensus'!F51 -> No | F51: 0 | G51: =(F51:F52)/2*10 -> 0 | J51: 9 | K51: I9. Whole of Society Approach to One Health | L51: Human Health | M51: =(G98+G99+G100) -> 6.666666667 | N51: 6.641666667
A52: 4 | B52: National One Health Strategy | C52: Does the national One Health Strategy contains techncial priorities of the environment sector? | D52: E | E52: ='6. OH Indicators By Consensus'!F52 -> Yes | F52: 1 | G52: 5 | J52: 9 | K52: I9. Whole of Society Approach to One Health | L52: Animal Health | M52: =(G101+G102+G103) -> 10 | N52: 9.975
A53: 5 | B53: National One Health Action Plan | C53: Is there a national One Health Action Plan that has been endorsed by the human health Ministry/Department? | D53: H | E53: ='6. OH Indicators By Consensus'!F53 -> Yes | F53: 1 | G53: =(F53:F54)/2*10 -> 5 | J53: 9 | K53: I9. Whole of Society Approach to One Health | L53: Wildlife | M53: =(G104+G105+G106+G107+G108+G108+G108+G109) -> 5 | N53: 4.975
A54: 5 | B54: National One Health Action Plan | C54: Does the national One Health Action Plan contain activities relevent to the human health sector? | D54: H | E54: ='6. OH Indicators By Consensus'!F54 -> Yes | F54: 1 | G54: 5 | J54: 9 | K54: I9. Whole of Society Approach to One Health | L54: Environment | M54: =(G110+G111+G112) -> 0 | N54: -0.025
A55: 5 | B55: National One Health Action Plan | C55: Is there a national One Health Action Plan that has been endorsed by the animal health Ministry/Department? | D55: A | E55: ='6. OH Indicators By Consensus'!F55 -> Yes | F55: 1 | G55: =(F55:F56)/2*10 -> 5 | J55: 9 | K55: I9. Whole of Society Approach to One Health | L55: Wildlife Disease | M55: =(H104+H105+H106) -> 10 | N55: 9.975
A56: 5 | B56: National One Health Action Plan | C56: Does the national One Health Action Plan contain activities relevent to the animal health sector? | D56: A | E56: ='6. OH Indicators By Consensus'!F56 -> Yes | F56: 1 | G56: 5 | J56: 9 | K56: I9. Whole of Society Approach to One Health | L56: Wildlife Management and Conservation | M56: =(H107+H108+H109) -> 0 | N56: -0.025
A57: 5 | B57: National One Health Action Plan | C57: Is there a national One Health Action Plan that has been endorsed by the Ministry/Department with responsibilities for wildlife disease? | D57: WD | E57: ='6. OH Indicators By Consensus'!F57 -> Yes | F57: 1 | G57: =(F57:F60)/4*10 -> 2.5 | H57: =(F57:F58)/2*10 -> 5 | J57: 10 | K57: I10. Competent One Health Workforce | L57: Human Health | M57: =(G113+G114+G115+G116) -> 7.5 | N57: 7.475
A58: 5 | B58: National One Health Action Plan | C58: Does the national One Health Action Plan contain activities relevent to the wildlife disease sub-sector? | D58: WD | E58: ='6. OH Indicators By Consensus'!F58 -> Yes | F58: 1 | G58: 2.5 | H58: 5 | J58: 10 | K58: I10. Competent One Health Workforce | L58: Animal Health | M58: =(G117+G118+G119+G120) -> 7.5 | N58: 7.475
A59: 5 | B59: National One Health Action Plan | C59: Is there a national One Health Action Plan that has been endorsed by the Ministry/Department with responsibilities for wildlife management & conservation? | D59: WMC | E59: ='6. OH Indicators By Consensus'!F59 -> No | F59: 0 | G59: 0 | H59: =(F59:F60)/2*10 -> 0 | J59: 10 | K59: I10. Competent One Health Workforce | L59: Wildlife | M59: =(G121+G122+G123+G124+G125+G126+G127+G128) -> 3.75 | N59: 3.725
A60: 5 | B60: National One Health Action Plan | C60: Does the national One Health Action Plan contain activities relevent to the wildlife management & conservation sub-sector? | D60: WMC | E60: ='6. OH Indicators By Consensus'!F60 -> Yes | F60: 1 | G60: 2.5 | H60: 5 | J60: 10 | K60: I10. Competent One Health Workforce | L60: Environment | M60: =(G129+G130+G131+G132) -> 0 | N60: -0.025
A61: 5 | B61: National One Health Action Plan | C61: Is there a national One Health Action Plan that has been endorsed by the Ministry/Department with responsibilities for the environment? | D61: E | E61: ='6. OH Indicators By Consensus'!F61 -> No | F61: 0 | G61: =(F61:F62)/2*10 -> 0 | J61: 10 | K61: I10. Competent One Health Workforce | L61: Wildlife Disease | M61: =(H121+H122+H123+H124) -> 7.5 | N61: 7.475
A62: 5 | B62: National One Health Action Plan | C62: Does the national One Health Action Plan contain activities relevent to the environment sector? | D62: E | E62: ='6. OH Indicators By Consensus'!F62 -> Yes | F62: 1 | G62: 5 | J62: 10 | K62: I10. Competent One Health Workforce | L62: Wildlife Management and Conservation | M62: =(H125+H126+H127+H128) -> 0 | N62: -0.025
A63: 6 | B63: One Health Information Sharing | C63: Does the human health Ministry/Department have an unofficial or official mechanism, policy or agreement in place to ensure One Health information and data sharing with the Ministries/Departments responsible for animal health, wildlife, and the environment in a consistent and timely manner at the central government level? | D63: H | E63: ='6. OH Indicators By Consensus'!F63 -> Yes | F63: 1 | G63: =(F63:F65)/3*10 -> 3.333333333
A64: 6 | B64: One Health Information Sharing | C64: Does the human health Ministry/Department have an unofficial or official mechanism, policy or agreement in place to ensure One Health information and data sharing with the Ministries/Departments responsible for animal health, wildlife, and the environment in a consistent and timely manner at the Provincial or sub-national government level? | D64: H | E64: ='6. OH Indicators By Consensus'!F64 -> Yes | F64: 1 | G64: 3.333333333
A65: 6 | B65: One Health Information Sharing | C65: Does the human health Ministry/Department have an unofficial or official mechanism, policy or agreement in place to ensure One Health information and data sharing with the Ministries/Departments responsible for animal health, wildlife, and the environment in a consistent and timely manner at the District or local government level? | D65: H | E65: ='6. OH Indicators By Consensus'!F65 -> No | F65: 0 | G65: 0
A66: 6 | B66: One Health Information Sharing | C66: Does the animal health Ministry/Department have an unofficial or official mechanism, policy or agreement in place to ensure One Health information and data sharing with the Ministries/Departments responsible for human health, wildlife, and the environment in a consistent and timely manner at the central government level? | D66: A | E66: ='6. OH Indicators By Consensus'!F66 -> Yes | F66: 1 | G66: =(F66:F68)/3*10 -> 3.333333333
A67: 6 | B67: One Health Information Sharing | C67: Does the animal health Ministry/Department have an unofficial or official mechanism, policy or agreement in place to ensure One Health information and data sharing with the Ministries/Departments responsible for human health, wildlife, and the environment in a consistent and timely manner at the Provincial or sub-national government level? | D67: A | E67: ='6. OH Indicators By Consensus'!F67 -> Yes | F67: =IF(E67 = "Yes",1,0) -> 1 | G67: 3.333333333
A68: 6 | B68: One Health Information Sharing | C68: Does the animal health Ministry/Department have an unofficial or official mechanism, policy or agreement in place to ensure One Health information and data sharing with the Ministries/Departments responsible for animal health, wildlife, and the environment in a consistent and timely manner at the District or local government level? | D68: A | E68: ='6. OH Indicators By Consensus'!F68 -> Yes | F68: 1 | G68: 3.333333333
A69: 6 | B69: One Health Information Sharing | C69: Does the Ministry/Department with responsibilities for wildlife disease have an unofficial or official mechanism, policy or agreement in place to ensure One Health information and data sharing with the Ministries/Departments responsible for human health, animal health, and the environment in a consistent and timely manner at the central government level? | D69: WD | E69: ='6. OH Indicators By Consensus'!F69 -> Yes | F69: 1 | G69: =(F69:F74)/6*10 -> 1.666666667 | H69: =(F69:F71)/3*10 -> 3.333333333
A70: 6 | B70: One Health Information Sharing | C70: Does the Ministry/Department with responsibilities for wildlife disease have an unofficial or official mechanism, policy or agreement in place to ensure One Health information and data sharing with the Ministries/Departments responsible for human health, animal health, and the environment in a consistent and timely manner at the Provincial or sub-national government level? | D70: WD | E70: ='6. OH Indicators By Consensus'!F70 -> Yes | F70: 1 | G70: 1.666666667 | H70: 3.333333333
A71: 6 | B71: One Health Information Sharing | C71: Does the Ministry/Department with responsibilities for wildlife disease have an unofficial or official mechanism, policy or agreement in place to ensure One Health information and data sharing with the Ministries/Departments responsible for human health, animal health, and the environment in a consistent and timely manner at the District or local government level? | D71: WD | E71: ='6. OH Indicators By Consensus'!F71 -> No | F71: 0 | G71: 0 | H71: 0
A72: 6 | B72: One Health Information Sharing | C72: Does the Ministry/Department with responsibilities for wildlife management & conservation have an unofficial or official mechanism, policy or agreement in place to ensure One Health information and data sharing with the Ministries/Departments responsible for human health, animal health, and the environment in a consistent and timely manner at the central government level? | D72: WMC | E72: ='6. OH Indicators By Consensus'!F72 -> No | F72: 0 | G72: 0 | H72: =(F72:F74)/3*10 -> 0
A73: 6 | B73: One Health Information Sharing | C73: Does the Ministry/Department with responsibilities for wildlife management & conservation have an unofficial or official mechanism, policy or agreement in place to ensure One Health information and data sharing with the Ministries/Departments responsible for human health, animal health, and the environment in a consistent and timely manner at the Provincial or sub-national government level? | D73: WMC | E73: ='6. OH Indicators By Consensus'!F73 -> No | F73: 0 | G73: 0 | H73: 0
A74: 6 | B74: One Health Information Sharing | C74: Does the Ministry/Department with responsibilities for wildlife management & conservation have an unofficial or official mechanism, policy or agreement in place to ensure One Health information and data sharing with the Ministries/Departments responsible for human health, animal health, and the environment in a consistent and timely manner at the District or local government level? | D74: WMC | E74: ='6. OH Indicators By Consensus'!F74 -> No | F74: 0 | G74: 0 | H74: 0
A75: 6 | B75: One Health Information Sharing | C75: Does the Ministry/Department with responsibilities for the environment have an unofficial or official mechanism, policy or agreement in place to ensure One Health information and data sharing with the Ministries/Departments responsible for human health, animal health, and the environment in a consistent and timely manner at the central government level? | D75: E | E75: ='6. OH Indicators By Consensus'!F75 -> Yes | F75: 1 | G75: =(F75:F77)/3*10 -> 3.333333333
A76: 6 | B76: One Health Information Sharing | C76: Does the Ministry/Department with responsibilities for the environment have an unofficial or official mechanism, policy or agreement in place to ensure One Health information and data sharing with the Ministries/Departments responsible for human health, animal health, and the environment in a consistent and timely manner at the Provincial or sub-national government level? | D76: E | E76: ='6. OH Indicators By Consensus'!F76 -> Yes | F76: 1 | G76: 3.333333333
A77: 6 | B77: One Health Information Sharing | C77: Does the Ministry/Department with responsibilities for the environment have an unofficial or official mechanism, policy or agreement in place to ensure One Health information and data sharing with the Ministries/Departments responsible for human health, animal health, and the environment in a consistent and timely manner at the District or local government level? | D77: E | E77: ='6. OH Indicators By Consensus'!F77 -> No | F77: 0 | G77: 0
A78: 7 | B78: One Health Policy | C78: Does the human health Ministry/Department have policies in place that mandate collaboration for areas of work at the human-animal-wildlife-environment interface? If yes, please specify which technical areas of work and which other sectors (animal health, wildlife, and the environment) are involved in the comments column. | D78: H | E78: ='6. OH Indicators By Consensus'!F78 -> Yes | F78: 1 | G78: =(F78)/1*10 -> 10
A79: 7 | B79: One Health Policy | C79: Does the animal health Ministry/Department have policies in place that mandate collaboration for areas of work at the human-animal-wildlife-environment interface? If yes, please specify which technical areas of work and which other sectors (animal health, wildlife, and the environment) are involved in the comments column. | D79: A | E79: ='6. OH Indicators By Consensus'!F79 -> Yes | F79: 1 | G79: =(1)/1*10 -> 10
A80: 7 | B80: One Health Policy | C80: Does the Ministry/Department with responsibilities for wildlife disease have policies in place that mandate collaboration for areas of work at the human-animal-wildlife-environment interface? If yes, please specify which technical areas of work and which other sectors (animal health, wildlife, and the environment) are involved in the comments column. | D80: WD | E80: ='6. OH Indicators By Consensus'!F80 -> No | F80: 0 | G80: =(F80:F81)/2*10 -> 0 | H80: =F80/1*10 -> 0
A81: 7 | B81: One Health Policy | C81: Does the Ministry/Department with responsibilities for wildlife management & conservation have policies in place that mandate collaboration for areas of work at the human-animal-wildlife-environment interface? If yes, please specify which technical areas of work and which other sectors (animal health, wildlife, and the environment) are involved in the comments column. | D81: WMC | E81: ='6. OH Indicators By Consensus'!F81 -> No | F81: 0 | G81: 0 | H81: =F81/1*10 -> 0
A82: 7 | B82: One Health Policy | C82: Does the Ministry/Department with responsibilities for environment have policies in place that mandate collaboration for areas of work at the human-animal-wildlife-environment interface? If yes, please specify which technical areas of work and which other sectors (animal health, wildlife, and the environment) are involved in the comments column. | D82: E | E82: ='6. OH Indicators By Consensus'!F82 -> Yes | F82: 1 | G82: =F82/1*10 -> 10
A83: 8 | B83: National One Health Risk Communication Strategy | C83: Is there is a national One Health Risk Communication Strategy that has been endorsed by the human health Ministry/Department? | D83: H | E83: ='6. OH Indicators By Consensus'!F83 -> Yes | F83: 1 | G83: =(F83:F85)/3*10 -> 3.333333333
A84: 8 | B84: National One Health Risk Communication Strategy | C84: The national One Health Risk Communication Strategy includes risks and threats relevent to the human health sector? | D84: H | E84: ='6. OH Indicators By Consensus'!F84 -> Yes | F84: 1 | G84: 3.333333333
A85: 8 | B85: National One Health Risk Communication Strategy | C85: The human health Ministry/Department has assigned a communication officer to support the OH communication strategy and coordinate with the other Ministries/Departments responsibile for animal health, wildlife, and the environment? | D85: H | E85: ='6. OH Indicators By Consensus'!F85 -> No | F85: 0 | G85: 0
A86: 8 | B86: National One Health Risk Communication Strategy | C86: Is there a national One Health Risk Communication Strategy that has been endorsed by the animal health Ministry/Department? | D86: A | E86: ='6. OH Indicators By Consensus'!F86 -> Yes | F86: 1 | G86: =(F86:F88)/3*10 -> 3.333333333
A87: 8 | B87: National One Health Risk Communication Strategy | C87: The national One Health Risk Communication Strategy includes risks and threats relevent to the animal health sector? | D87: A | E87: ='6. OH Indicators By Consensus'!F87 -> Yes | F87: 1 | G87: 3.333333333
A88: 8 | B88: National One Health Risk Communication Strategy | C88: Does the animal health Ministry/Department has assigned a communication officer to support the OH communication strategy and coordinate with the other Ministries/Departments responsibile for human health, wildlife and the environment? | D88: A | E88: ='6. OH Indicators By Consensus'!F88 -> No | F88: 0 | G88: 0
A89: 8 | B89: National One Health Risk Communication Strategy | C89: Is there a national One Health Risk Communication Strategy that has been endorsed by the Ministry/Department with responsibilities for wildlife disease? | D89: WD | E89: ='6. OH Indicators By Consensus'!F89 -> No | F89: 0 | G89: =(F89:F94)/6*10 -> 0 | H89: =(F89:F91)/3*10 -> 0
A90: 8 | B90: National One Health Risk Communication Strategy | C90: The national One Health Risk Communication Strategy includes risks and threats relevent to the wildlife disease sub-sector? | D90: WD | E90: ='6. OH Indicators By Consensus'!F90 -> Yes | F90: 1 | G90: 1.666666667 | H90: 3.333333333
A91: 8 | B91: National One Health Risk Communication Strategy | C91: The Ministry/Department with responsibilities for wildlife disease has assigned a communication officer to support the OH communication strategy and coordinate with the other Ministries/Departments with responsibilities for human health, animal health, and the environment? | D91: WD | E91: ='6. OH Indicators By Consensus'!F91 -> No | F91: 0 | G91: 0 | H91: 0
A92: 8 | B92: National One Health Risk Communication Strategy | C92: Is there a national One Health Risk Communication Strategy that has been endorsed by the Ministry/Department with responsibilities for wildlife management & conservation? | D92: WMC | E92: ='6. OH Indicators By Consensus'!F92 -> No | F92: 0 | G92: 0 | H92: =(F92:F94)/3*10 -> 0
A93: 8 | B93: National One Health Risk Communication Strategy | C93: The national One Health Risk Communication Strategy includes risks and threats relevent to the wildlife management & conservation sub-sector? | D93: WMC | E93: ='6. OH Indicators By Consensus'!F93 -> No | F93: 0 | G93: 0 | H93: 0
A94: 8 | B94: National One Health Risk Communication Strategy | C94: The Ministry/Department with responsibilities for wildlife management & conservation has assigned a communication officer to support the OH communication strategy and coordinate with the other Ministries/Departments with responsibilities for human health, animal health, and the environment? | D94: WMC | E94: ='6. OH Indicators By Consensus'!F94 -> No | F94: 0 | G94: 0 | H94: 0
A95: 8 | B95: National One Health Risk Communication Strategy | C95: Is there a national One Health Risk Communication Strategy that has been endorsed by the Ministry/Department with responsibilities for the environment? | D95: E | E95: ='6. OH Indicators By Consensus'!F95 -> Yes | F95: 1 | G95: =(F95:F97)/3*10 -> 3.333333333
A96: 8 | B96: National One Health Risk Communication Strategy | C96: The national One Health Risk Communication Strategy includes risks and threats relevent to the environment sector? | D96: E | E96: ='6. OH Indicators By Consensus'!F96 -> Yes | F96: 1 | G96: 3.333333333
A97: 8 | B97: National One Health Risk Communication Strategy | C97: The Ministry/Department with responsibilities for the environment has assigned a communication officer to support the OH communication strategy and coordinate with the other Ministries/Departments with responsibilities for human health, animal health, and wildlife? | D97: E | E97: ='6. OH Indicators By Consensus'!F97 -> No | F97: 0 | G97: 0
A98: 9 | B98: Whole of Society Approach to One Health | C98: Has the government established a human health sector network of partners that includes academia, NGO's, civil society, & private sector for One Health collaborations? | D98: H | E98: ='6. OH Indicators By Consensus'!F98 -> No | F98: 0 | G98: =(F98:F100)/3*10 -> 0
A99: 9 | B99: Whole of Society Approach to One Health | C99: Did the human health Ministry/Department consult with the relevent academia, NGO's, civil society, private sector partners on the development of the national One Health Strategy? | D99: H | E99: ='6. OH Indicators By Consensus'!F99 -> Yes | F99: =IF(E99 = "Yes",1,0) -> 1 | G99: 3.333333333
A100: 9 | B100: Whole of Society Approach to One Health | C100: Does the human health Ministry/Department work with the partners from relevent academia, NGO's, civil society, private sector to implement the national One Health Action Plan? | D100: H | E100: ='6. OH Indicators By Consensus'!F100 -> Yes | F100: 1 | G100: 3.333333333
A101: 9 | B101: Whole of Society Approach to One Health | C101: Has the government established an animal health sector network of partners that includes academia, NGO's, civil society, & private sector for One Health collaborations? | D101: A | E101: ='6. OH Indicators By Consensus'!F101 -> Yes | F101: 1 | G101: =(F101:F103)/3*10 -> 3.333333333
A102: 9 | B102: Whole of Society Approach to One Health | C102: Did the animal health Ministry/Department consult with the relevent academia, NGO's, civil society, private sector partners on the development of the national One Health Strategy? | D102: A | E102: ='6. OH Indicators By Consensus'!F102 -> Yes | F102: 1 | G102: 3.333333333
A103: 9 | B103: Whole of Society Approach to One Health | C103: Does the animal health Ministry/Department work with the partners from relevent academia, NGO's, civil society, private sector to implement the national One Health Action Plan? | D103: A | E103: ='6. OH Indicators By Consensus'!F103 -> Yes | F103: 1 | G103: 3.333333333
A104: 9 | B104: Whole of Society Approach to One Health | C104: Has the government established a wildlife disease network of partners that includes academia, NGO's, civil society, & private sector for One Health collaborations? | D104: WD | E104: ='6. OH Indicators By Consensus'!F104 -> Yes | F104: 1 | G104: =(F104:F109)/6*10 -> 1.666666667 | H104: =(F104:F106)/3*10 -> 3.333333333
A105: 9 | B105: Whole of Society Approach to One Health | C105: Did the Ministry/Department with responsibilities for wildlife disease consult with the relevent academia, NGO's, civil society, private sector partners on the development of the national One Health Strategy? | D105: WD | E105: ='6. OH Indicators By Consensus'!F105 -> Yes | F105: 1 | G105: 1.666666667 | H105: 3.333333333
A106: 9 | B106: Whole of Society Approach to One Health | C106: Does the Ministry/Department with responsibilities for wildlife disease work with the partners from relevent academia, NGO's, civil society, private sector to implement the national One Health Action Plan? | D106: WD | E106: ='6. OH Indicators By Consensus'!F106 -> Yes | F106: 1 | G106: 1.666666667 | H106: 3.333333333
A107: 9 | B107: Whole of Society Approach to One Health | C107: Has the government established a wildlife management & conservation sector network of partners that includes academia, NGO's, civil society, & private sector for One Health collaborations? | D107: WMC | E107: ='6. OH Indicators By Consensus'!F107 -> No | F107: 0 | G107: 0 | H107: =(F107:F109)/3*10 -> 0
A108: 9 | B108: Whole of Society Approach to One Health | C108: Did the Ministry/Department with responsibilities for wildlife management & conservation consult with the relevent academia, NGO's, civil society, private sector partners on the development of the national One Health Strategy? | D108: WMC | E108: ='6. OH Indicators By Consensus'!F108 -> No | F108: 0 | G108: 0 | H108: 0
A109: 9 | B109: Whole of Society Approach to One Health | C109: Does the Ministry/Department with responsibilities for wildlife management & conservation work with the partners from relevent academia, NGO's, civil society, private sector to implement the national One Health Action Plan? | D109: WMC | E109: ='6. OH Indicators By Consensus'!F109 -> No | F109: 0 | G109: 0 | H109: 0
A110: 9 | B110: Whole of Society Approach to One Health | C110: Has the government established an environment network of partners that includes academia, NGO's, civil society, & private sector for One Health collaborations? | D110: E | E110: ='6. OH Indicators By Consensus'!F110 -> No | F110: 0 | G110: =(F110:F112)/3*10 -> 0
A111: 9 | B111: Whole of Society Approach to One Health | C111: Did the Ministry/Department with responsibilities for the environment consult with the relevent academia, NGO's, civil society, private sector partners on the development of the national One Health Strategy? | D111: E | E111: ='6. OH Indicators By Consensus'!F111 -> No | F111: 0 | G111: 0
A112: 9 | B112: Whole of Society Approach to One Health | C112: Does the Ministry/Department with responsibilities for the environment work with the partners from relevent academia, NGO's, civil society, private sector to implement the national One Health Action Plan? | D112: E | E112: ='6. OH Indicators By Consensus'!F112 -> No | F112: 0 | G112: 0
A113: 10 | B113: Competent One Health Workforce | C113: Has the human health Ministry/Department completed a workforce needs assessment or gap analysis using the FAO/WHO/WOAH One Health Field Epidemiology Competency Framework the within the last 3 years? | D113: H | E113: ='6. OH Indicators By Consensus'!F113 -> Yes | F113: 1 | G113: =(F113:F116)/4*10 -> 2.5
A114: 10 | B114: Competent One Health Workforce | C114: Does the human health Ministry/Department have an in-service field training program? | D114: H | E114: ='6. OH Indicators By Consensus'!F114 -> Yes | F114: 1 | G114: 2.5
A115: 10 | B115: Competent One Health Workforce | C115: Is the human health Ministry/Department's in-service field training program accredited by an academic institution or professional regulatory body? | D115: H | E115: ='6. OH Indicators By Consensus'!F115 -> Yes | F115: 1 | G115: 2.5
A116: 10 | B116: Competent One Health Workforce | C116: Does the human health Ministry/Department in-service field training program include concurrent training with participants from the other three sectors (animal health, wildlife, and the environment)? | D116: H | E116: ='6. OH Indicators By Consensus'!F116 -> No | F116: 0 | G116: 0
A117: 10 | B117: Competent One Health Workforce | C117: Has the animal health Ministry/Department completed a workforce needs assessment or gap analysis using the FAO/WHO/WOAH One Health Field Epidemiology Competency Framework within the last 3 years? | D117: A | E117: ='6. OH Indicators By Consensus'!F117 -> Yes | F117: 1 | G117: =(F117:F120)/4*10 -> 2.5
A118: 10 | B118: Competent One Health Workforce | C118: Does the animal health Ministry/Department have an in-service field training program? | D118: A | E118: ='6. OH Indicators By Consensus'!F118 -> Yes | F118: 1 | G118: 2.5
A119: 10 | B119: Competent One Health Workforce | C119: Is the animal health Ministry/Department's in-service field training program accredited by an academic institution or professional regulatory body? | D119: A | E119: ='6. OH Indicators By Consensus'!F119 -> Yes | F119: 1 | G119: 2.5
A120: 10 | B120: Competent One Health Workforce | C120: Does the animal health Ministry/Department in-service field training program include concurrent training with participants from the other three sectors (human health, wildlife, and the environment)? | D120: A | E120: ='6. OH Indicators By Consensus'!F120 -> No | F120: 0 | G120: 0
A121: 10 | B121: Competent One Health Workforce | C121: Has the Ministry/Department with responsibilities for wildlife disease completed a workforce needs assessment or gap analysis using the FAO/WHO/WOAH One Health Field Epidemiology Competency Framework within the last 3 years? | D121: WD | E121: ='6. OH Indicators By Consensus'!F121 -> Yes | F121: 1 | G121: =(F121:F128)/8*10 -> 1.25 | H121: =(F121:F124)/4*10 -> 2.5
A122: 10 | B122: Competent One Health Workforce | C122: Does the Ministry/Department with responsibilities for wildlife disease have an in-service field training program? | D122: WD | E122: ='6. OH Indicators By Consensus'!F122 -> Yes | F122: 1 | G122: 1.25 | H122: 2.5
A123: 10 | B123: Competent One Health Workforce | C123: Is the Ministry/Department with responsibilities for wildlife disease's in-service field training program accredited by an academic institution or professional regulatory body? | D123: WD | E123: ='6. OH Indicators By Consensus'!F123 -> Yes | F123: 1 | G123: 1.25 | H123: 2.5
A124: 10 | B124: Competent One Health Workforce | C124: Does the Ministry/Department with responsibilities for wildlife disease have concurrent in-service training with participants from the other three sectors (human health, animal health, and the environment)? | D124: WD | E124: ='6. OH Indicators By Consensus'!F124 -> No | F124: 0 | G124: 0 | H124: 0
A125: 10 | B125: Competent One Health Workforce | C125: Has the Ministry/Department with responsibilities for wildlife mangement & conservation completed a workforce needs assessment or gap analysis using One Health field training competenices within the last 3 years? | D125: WMC | E125: ='6. OH Indicators By Consensus'!F125 -> No | F125: 0 | G125: 0 | H125: =(F125:F128)/4*10 -> 0
A126: 10 | B126: Competent One Health Workforce | C126: Does the Ministry/Department with responsibilities for wildlife management & conservation have an in-service field training program? | D126: WMC | E126: ='6. OH Indicators By Consensus'!F126 -> No | F126: 0 | G126: 0 | H126: 0
A127: 10 | B127: Competent One Health Workforce | C127: Is the Ministry/Department with responsibilities for wildlife management & conservation's in-service field training program accredited by an academic institution or professional regulatory body? | D127: WMC | E127: ='6. OH Indicators By Consensus'!F127 -> No | F127: 0 | G127: 0 | H127: 0
A128: 10 | B128: Competent One Health Workforce | C128: Does the Ministry/Department with responsibilities for wildlife management & conservation have concurrent in-service training with participants from the other three sectors (human health, animal health, and the environment)? | D128: WMC | E128: ='6. OH Indicators By Consensus'!F128 -> No | F128: 0 | G128: 0 | H128: 0
A129: 10 | B129: Competent One Health Workforce | C129: Has the Ministry/Department with responsibilities for the environment completed a workforce needs assessment or gap analysis using One Health field training competenices within the last 3 years? | D129: E | E129: ='6. OH Indicators By Consensus'!F129 -> No | F129: 0 | G129: =(F129:F132)/4*10 -> 0
A130: 10 | B130: Competent One Health Workforce | C130: Does the Ministry/Department with responsibilities for the environment have an in-service field training program? | D130: E | E130: ='6. OH Indicators By Consensus'!F130 -> No | F130: 0 | G130: 0
A131: 10 | B131: Competent One Health Workforce | C131: Is the Ministry/Department with responsibilities for the environment's in-service field training program accredited by an academic institution or professional regulatory body? | D131: E | E131: ='6. OH Indicators By Consensus'!F131 -> No | F131: =IF(E131 = "Yes",1,0) -> 0 | G131: 0
A132: 10 | B132: Competent One Health Workforce | C132: Does the Ministry/Department with responsibilities for the environment One Health have concurrent in-service training with participants from the other three sectors (human health, animal health, and wildlife)? | D132: E | E132: ='6. OH Indicators By Consensus'!F132 -> No | F132: 0 | G132: 0

Sheet 7. Indicator x JPA Crosswalk
B1: OH Indicator X OH JPA Crosswalk
B2: OH INDICATORS | F2: ACTION TRACK SCORES
C3: INDICATOR DESCRIPTION | D3: ACTION TRACK LINKAGE QUESTION | F3: Action Track 1: Enhancing OH capacities to strengthen health systems | G3: Action Track 2: Reducing the risks from emerging and re-emerging zoonotic diseases | H3: Action Track 3: Controlling and eliminating endemic zoonotic, neglected tropical, and vector-borne diseases | I3: Action Track 4: Strengthening the assessment, management & communication of food safety risks | J3: Action Track 5: Curbing AMR | K3: Action Track 6: Integrating the environment into OH
E4: TOTAL | F4: =COUNTIF(F5:F14, "Yes") -> 5 | G4: 8 | H4: 5 | I4: 9 | J4: 7 | K4: 4
A5: 1 | B5: National One Health Coordination Mechanism | C5: A government endorsed One Health Coordination Mechanism (or similar structure) exists, is led by a high level government official (such as a Prime Minister or Deputy Prime Minister), includes representatives from each of the Ministries/Departments responsible for human health, animal health, widlife, and the environment, and includes techincal areas relevent to all sectors (not limited to specific technical areas such as zoonotic disease, antimicrobial resistance, or food safety). | D5: Does the National One Health Coordination Mechanism address or support each of the action tracks? | F5: No | G5: Yes | H5: No | I5: Yes | J5: Yes | K5: Yes
A6: 2 | B6: Government Commitment of Human Resources to Support One Health | C6: The Ministries/Departments with responsibilities for human health, animal health, wildlife, and the environment commit the human resources needed for the One Health Coordination Mechanism and the One Health technical working groups, and to support One Health implementation at the sub-national and local levels. | D6: Does the Ministry/Department provide the human resources needed to support each of the action tracks? | F6: Yes | G6: Yes | H6: No | I6: Yes | J6: Yes | K6: No
A7: 3 | B7: Government Support for One Health Field Activity Implementation | C7: The Ministries/Departments with responsibilities for human health, animal health, wildlife, and the environment commit the finanical resources needed to support implementation of One Health technical activitites & field implementation. | D7: Does the Ministry/Department provide the finanical resources needed to support each of the action tracks? | F7: No | G7: Yes | H7: No | I7: Yes | J7: No | K7: Yes
A8: 4 | B8: National One Health Strategy | C8: There is a national One Health Strategy that has been endorsed by the Ministries/Departments with responsibilities for human health, animal health, wildlife, and the environment. The OH Strategy includes technical priorities relevent to the human health, animal health, wildlife, and environment sectors. | D8: Does the national One Health Strategy address each of the action tracks? | F8: Yes | G8: Yes | H8: Yes | I8: Yes | J8: Yes | K8: No
A9: 5 | B9: National One Health Action Plan | C9: There is a national One Health Action Plan that has been endorsed by the Ministries/Departments with responsibilities for human health, animal health, wildlife, and the environment. The OH Action Plan includes technical activities relevent to the human health, animal health, wildlife, and environment sectors. | D9: Does the national One Health Action Plan address each of the action tracks? | F9: Yes | G9: No | H9: Yes | I9: Yes | J9: No | K9: Yes
A10: 6 | B10: One Health Information Sharing | C10: The Ministries/Departments with responsibilities for human health, animal health, wildlife, and the environment have mechanisms in place to share relevant One Health information and data amongst the Ministries/Departments and that this information and data are shared in a consistent and timely manner at national, sub-national and local levels. | D10: Is information relating to each of the action tracks shared across the sectors? | F10: No | G10: Yes | H10: No | I10: Yes | J10: Yes | K10: No
A11: 7 | B11: One Health Policy | C11: The Ministries/Departments with responsibilities for human health, animal health, wildlife, and the environment have policies in place that require collaboration for areas of work at the human-animal-wildlife-environment interface that are not limited to specific technical areas of work or in an emergency response. | D11: Is there policy to support each of the action tracks ? | F11: Yes | G11: Yes | H11: Yes | I11: Yes | J11: Yes | K11: Yes
A12: 8 | B12: National One Health Risk Communication Strategy | C12: There is a national One Health Risk Communication Strategy that has been endorsed by the Ministries/Departments and includes priorities of the human health, animal health, wildlife, and the environment sectors. | D12: Does the joint One Health Risk Communication Strategy address each of the action tracks? | F12: Yes | G12: Yes | H12: No | I12: Yes | J12: Yes | K12: No
A13: 9 | B13: Whole of Society Approach to One Health | C13: There is an established network of representatives from academia, NGO's, civil society, and the private sector from across the human health, animal health, wildlife, and environment sectors who are partners in national One Health implementation. | D13: Are the relevant stakeholders included in efforts to address each of the actions tracks? | F13: No | G13: No | H13: Yes | I13: Yes | J13: Yes | K13: No
A14: 10 | B14: Competent One Health Workforce | C14: There is a competent One Health workforce consisting of representatives from human health, animal health, wildlife and the environment with established in-service training programs and joint sector One Health training. | D14: Does the One Health workforce have the capacity to contribute to each of the action tracks? | F14: No | G14: Yes | H14: Yes | I14: No | J14: No | K14: No
A15: Comments

Sheet 8. Indicator x Priority Area
A2: OH Indicators X Priority Areas Crosswalk
A3: OH INDICATORS | E3: PRIORITY AREA SCORES
B4: INDICATOR DESCRIPTION | C4: PRIORITY AREA LINKAGE QUESTION | E4: Priority Area 1 : Prevent environmental degredation, preserve & restore habitat, biodiversity & ecosystems | F4: Priority Area 2: Implement climate change adaptation & mitigation measures | G4: Priority Area 3: Improve waste, effluent, pollution management-ecotoxicology | H4: Priority Area 4: Prevent agriculture & urban encroachmnet through land-use planning | I4: Priority Area 5: Sustainable, climate smart agricultural production | J4: Priority Area 6: Improve wildlife farming & wildlife trade management, inlcuding wildlife sales | K4: Priority Area 7: Improve food safety at informal & formal markets that mix & sell domestic & wild animals | L4: Priority Area 8: Food Systems Transformation
D5: Total | E5: =COUNTIF(E6:E15, "Yes") -> 7 | F5: =COUNTIF(F6:F15, "Yes") -> 5 | G5: 5 | H5: 5 | I5: 7 | J5: 6 | K5: 5 | L5: 3
A6: National One Health Coordination Mechanism | B6: A government endorsed One Health Coordination Mechanism (or similar structure) exists, is led by a high level government official (such as a Prime Minister or Deputy Prime Minister), includes representatives from each of the Ministries/Departments responsible for human health, animal health, widlife, and the environment, and includes techincal areas relevent to all sectors (not limited to specific technical areas such as zoonotic disease, antimicrobial resistance, or food safety). | C6: Does the National One Health Coordination Mechanism address or support each of the priority areas? | E6: Yes | F6: No | G6: Yes | H6: No | I6: Yes | J6: Yes | K6: Yes | L6: No
A7: Government Commitment of Human Resources to Support One Health | B7: The Ministries/Departments with responsibilities for human health, animal health, wildlife, and the environment commit the human resources needed for the One Health Coordination Mechanism and the One Health technical working groups, and to support One Health implementation at the sub-national and local levels. | C7: Does the Ministry/Department provide the human resources needed to support each of the priority areas? | E7: Yes | F7: No | G7: No | H7: No | I7: No | J7: No | K7: No | L7: No
A8: Government Support for One Health Field Activity Implementation | B8: The Ministries/Departments with responsibilities for human health, animal health, wildlife, and the environment commit the finanical resources needed to support implementation of One Health technical activitites & field implementation. | C8: Does the Ministry/Department provide the finanical resources needed to support each of the priority areas? | E8: Yes | F8: No | G8: Yes | H8: Yes | I8: Yes | J8: No | K8: Yes | L8: No
A9: National One Health Strategy | B9: There is a national One Health Strategy that has been endorsed by the Ministries/Departments with responsibilities for human health, animal health, wildlife, and the environment. The OH Strategy includes technical priorities relevent to the human health, animal health, wildlife, and environment sectors. | C9: Does the national One Health Strategy address each of the priority areas? | E9: Yes | F9: Yes | G9: No | H9: No | I9: Yes | J9: No | K9: Yes | L9: Yes
A10: National One Health Action Plan | B10: There is a national One Health Action Plan that has been endorsed by the Ministries/Departments with responsibilities for human health, animal health, wildlife, and the environment. The OH Action Plan includes technical activities relevent to the human health, animal health, wildlife, and environment sectors. | C10: Does the national One Health Action Plan address each of the priority areas? | E10: Yes | F10: Yes | G10: No | H10: Yes | I10: Yes | J10: Yes | K10: No | L10: No
A11: One Health Information Sharing | B11: The Ministries/Departments with responsibilities for human health, animal health, wildlife, and the environment have mechanisms in place to share relevant One Health information and data amongst the Ministries/Departments and that this information and data are shared in a consistent and timely manner at national, sub-national and local levels. | C11: Is information relating to each of the priority areas shared across the sectors? | E11: No | F11: No | G11: No | H11: Yes | I11: Yes | J11: Yes | K11: No | L11: No
A12: One Health Policy | B12: The Ministries/Departments with responsibilities for human health, animal health, wildlife, and the environment have policies in place that require collaboration for areas of work at the human-animal-wildlife-environment interface that are not limited to specific technical areas of work or in an emergency response. | C12: Is there policy to support each of the priority areas? | E12: No | F12: No | G12: No | H12: No | I12: No | J12: Yes | L12: Yes
A13: National One Health Risk Communication Strategy | B13: There is a national One Health Risk Communication Strategy that has been endorsed by the Ministries/Departments and includes priorities of the human health, animal health, wildlife, and the environment sectors. | C13: Does the joint One Health Risk Communication Strategy address each of the priority areas? | E13: Yes | F13: Yes | G13: Yes | H13: No | I13: No | J13: Yes | K13: Yes | L13: No
A14: Whole of Society Approach to One Health | B14: There is an established network of representatives from academia, NGO's, civil society, and the private sector from across the human health, animal health, wildlife, and environment sectors who are partners in national One Health implementation. | C14: Are the relevant stakeholders included in efforts to address each of the priority areas? | E14: Yes | F14: Yes | G14: Yes | H14: Yes | I14: Yes | J14: No | K14: Yes | L14: Yes
A15: Competent One Health Workforce | B15: There is a competent One Health workforce consisting of representatives from human health, animal health, wildlife and the environment with established in-service training programs and joint sector One Health training. | C15: Does the One Health workforce have the capacity to contribute to each of the priority areas? | E15: No | F15: Yes | G15: Yes | H15: Yes | I15: Yes | J15: Yes | K15: No | L15: No
A16: Comments

Sheet 9. Results Dashboard
A1: Results Dashboard | AA1: Country:
BQ20: ConCon
C138: OH INDICATORS X OH JPA ACTION TRACKS CROSSWALK | AA138: OH INDICATORS X PRIORITY AREAS CROSSWALK

Sheet Dashboard_Figure_1 (hidden)
E2: Indicator Score
A3: Indicator | B3: I10. Competent One Health Workforce | C3: I9. Whole of Society Approach to One Health | D3: I8. National One Health Risk Communication Strategy | E3: I7. One Health Policy | F3: I6. One Health Information Sharing | G3: I5. National One Helath Action Plan | H3: I4. National One Health Strategy | I3: I3. Government Support for One Health Field Activity Implementation | J3: I2. Government Commitment of Human resources to Support One Health | K3: I1: National One Health Coordination Mechanism
A4: Overall Score | B4: =ROUND(B5, 0) -> 5 | C4: 7 | D4: 6 | E4: =ROUND(E5, 0) -> 6 | F4: 6 | G4: 6 | H4: 9 | I4: 5 | J4: 4 | K4: 7
A5: Sheet Score | B5: =VALUE('6. OH Indicators By Consensus'!K113:K132) -> 4.5 | C5: =VALUE('6. OH Indicators By Consensus'!K98:K112) -> 7.333333333 | D5: =VALUE('6. OH Indicators By Consensus'!K83:K97) -> 6 | E5: =VALUE('6. OH Indicators By Consensus'!K78:K82) -> 6 | F5: =VALUE('6. OH Indicators By Consensus'!K63:K77) -> 6 | G5: =VALUE('6. OH Indicators By Consensus'!K53:K62) -> 6 | H5: =VALUE('6. OH Indicators By Consensus'!K43:K52) -> 9 | I5: =VALUE('6. OH Indicators By Consensus'!K33:K42) -> 5 | J5: =VALUE('6. OH Indicators By Consensus'!K13:K32) -> 4 | K5: =VALUE('6. OH Indicators By Consensus'!K3:K12) -> 7 | N5: Indicator Number | O5: Score | P5: Percentage | Q5: 1-percentage
B6: 0 | C6: 0 | D6: 0 | E6: 0 | F6: 0 | G6: 0 | H6: 0 | I6: 0 | J6: 0 | K6: 0 | N6: 1 | O6: =K4 -> 7 | P6: =O6/10 -> 0.7 | Q6: =1-P6 -> 0.3
B7: 0 | C7: 0 | D7: 0 | E7: 0 | F7: 0 | G7: 0 | H7: 0 | I7: 0 | J7: 0 | K7: 0 | N7: 2 | O7: =J4 -> 4 | P7: =O7/10 -> 0.4 | Q7: =1-P7 -> 0.6
B8: 0 | C8: 0 | D8: 0 | E8: 0 | F8: 0 | G8: 0 | H8: 0 | I8: 0 | J8: 0 | K8: 0 | N8: 3 | O8: =I4 -> 5 | P8: 0.5 | Q8: 0.5
B9: 0 | C9: 0 | D9: 0 | E9: 0 | F9: 0 | G9: 0 | H9: 0 | I9: 0 | J9: 0 | K9: 0 | N9: 4 | O9: =H4 -> 9 | P9: 0.9 | Q9: 0.1
B10: 0 | C10: 0 | D10: 0 | F10: 0 | G10: 0 | H10: 0 | I10: 0 | J10: 0 | K10: 0 | N10: 5 | O10: =G4 -> 6 | P10: 0.6 | Q10: 0.4
B11: 0 | C11: 0 | D11: 0 | F11: 0 | G11: 0 | H11: 0 | I11: 0 | J11: 0 | K11: 0 | N11: 6 | O11: =F4 -> 6 | P11: 0.6 | Q11: 0.4
B12: 0 | C12: 0 | D12: 0 | F12: 0 | G12: 0 | H12: 0 | I12: 0 | J12: 0 | K12: 0 | N12: 7 | O12: =E4 -> 6 | P12: 0.6 | Q12: 0.4
B13: 0 | C13: 0 | D13: 0 | F13: 0 | G13: 0 | H13: 0 | I13: 0 | J13: 0 | K13: 0
B14: 0 | C14: 0 | D14: 0 | F14: 0 | G14: 0 | H14: 0 | I14: 0 | J14: 0 | K14: 0
B15: 0 | C15: 0 | D15: 0 | F15: 0 | J15: 0
B16: 0 | C16: 0 | D16: 0 | F16: 0 | J16: 0
B17: 0 | C17: 0 | D17: 0 | F17: 0 | J17: 0
B18: 0 | C18: 0 | D18: 0 | F18: 0 | J18: 0
B19: 0 | C19: 0 | D19: 0 | F19: 0 | J19: 0
B20: 0 | J20: 0
B21: 0 | J21: 0
B22: 0 | J22: 0
B23: 0 | J23: 0
B24: 0 | J24: 0

Sheet Sheet7 (hidden)
A1: Sector | B1: Animal Health
A3: Row Labels | B3: Max of Sector Score by Indicator
A4: I1. National One Health Coordination | B4: 5
A5: I2. Government Commitment of Human Resources to Support One Health | B5: 5
A6: I3. Government Support for One Health Implementation Activity | B6: 5
A7: I4. National One Health Strategy | B7: 10
A8: I5. National One Health Action Plan | B8: 10
A9: I6. One Health Information Sharing | B9: 10
A10: I7. One Health Policy | B10: 10
A11: I8. National One Health Risk Communication Strategy | B11: 6.666666667
A12: I9. Whole of Society Approach to One Health | B12: 10
A13: I10. Competent One Health Workforce | B13: 7.5
A14: Grand Total | B14: 10

Sheet Hide (hidden)
A2: Column1 | B2: Column2
A3: AT Human | B3: =Table3[Yes] -> 39
A4: AT Animal | B4: =Table38[Yes] -> 37
A5: AT Wildlife | B5: =Table35[Yes] -> 33
A6: AT Environment | B6: =Table357[Yes] -> 33
A7: AT Consensus | B7: =SUM(B3:B6) -> 142

Sheet Hide IPA (hidden)
B3: Column1 | C3: Column2
B4: PA Human | C4: =Table810[Yes] -> 36
B5: PA Animal | C5: =Table810[Yes] -> 36
B6: PA Wildlife | C6: =Table812[Yes] -> 39
B7: PA Environment | C7: =Table81213[Yes] -> 42
B8: PA Consensus | C8: =SUM(C4:C7) -> 153

Sheet backmatter (3) (hidden)
B2: Indicator Score
A3: Indicator | B3: National One Health Coordination Mechanism | C3: Government Commitment and Mobilisation to Support One Health | D3: National One Health Strategy and Action Plan | E3: One Health Policy | F3: One Health Communication Strategy | G3: Whole of Society Approach to One Health | H3: Ensure a Competent Workforce
A4: Overall Score | B4: =ROUND(B5, 0) -> 7 | C4: 4 | D4: 0 | E4: 6 | F4: 6 | G4: 7 | H4: 4
A5: Sheet Score | B5: =VALUE('6. OH Indicators By Consensus'!K3:K11) -> 7 | C5: =VALUE('6. OH Indicators By Consensus'!K13:K31) -> 4 | E5: =VALUE('6. OH Indicators By Consensus'!K78:K82) -> 6 | F5: =VALUE('6. OH Indicators By Consensus'!K83:K95) -> 6 | G5: =VALUE('6. OH Indicators By Consensus'!K98:K112) -> 7.333333333 | H5: =VALUE('6. OH Indicators By Consensus'!K113:K132) -> 
B6: 0 | C6: 0 | E6: 0 | F6: 0 | G6: 0
B7: 0 | C7: 0 | E7: 0 | F7: 0 | G7: 0
B8: 0 | C8: 0 | E8: 0 | F8: 0 | G8: 0
B9: 0 | C9: 0 | E9: 0 | F9: 0 | G9: 0
B10: 0 | C10: 0 | F10: 0 | G10: 0 | W10: AT1: Enhancing OH capacities to strengthen health systems | X10: AT2: Reducing the risks from emerging and re-emerging zoonotic diseases | Y10: AT3: Controlling and eliminating endemic zoonotic, neglected tropical, and vector-borne diseases | Z10: AT4: Strengthening the assessment, management and communication of food safety risks | AA10: A5: Curbing AMR | AB10: AT6: Integrating the environment into OH | AC10: AT7: Food systems transformation
B11: 0 | C11: 0 | F11: 0 | G11: 0 | W11: =VALUE('8. Indicator x Priority Area'!#REF!) ->  | X11: =VALUE('8. Indicator x Priority Area'!#REF!) ->  | Y11: =VALUE('8. Indicator x Priority Area'!#REF!) ->  | Z11: =VALUE('8. Indicator x Priority Area'!#REF!) ->  | AA11: =VALUE('8. Indicator x Priority Area'!#REF!) ->  | AB11: =VALUE('8. Indicator x Priority Area'!#REF!) ->  | AC11: =VALUE('8. Indicator x Priority Area'!#REF!) -> 
B12: 0 | C12: 0 | F12: 0 | G12: 0 | W12: 5 | X12: 3 | Y12: 4 | Z12: 6 | AA12: 4 | AB12: 4 | AC12: 5
B13: 0 | C13: 0 | F13: 0 | G13: 0
C14: 0 | F14: 0 | G14: 0
C15: 0 | F15: 0 | G15: 0
C16: 0 | F16: 0 | G16: 0
C17: 0 | F17: 0 | G17: 0
C18: 0 | G18: 0
C19: 0 | G19: 0
C20: 0
C21: 0
C22: 0
C23: 0
B24: AT1: Enhancing OH capacities to strengthen health systems | C24: AT2: Reducing the risks from emerging and re-emerging zoonotic diseases | D24: AT3: Controlling and eliminating endemic zoonotic, neglected tropical, and vector-borne diseases | E24: AT4: Strengthening the assessment, management and communication of food safety risks | F24: A5: Curbing AMR | G24: AT6: Integrating the environment into OH | H24: AT7: Food systems transformation
B25: =VALUE('8. Indicator x Priority Area'!E5) -> 7 | C25: =VALUE('8. Indicator x Priority Area'!F5) -> 5 | D25: =VALUE('8. Indicator x Priority Area'!G5) -> 5 | E25: =VALUE('8. Indicator x Priority Area'!H5) -> 5 | F25: =VALUE('8. Indicator x Priority Area'!I5) -> 7 | G25: =VALUE('8. Indicator x Priority Area'!J5) -> 6 | H25: =VALUE('8. Indicator x Priority Area'!#REF!) -> 

Sheet Dashboard_Figure 2 (hidden)
A2: Overall Performance Indicator Score By Sector
A3: Sector | B3: Overall Seector Score | C3: % | D3: Shape | E3: Icon
A4: Wildlife | B4: ='6. OH Indicators By Consensus'!K140 -> 5 | C4: =Table2DashboardFigure2[[#This Row],[Overall Seector Score]]/10 -> 0.5 | E4: =Table2DashboardFigure2[[#This Row],[Overall Seector Score]]-0.6 -> 4.4
A5: Environment | B5: ='6. OH Indicators By Consensus'!K141 -> 3.461538462 | C5: =Table2DashboardFigure2[[#This Row],[Overall Seector Score]]/10 -> 0.3461538462 | E5: =Table2DashboardFigure2[[#This Row],[Overall Seector Score]]-0.6 -> 2.861538462
A6: Animal Health | B6: ='6. OH Indicators By Consensus'!K137 -> 8.846153846 | C6: =Table2DashboardFigure2[[#This Row],[Overall Seector Score]]/10 -> 0.8846153846 | E6: =Table2DashboardFigure2[[#This Row],[Overall Seector Score]]-0.6 -> 8.246153846
A7: Public Health | B7: ='6. OH Indicators By Consensus'!K136 -> 7.307692308 | C7: =Table2DashboardFigure2[[#This Row],[Overall Seector Score]]/10 -> 0.7307692308 | E7: =Table2DashboardFigure2[[#This Row],[Overall Seector Score]]-0.6 -> 6.707692308
A8: Wildefe Disease | B8: ='6. OH Indicators By Consensus'!K138 -> 5.769230769 | C8: =Table2DashboardFigure2[[#This Row],[Overall Seector Score]]/10 -> 0.5769230769 | E8: =Table2DashboardFigure2[[#This Row],[Overall Seector Score]]-0.6 -> 5.169230769
A9: Wildlife Management and Conservation | B9: ='6. OH Indicators By Consensus'!K139 -> 4.230769231 | C9: =Table2DashboardFigure2[[#This Row],[Overall Seector Score]]/10 -> 0.4230769231 | E9: =Table2DashboardFigure2[[#This Row],[Overall Seector Score]]-0.6 -> 3.630769231
A10: Full Score | B10: 10 | C10: =Table2DashboardFigure2[[#This Row],[Overall Seector Score]]/10 -> 1 | E10: =Table2DashboardFigure2[[#This Row],[Overall Seector Score]]-0.6 -> 9.4

Sheet 10. Action Plan & Next Steps
G1: Action Plan & Next Steps
A2: Category | B2: Number | C2: Description | D2: Sector category | E2: Sector Score | F2: Consensus Score | G2: Actions (max of 2) | H2: Responsible Government Ministry/Department | I2: Name of Focal Point | J2: Supporting Government Ministries/Department(s) | K2: Name of Focal Point(s) | L2: Timeline | M2: Supporting Quadripartite Partners | N2: Name of Focal Points | O2: Recommedned Tools and Resources
A3: One Health Indicators | B3: 1 | C3: National One Health Coordination Mechanism | D3: HH | E3: ='Figure 3 dashboard'!M3 -> 10 | F3: =Dashboard_Figure_1!K4 -> 7 | O3: Joint Risk Assessment Operational Tool
D4: AH | E4: ='Figure 3 dashboard'!M4 -> 5
D5: W | E5: ='Figure 3 dashboard'!M5 -> 2.5
D6: WD | E6: ='Figure 3 dashboard'!M7 -> 5
D7: WMC | E7: ='Figure 3 dashboard'!M8 -> 0
D8: E | E8: ='Figure 3 dashboard'!M6 -> 0
B9: 2 | C9: Government Commitment of Human Resources to Support One Health | D9: HH | E9: ='Figure 3 dashboard'!M9 -> 7.5 | F9: =Dashboard_Figure_1!J4 -> 4 | O9: Multisectoral Coordination Mechanism Operational Tool
D10: AH | E10: ='Figure 3 dashboard'!M10 -> 5
D11: W | E11: ='Figure 3 dashboard'!M11 -> 1.25
D12: WD | E12: ='Figure 3 dashboard'!M13 -> 2.5
D13: WMC | E13: ='Figure 3 dashboard'!M14 -> 0
D14: E | E14: ='Figure 3 dashboard'!M12 -> 0
B15: 3 | C15: Government Support for One Health Field Activity Implementation | D15: HH | E15: ='Figure 3 dashboard'!M15 -> 5 | F15: =Dashboard_Figure_1!I4 -> 5
D16: AH | E16: ='Figure 3 dashboard'!M16 -> 5
D17: W | E17: ='Figure 3 dashboard'!M17 -> 0
D18: WD | E18: ='Figure 3 dashboard'!M19 -> 0
D19: WMC | E19: ='Figure 3 dashboard'!M20 -> 0
D20: E | E20: ='Figure 3 dashboard'!M18 -> 5
B21: 4 | C21: National One Health Strategy | D21: HH | E21: ='Figure 3 dashboard'!M21 -> 10 | F21: =Dashboard_Figure_1!I4 -> 5 | O21: Surveillance & Information Sharing Operational Tool
D22: AH | E22: ='Figure 3 dashboard'!M22 -> 10
D23: W | E23: ='Figure 3 dashboard'!M23 -> 7.5
D24: WD | E24: ='Figure 3 dashboard'!M25 -> 10
D25: WMC | E25: ='Figure 3 dashboard'!M26 -> 5
D26: E | E26: ='Figure 3 dashboard'!M24 -> 5
B27: 5 | C27: National One Health Action Plan | D27: HH | E27: ='Figure 3 dashboard'!M27 -> 6.666666667 | F27: =Dashboard_Figure_1!H4 -> 9
D28: AH | E28: ='Figure 3 dashboard'!M28 -> 10
D29: W | E29: ='Figure 3 dashboard'!M29 -> 7.5
D30: WD | E30: ='Figure 3 dashboard'!M31 -> 10
D31: WMC | E31: ='Figure 3 dashboard'!M32 -> 5
D32: E | E32: ='Figure 3 dashboard'!M30 -> 5
B33: 6 | C33: One Health Information Sharing | D33: HH | E33: ='Figure 3 dashboard'!M33 -> 6.666666667 | F33: =Dashboard_Figure_1!F4 -> 6
D34: AH | E34: ='Figure 3 dashboard'!M34 -> 10
D35: W | E35: ='Figure 3 dashboard'!M35 -> 3.333333333
D36: WD | E36: ='Figure 3 dashboard'!M37 -> 6.666666667
D37: WMC | E37: ='Figure 3 dashboard'!M38 -> 0
D38: E | E38: ='Figure 3 dashboard'!M36 -> 6.666666667
B39: 7 | C39: One Health Policy | D39: HH | E39: ='Figure 3 dashboard'!M39 -> 10 | F39: =Dashboard_Figure_1!H4 -> 9
D40: AH | E40: ='Figure 3 dashboard'!M40 -> 10
D41: W | E41: ='Figure 3 dashboard'!M41 -> 0
D42: WD | E42: ='Figure 3 dashboard'!M43 -> 0
D43: WMC | E43: ='Figure 3 dashboard'!M44 -> 0
D44: E | E44: ='Figure 3 dashboard'!M42 -> 10
B45: 8 | C45: National One Health Risk Communication Strategy | D45: HH | E45: ='Figure 3 dashboard'!M45 -> 6.666666667 | F45: =Dashboard_Figure_1!G4 -> 6
D46: AH | E46: ='Figure 3 dashboard'!M46 -> 6.666666667
D47: W | E47: ='Figure 3 dashboard'!M47 -> 1.666666667
D48: WD | E48: ='Figure 3 dashboard'!M49 -> 10
D49: WMC | E49: ='Figure 3 dashboard'!M50 -> 0
D50: E | E50: ='Figure 3 dashboard'!M48 -> 6.666666667
B51: 9 | C51: Whole of Society Approach to One Health | D51: HH | E51: ='Figure 3 dashboard'!M51 -> 6.666666667 | F51: =Dashboard_Figure_1!F4 -> 6
D52: AH | E52: ='Figure 3 dashboard'!M52 -> 10
D53: W | E53: ='Figure 3 dashboard'!M53 -> 5
D54: WD | E54: ='Figure 3 dashboard'!M55 -> 10
D55: WMC | E55: ='Figure 3 dashboard'!M56 -> 0
D56: E | E56: ='Figure 3 dashboard'!M54 -> 0
B57: 10 | C57: Competent One Health Workforce | D57: HH | E57: ='Figure 3 dashboard'!M57 -> 7.5 | F57: =Dashboard_Figure_1!E4 -> 6
D58: AH | E58: ='Figure 3 dashboard'!M58 -> 7.5
D59: W | E59: ='Figure 3 dashboard'!M59 -> 3.75
D60: WD | E60: ='Figure 3 dashboard'!M61 -> 7.5
D61: WMC | E61: ='Figure 3 dashboard'!M62 -> 0
D62: E | E62: ='Figure 3 dashboard'!M60 -> 0
A64: JPA Action Tracks | B64: 1 | C64: Enhancing OH capacities to strengthen health systems | D64: HH | E64: ='4.HH Indicator x JPA Crosswalk '!E5 -> 6 | F64: ='7. Indicator x JPA Crosswalk '!F4 -> 5
D65: AH | E65: ='4. AH Indicator x JPA Crosswalk'!E5 -> 5
D66: W | E66: ='4.W Indicator x JPA Crosswalk'!E5 -> 5
D67: E | E67: ='4. E Indicator x JPA Crosswalk'!E5 -> 5
B68: 2 | C68: Reducing the risks from emerging and re-emerging zoonotic diseases | D68: HH | E68: ='4.HH Indicator x JPA Crosswalk '!F5 -> 5 | F68: ='7. Indicator x JPA Crosswalk '!G4 -> 8
D69: AH | E69: ='4. AH Indicator x JPA Crosswalk'!F5 -> 8
D70: W | E70: ='4.W Indicator x JPA Crosswalk'!F5 -> 6
D71: E | E71: ='4. E Indicator x JPA Crosswalk'!F5 -> 4
B72: 3 | C72: Controlling and eliminating endemic zoonotic, neglected tropical, and vector-borne diseases | D72: HH | E72: ='4.HH Indicator x JPA Crosswalk '!G5 -> 6 | F72: ='7. Indicator x JPA Crosswalk '!H4 -> 5
D73: AH | E73: ='4. AH Indicator x JPA Crosswalk'!G5 -> 7
D74: W | E74: ='4.W Indicator x JPA Crosswalk'!G5 -> 5
D75: E | E75: ='4. E Indicator x JPA Crosswalk'!G5 -> 5
B76: 4 | C76: Strengthening the assessment, management and communication of food safety risks | D76: HH | E76: ='4.HH Indicator x JPA Crosswalk '!H5 -> 7 | F76: ='7. Indicator x JPA Crosswalk '!I4 -> 9
D77: AH | E77: ='4. AH Indicator x JPA Crosswalk'!H5 -> 9
D78: W | E78: ='4.W Indicator x JPA Crosswalk'!H5 -> 7
D79: E | E79: ='4. E Indicator x JPA Crosswalk'!H5 -> 7
B80: 5 | C80: Curbing AMR | D80: HH | E80: ='4.HH Indicator x JPA Crosswalk '!I5 -> 5 | F80: ='7. Indicator x JPA Crosswalk '!J4 -> 7
D81: AH | E81: ='4. AH Indicator x JPA Crosswalk'!I5 -> 4
D82: W | E82: ='4.W Indicator x JPA Crosswalk'!I5 -> 5
D83: E | E83: ='4. E Indicator x JPA Crosswalk'!I5 -> 6
B84: 6 | C84: Integrating the environment into OH | D84: HH | E84: ='4.HH Indicator x JPA Crosswalk '!J5 -> 5 | F84: ='7. Indicator x JPA Crosswalk '!K4 -> 4
D85: AH | E85: ='4. AH Indicator x JPA Crosswalk'!J5 -> 4
D86: W | E86: ='4.W Indicator x JPA Crosswalk'!J5 -> 5
D87: E | E87: ='4. E Indicator x JPA Crosswalk'!J5 -> 6
A89: Additional Priority Areas | B89: 1 | C89: Prevent environmental degredation, preserve & restore habitat, biodiversity & ecosystems | D89: HH | E89: ='5.HH Indicator x Priority Area'!E5 -> 8 | F89: ='8. Indicator x Priority Area'!E5 -> 7
D90: AH | E90: ='5. AH Indicator x Priority Area'!E5 -> 7
D91: W | E91: ='5. W Indicator x Priority Area'!E5 -> 5
D92: E | E92: ='5. E Indicator x Priority Area'!E5 -> 8
B93: 2 | C93: Government Commitment and Mobilisation to Support One Implement climate change adaptation & mitigation measures | D93: HH | E93: ='5.HH Indicator x Priority Area'!F5 -> 3 | F93: ='8. Indicator x Priority Area'!F5 -> 5
D94: AH | E94: ='5. AH Indicator x Priority Area'!F5 -> 3
D95: W | E95: ='5. W Indicator x Priority Area'!F5 -> 4
D96: E | E96: ='5. E Indicator x Priority Area'!F5 -> 3
B97: 3 | C97: Improve waste, effluent, pollution management-ecotoxicology | D97: HH | E97: ='5.HH Indicator x Priority Area'!G5 -> 3 | F97: ='8. Indicator x Priority Area'!G5 -> 5
D98: AH | E98: ='5. AH Indicator x Priority Area'!G5 -> 3
D99: W | E99: ='5. W Indicator x Priority Area'!G5 -> 4
D100: E | E100: ='5. E Indicator x Priority Area'!G5 -> 4
B101: 4 | C101: Prevent agriculture & urban encroachmnet through land-use planning | D101: HH | E101: ='5.HH Indicator x Priority Area'!H5 -> 5 | F101: ='8. Indicator x Priority Area'!H5 -> 5
D102: AH | E102: ='5. AH Indicator x Priority Area'!H5 -> 6
D103: W | E103: ='5. W Indicator x Priority Area'!H5 -> 5
D104: E | E104: ='5. E Indicator x Priority Area'!H5 -> 5
B105: 5 | C105: Sustainable, climate smart agricultural productioning | D105: HH | E105: ='5.HH Indicator x Priority Area'!I5 -> 5 | F105: ='8. Indicator x Priority Area'!I5 -> 7
D106: AH | E106: ='5. AH Indicator x Priority Area'!I5 -> 4
D107: W | E107: ='5. W Indicator x Priority Area'!I5 -> 7
D108: E | E108: ='5. E Indicator x Priority Area'!I5 -> 6
B109: 6 | C109: Improve wildlife farming & wildlife trade management, inlcuding wildlife sales | D109: HH | E109: ='5.HH Indicator x Priority Area'!J5 -> 5 | F109: ='8. Indicator x Priority Area'!J5 -> 6
D110: AH | E110: ='5. AH Indicator x Priority Area'!J5 -> 4
D111: W | E111: ='5. W Indicator x Priority Area'!J5 -> 4
D112: E | E112: ='5. E Indicator x Priority Area'!J5 -> 4
B113: 7 | C113: Improve food safety at informal & formal markets that mix & sell domestic & wild animals | D113: HH | E113: ='5.HH Indicator x Priority Area'!K5 -> 8 | F113: ='8. Indicator x Priority Area'!K5 -> 5
D114: AH | E114: ='5. AH Indicator x Priority Area'!K5 -> 7
D115: W | E115: ='5. W Indicator x Priority Area'!K5 -> 9
D116: E | E116: ='5. E Indicator x Priority Area'!K5 -> 7
B117: 8 | C117: Food Systems Transformation | D117: HH | E117: ='5.HH Indicator x Priority Area'!L5 -> 4 | F117: ='8. Indicator x Priority Area'!L5 -> 3
D118: AH | E118: ='5. AH Indicator x Priority Area'!L5 -> 2
D119: W | E119: ='5. W Indicator x Priority Area'!L5 -> 1
D120: E | E120: ='5. E Indicator x Priority Area'!L5 -> 5

Sheet 11. Definitions
D1: Definitions
C4: Animal Health Sector | D4: The animal health sector includes representatives from ministries, departments, technical agencies, organizations, or private sector enterprises with mandates, responsibilities, or objectives directed at the health of livestock and domesticated animals (terrestrial and aquatic). These respresentatives include veterinary public health, livestock, domestic animal, and aquaculture veterinary medicine and diagnostics, animal health laboratories, agriculture, and related livestock and domestic animal techincal disciplines, programs, and policy.
C5: Consensus | D5: Scores in the One Health Monitoring Tools (OHMT) that are agreed upon from four specific sectors (i) human health, (ii) animal health, (iii) wildlife, and (iv) animal health. Each consensus score is provided in the dashboard of the OHMT for the (i) One Health indicators, (ii) One Health JPA Action Tracks and OHMT Priority Areas.
C6: Environment Sector | D6: The environment sector includes representatives from ministries, departments, technical agecies, organizations, or private sector enterprises with mandates, responsibilities, or objectives directed at the environment (land, freshwater, marine, air). These representatives includes environmental scientists, waste managers, pollution control, climate change experts, land use planners, natural resource managers, parks and protected area managers and rangers, biodiversity and ecosystem managers, and related environment techincal disciples, programs, and policy.
C7: Human Health Sector | D7: The human health sector includes representatives from ministries, departments, technical agencies, organizations, or private sector enterprises with mandates, responsibilities, or objectives directed at human health, including public health, medicine and diagnostics, laboratories, food safety, and related human health focused techincal disciplines, programs and policy.
C8: One Health | D8: One Health is an integrated, unifying approach that aims to sustainably balance and optimize the health of people, animals and ecosystems. It recognizes the health of humans, domestic and wild animals, plants, and the wider environment (including ecosystems) are closely linked and inter-dependent. The approach mobilizes multiple sectors, disciplines and communities at varying levels of society to work together to foster well-being and tackle threats to health and ecosystems, while addressing the collective need for clean water, energy and air, safe and nutritious food, taking action on climate change, and contributing to sustainable development. Source: One Health High Level Expert Panel (Dec, 2021)
C9: One Health Coordination Mechanism | D9: A One Health Coordination Mechinanism is a means by which representatives from the four sectors collaborate and coordinate on One Health initatives, programs, and policy.
C10: One Health Joint Plan of Action (2022-2026) | D10: The One Health Joint Plan of Action (JPA) (2022-2026) was developed by the Quadripartite and the One Health High Level Expert Panel (OHHLEP). It is framework to strengthen One Health implementation across global, regional, and local levels buildling on existing capacities, coordination, and initatives. It includes six Action Track that are linked to a set of activities. The complete document can be found here: https://www.fao.org/3/cc2289en/cc2289en.pdf
C11: OH JPA Implementation Guide | D11: The OH JPA Implementation Guide focuses on providing national level guidance for how countries can adopt and adapt OH JPA to strengthen and support national One Health action.
C12: One Health JPA Action Tracks | D12: The JPA includes six interdependent action tracks that collectively contribute to achieving sustainable health and food systems, reduced global health threats, and improved ecosystem management. The six actions tracks include: Action Track 1: Enhancing One Health capacities to strengthen health systems Action Track 2: Reducing the risks from emerging and re-emerging zoonotic epidemics and pandemics Action Track 3: Controlling and eliminating endemic zoonotic, neglected tropical and vector-borne diseases Action Track 4: Strengthening the assessment, management and communication of food safety risks Action Track 5: Curbing the silent pandemic of antimicrobial resistance (AMR) Action Track 6: Integrating the environment into One Health For further detail on the Action Tracks, refer to the One Health Joint Plan of Action complete document found here: https://www.fao.org/3/cc2289en/cc2289en.pdf
C13: Priority Areas | D13: The Priority Areas of the OHMT are technical areas that include known drivers of zoonotic diseases.
C14: Quadripartite | D14: The Quadripartite consists of the Food and Agriculture Organization of the United Nations (FAO), World Organization for Animal Health (WOAH), World Health Organization (WHO), and the Environment Programme (UNEP).
C15: Sector-specific | D15: Scores in the One Health Monitoring Tools (OHMT) that are agreed upon within a specific sector. Each sector includes (i) human health, (ii) animal health, (iii) wildlife, and (iv) animal health.
C16: Wildlife Sector | D16: The wildlife sector consists of two sub-sectors, which include the wildlife disease sub-sector and the wildlife management & conservation sub-sector.
C17: Wildlife Disease Sub-Sector | D17: The wildlife disease sub-sector includes representatives from ministries, departments, technical agecies, organizations, or private sector enterprises with mandates, responsibilities, or objectives directed at wildlife disease and the health of wild animals. These representatives include wildlife veterinarians, wildlife health biologists and technicians, and related wild animal disease technical disciplices, programs, and policy.
C18: Wildlife Management & Conservation Sub-Sector | D18: The wildlife management & conservation sub-sector includes representatives from ministries, departments, technical agecies, organizations, or private sector enterprises with mandates, responsibilities, or objectives directed at the management and conservation of wild animals. These representatives include wildlife resource managers, wildlife biologists and technicians, and conservation biologists and technicans, and related wild animal management and conservation technical disciplices, programs, and policy.
C19: Zoonotic Diseases | D19: Zoonotic disesase are those diseases that transmit between humans and animals.

Sheet 12. Acknowledgements
D1: Acknowledgments
C3: List of Acknowledgements
C5: OHMT Developers | D5: Institute for Infectious Animal Diseases, Texas A&M AgriLife Research School of Veterinary Medicine, Texas A&M University
D6: FAO - Regional Office for Africa (RAF)
D7: FAO - Regional Office for Asia and the Pacific (RAP)
C9: Reviewers | D9: To be completed
